Workbook

Sheet LDC Info
AA3: Algoma Power Inc.
AA4: Atikokan Hydro Inc.
AA5: Attawapiskat Power Corporation
AA6: Bluewater Power Distribution Corp.
AA7: Brant County Power
AA8: Brantford Power Inc.
AA9: Burlington Hydro Inc.
AA10: Cambridge and North Dumfries Hydro
AA11: Canadian Niagara Power Inc. – Eastern Ontario Power/Fort Erie/Port Colborne
AA12: Centre Wellington Hydro Ltd.
N13: Version 1.1 | AA13: Chapleau Public Utilities Corporation
D14: Utility Name | E14: Tillsonburg Hydro Inc. | AA14: COLLUS Power Corp.
AA15: Cooperative Hydro Embrun Inc.
D16: Service Territory | AA16: E.L.K. Energy Inc.
AA17: Enersource Hydro Mississauga Inc.
D18: Assigned EB Number | E18: EB-2012-0168 | AA18: Entegrus Powerlines Inc.
AA19: ENWIN Utilities Ltd.
D20: Name of Contact and Title | E20: William J. Gott, Finance Regulatory Affairs Manager | AA20: Erie Thames Powerlines Corp.
AA21: Espanola Regional Hydro Distribution Corporation
D22: Phone Number | E22: 519-688-3009 x3229 | AA22: Essex Powerlines Corporation
AA23: Festival Hydro Inc.
D24: Email Address | E24: wgott@tillsonburg.ca | AA24: Fort Albany Power Corporation
AA25: Fort Frances Power Corporation
D26: Bridge Year | E26: 2012 | AA26: Greater Sudbury Hydro Inc.
AA27: Grimsby Power Inc.
D28: Test Year | E28: 2013 | AA28: Guelph Hydro Electric Systems Inc.
AA29: Haldimand County Hydro Inc.
D30: Last Rebasing Year | E30: 2009 | AA30: Guelph Hydro Electric Systems Inc.
AA31: Halton Hills Hydro Inc.
B32: Notes | AA32: Hearst Power Distribution Co. Ltd.
AA33: Horizon Utilities Corporation
C34: Pale green cells represent input cells. | AA34: Hydro 2000 Inc.
AA35: Hydro Hawkesbury Inc.
C36: Pale blue cells represent drop-down lists. The applicant should select the appropriate item from the drop-down list. | AA36: Hydro One Brampton Networks Inc.
AA37: Hydro One Networks Inc.
C38: White cells contain fixed values, automatically generated values or formulae. | AA38: Hydro One Remote Communities Inc.
AA39: Hydro Ottawa Limited
AA40: Innisfil Hydro Dist. Systems Limited
AA41: Kashechewan Power Corporation
AA42: Kenora Hydro Electric Corporation Ltd.
AA43: Kingston Hydro Corporation
AA44: Kitchener-Wilmot Hydro Inc.
AA45: Lakefront Utilities Inc.
AA46: Lakeland Power Distribution Ltd.
AA47: London Hydro Inc.
AA48: Midland Power Utility Corporation
AA49: Milton Hydro Distribution Inc.
AA50: Newmarket – Tay Power Distribution Ltd.
AA51: Niagara Peninsula Energy Inc.
AA52: Niagara-on-the-Lake Hydro Inc.
AA53: Norfolk Power Distribution Ltd.
AA54: North Bay Hydro Distribution Limited
AA55: Northern Ontario Wires Inc.
AA56: Oakville Hydro Distribution Inc.
AA57: Orangeville Hydro Limited
AA58: Orillia Power Distribution Corp.
AA59: Oshawa PUC Networks Inc.
AA60: Ottawa River Power Corporation
AA61: Parry Sound Power Corporation
AA62: Peterborough Distribution Inc.
AA63: PowerStream Inc.
AA64: PUC Distribution Inc.
AA65: Renfrew Hydro Inc.
AA66: Rideau St. Lawrence Distribution Inc.
AA67: St. Thomas Energy Inc.
AA68: Sioux Lookout Hydro Inc.
AA69: Thunder Bay Hydro Electricity Distribution
AA70: Tillsonburg Hydro Inc.
AA71: Toronto Hydro-Electric System Limited
AA72: Veridian Connections Inc.
AA73: Wasaga Distribution Inc.
AA74: Waterloo North Hydro Inc.
AA75: Welland Hydro Electric System Corp.
AA76: Wellington North Power Inc.
AA77: West Coast Huron Energy Inc.
AA78: Westario Power Inc.
AA79: Whitby Hydro Electric Corporation
AA80: Woodstock Hydro Services Inc.

Sheet Index
A15: 1 | B15: LDC Information Sheet | E15: 19 | F15: Appendix 2-H OM&A Detailed Analysis
A16: 2 | B16: Index | E16: 20 | F16: Appendix 2-I OM&A Summary Analysis
A17: 3 | B17: Appendix 2-A Capital Projects | E17: 21 | F17: Appendix 2-J OM&A Cost Drivers
A18: 4 | B18: Appendix 2-B Fixed Asset Continuity | E18: 22 | F18: Appendix 2-K Employee Costs
A19: 5 | B19: Appendix 2-CA CGAAP Depreciation Expense 2011 | E19: 23 | F19: Appendix 2-L OM&A per Cust FTEE
A20: 6 | B20: Appendix 2-CB MIFRS Depreciation Expense 2011 | E20: 24 | F20: Appendix 2-M Regulatory Costs
A21: 7 | B21: Appendix 2-CC MIFRS Depreciation Expense 2012 | E21: 25 | F21: Appendix 2-N Corp Cost Allocation
A22: 8 | B22: Appendix 2-CD MIFRS Depreciation Expense 2013 | E22: 26 | F22: Appendix 2-OA Capital Structure and Cost of Capital
A23: 9 | B23: Appendix 2-CE CGAAP Depreciation Expense 2011 | E23: 27 | F23: Appendix 2-OB Debt Instruments
A24: 10 | B24: Appendix 2-CF CGAAP Depreciation Expense 2012 | E24: 28 | F24: Appendix 2-P Cost Allocation
A25: 11 | B25: Appendix 2-CG MIFRS Depreciation Expense 2012 | E25: 29 | F25: Appendix 2-Q Cost of Service Embedded Distributor
A26: 12 | B26: Appendix 2-CH MIFRS Depreciation Expense 2013 | E26: 30 | F26: Appendix 2-R Loss Factors
A27: 13 | B27: Appendix 2-CI Alternative Accounting Standards Depreciation Expense | E27: 31 | F27: Appendix 2-S Stranded Meters
A28: 14 | B28: Appendix 2-D Overhead | E28: 32 | F28: Appendix 2-T 1592 Tax Variance
A29: 15 | B29: Appendix 2-EA PP&E Deferral Account - 2012 IFRS Adopters | E29: 33 | F29: Appendix 2-U IFRS Transition Costs
A30: 16 | B30: Appendix 2-EB PP&E Deferral Account - 2013 IFRS Adopters | E30: 34 | F30: Appendix 2-V Rev Reconciliation
A31: 17 | B31: Appendix 2-F Other Operating Revenue | E31: 35 | F31: Appendix 2-W Bill Impacts
A32: 18 | B32: Appendix 2-G Detailed OM&A Expenses | E32: 36 | F32: Appendix 2-X CoS Flowchart

Sheet App.2-A_Capital Projects
G1: File Number: | H1: EB-2012-0168
G2: Exhibit: | H2: 2
G3: Tab: | H3: 4
G4: Schedule: | H4: 4
G5: Attachment: | H5: 1
G7: Date: | H7: 2012-09-28
A9: Appendix 2-A
A10: Capital Projects Table
A13: Projects | B13: =IF(ISBLANK('LDC Info'!E26), "Year 1", 'LDC Info'!E26-5) -> 2007 | C13: =IF(ISBLANK('LDC Info'!E26), "Year 2", 'LDC Info'!E26-4) -> 2008 | D13: =IF(ISBLANK('LDC Info'!E26), "Year 3", 'LDC Info'!E26-3) -> 2009 | E13: =IF(ISBLANK('LDC Info'!E26), "Year 4", 'LDC Info'!E26-2) -> 2010 | F13: =IF(ISBLANK('LDC Info'!E26), "Year 5", 'LDC Info'!E26-1) -> 2011 | G13: ='LDC Info'!E26 & " Bridge Year" -> 2012 Bridge Year | H13: ='LDC Info'!E28 & " Test Year" -> 2013 Test Year
A14: Reporting Basis | B14: CGAAP | C14: CGAAP | D14: CGAAP | E14: CGAAP | F14: CGAAP | G14: CGAAP | H14: MIFRS
A15: Project 600 - General
A16: 1830 - Poles, Towers and Fixtures | B16: 5051 | C16: 4075 | D16: 814 | E16: 223 | F16: 368
A17: 1835 - Overhead Conductors & Devices | B17: 6527 | C17: 12752 | D17: 4755 | E17: 883 | F17: 1579
A18: 1840 - Underground Conduit | B18: 84 | C18: 2292 | E18: 60
A19: 1845 - Underground Conductors & Devices | B19: 6963 | C19: 2758 | D19: 1087 | E19: 587 | F19: 3035
A20: 1850 - Line Transformers | B20: 29563 | C20: 7868 | D20: 9676 | E20: 5521 | F20: 12652
A21: 1855 - Services | B21: 45770 | C21: 27268 | D21: 20532 | E21: 13514 | F21: 29626
A22: 1860 - Meters | B22: 32382 | C22: 13884 | D22: 12461 | E22: 8107 | F22: 31804
A23: 1920 - Computer Hardware | D23: 11532
A24: 1925 - Computer Software
A25: 1995 - Contributions and Grants - Credit | B25: =-205692.7+67308 -> -138384.7 | C25: -768457 | D25: -91847 | E25: -90324.8 | F25: -172793
A26: Sub-Total | B26: =SUM(B16:B25) -> -12044.7 | C26: =SUM(C16:C25) -> -697560 | D26: -30990 | E26: -61429.8 | F26: -93729 | G26: 0 | H26: 0
A27: Project 24 CIS System
A28: 1830 - Poles, Towers and Fixtures
A29: 1835 - Overhead Conductors & Devices
A30: 1840 - Underground Conduit
A31: 1845 - Underground Conductors & Devices
A32: 1850 - Line Transformers
A33: 1855 - Services
A34: 1860 - Meters
A35: 1920 - Computer Hardware | D35: 296643
A36: 1925 - Computer Software
A37: 1995 - Contributions and Grants - Credit
A38: Sub-Total | B38: =SUM(B28:B37) -> 0 | C38: =SUM(C28:C37) -> 0 | D38: 296643 | E38: 0 | F38: 0 | G38: 0 | H38: 0
A39: Project 904 Park Place
A40: 1830 - Poles, Towers and Fixtures | C40: 3593
A41: 1835 - Overhead Conductors & Devices
A42: 1840 - Underground Conduit | C42: 7603
A43: 1845 - Underground Conductors & Devices | C43: 31569
A44: 1850 - Line Transformers | C44: 36800
A45: 1855 - Services
A46: 1860 - Meters
A47: 1920 - Computer Hardware
A48: 1925 - Computer Software
A49: 1995 - Contributions and Grants - Credit
A50: Sub-Total | B50: =SUM(B40:B49) -> 0 | C50: =SUM(C40:C49) -> 79565 | D50: 0 | E50: 0 | F50: 0 | G50: 0 | H50: 0
A51: Project 912 Heritage Phase 1
A52: 1830 - Poles, Towers and Fixtures | F52: 27808
A53: 1835 - Overhead Conductors & Devices | F53: 17111
A54: 1840 - Underground Conduit | F54: 25380
A55: 1845 - Underground Conductors & Devices | F55: 9698
A56: 1850 - Line Transformers | F56: 39827
A57: 1855 - Services | F57: 10241
A58: 1860 - Meters
A59: 1920 - Computer Hardware
A60: 1925 - Computer Software
A61: 1995 - Contributions and Grants - Credit
A62: Sub-Total | B62: =SUM(B52:B61) -> 0 | C62: =SUM(C52:C61) -> 0 | D62: 0 | E62: 0 | F62: 130065 | G62: 0 | H62: 0
A63: Project 913 Oak Park 2007
A64: 1830 - Poles, Towers and Fixtures
A65: 1835 - Overhead Conductors & Devices
A66: 1840 - Underground Conduit | C66: 3778
A67: 1845 - Underground Conductors & Devices | C67: 42205
A68: 1850 - Line Transformers | C68: 27526
A69: 1855 - Services
A70: 1860 - Meters
A71: 1920 - Computer Hardware
A72: 1925 - Computer Software
A73: 1995 - Contributions and Grants - Credit
A74: Sub-Total | B74: =SUM(B64:B73) -> 0 | C74: =SUM(C64:C73) -> 73509 | D74: 0 | E74: 0 | F74: 0 | G74: 0 | H74: 0
A75: Project 914 Oaks Subd
A76: 1830 - Poles, Towers and Fixtures
A77: 1835 - Overhead Conductors & Devices
A78: 1840 - Underground Conduit | C78: 16024
A79: 1845 - Underground Conductors & Devices | C79: 97357
A80: 1850 - Line Transformers | C80: 66010
A81: 1855 - Services | C81: 1466
A82: 1860 - Meters
A83: 1920 - Computer Hardware
A84: 1925 - Computer Software
A85: 1995 - Contributions and Grants - Credit
A86: Sub-Total | B86: =SUM(B76:B85) -> 0 | C86: =SUM(C76:C85) -> 180857 | D86: =SUM(D76:D85) -> 0 | E86: 0 | F86: 0 | G86: 0 | H86: 0
A87: Project 915 Baldwin Place #8
A88: 1830 - Poles, Towers and Fixtures
A89: 1835 - Overhead Conductors & Devices
A90: 1840 - Underground Conduit | C90: 13565
A91: 1845 - Underground Conductors & Devices | C91: 82665
A92: 1850 - Line Transformers | C92: 45668
A93: 1855 - Services
A94: 1860 - Meters
A95: 1920 - Computer Hardware
A96: 1925 - Computer Software
A97: 1995 - Contributions and Grants - Credit
A98: Sub-Total | B98: =SUM(B88:B97) -> 0 | C98: 141898 | D98: 0 | E98: 0 | F98: 0 | G98: 0 | H98: 0
A99: Project 917 Coon Alley - Bridge to Ldn
A100: 1830 - Poles, Towers and Fixtures | D100: 62785
A101: 1835 - Overhead Conductors & Devices | D101: 103438
A102: 1840 - Underground Conduit
A103: 1845 - Underground Conductors & Devices | D103: 4067
A104: 1850 - Line Transformers | D104: 90714
A105: 1855 - Services | D105: 42194
A106: 1860 - Meters
A107: 1920 - Computer Hardware
A108: 1925 - Computer Software
A109: 1995 - Contributions and Grants - Credit
A110: Sub-Total | B110: =SUM(B100:B109) -> 0 | C110: 0 | D110: 303198 | E110: 0 | F110: 0 | G110: 0 | H110: 0
A111: Project 919 Edgewood Dr
A112: 1830 - Poles, Towers and Fixtures | D112: 17160
A113: 1835 - Overhead Conductors & Devices | D113: 20725
A114: 1840 - Underground Conduit
A115: 1845 - Underground Conductors & Devices | D115: 2061
A116: 1850 - Line Transformers | D116: 22196
A117: 1855 - Services | D117: 7223
A118: 1860 - Meters
A119: 1920 - Computer Hardware
A120: 1925 - Computer Software
A121: 1995 - Contributions and Grants - Credit
A122: Sub-Total | B122: =SUM(B112:B121) -> 0 | C122: 0 | D122: 69365 | E122: 0 | F122: 0 | G122: 0 | H122: 0
A123: Project 921 Wolfe St
A124: 1830 - Poles, Towers and Fixtures | D124: 8615
A125: 1835 - Overhead Conductors & Devices | D125: 15327
A126: 1840 - Underground Conduit | D126: 3479
A127: 1845 - Underground Conductors & Devices | D127: 10715
A128: 1850 - Line Transformers | D128: 42674
A129: 1855 - Services | D129: 19129
A130: 1860 - Meters
A131: 1920 - Computer Hardware
A132: 1925 - Computer Software
A133: 1995 - Contributions and Grants - Credit
A134: Sub-Total | B134: =SUM(B124:B133) -> 0 | C134: 0 | D134: 99939 | E134: 0 | F134: 0 | G134: 0 | H134: 0
A135: Project 922 Concession St
A136: 1830 - Poles, Towers and Fixtures | E136: 81630 | F136: 9728
A137: 1835 - Overhead Conductors & Devices | E137: 57649 | F137: 9871
A138: 1840 - Underground Conduit | E138: 45366 | F138: 7481
A139: 1845 - Underground Conductors & Devices | E139: 67756 | F139: 5886
A140: 1850 - Line Transformers | E140: 178152 | F140: 30981
A141: 1855 - Services | E141: 38032 | F141: 2226
A142: 1860 - Meters
A143: 1920 - Computer Hardware
A144: 1925 - Computer Software
A145: 1995 - Contributions and Grants - Credit
A146: Sub-Total | B146: =SUM(B136:B145) -> 0 | C146: 0 | D146: 0 | E146: 468585 | F146: 66173 | G146: 0 | H146: 0
A147: Project 924 Parkwood
A148: 1830 - Poles, Towers and Fixtures | E148: 31748
A149: 1835 - Overhead Conductors & Devices | E149: 7577
A150: 1840 - Underground Conduit
A151: 1845 - Underground Conductors & Devices
A152: 1850 - Line Transformers | E152: 33800
A153: 1855 - Services | E153: 3826
A154: 1860 - Meters
A155: 1920 - Computer Hardware
A156: 1925 - Computer Software
A157: 1995 - Contributions and Grants - Credit
A158: Sub-Total | B158: =SUM(B148:B157) -> 0 | C158: 0 | D158: 0 | E158: 76951 | F158: 0 | G158: 0 | H158: 0
A159: Project 930 Brock St E
A160: 1830 - Poles, Towers and Fixtures | F160: 65115
A161: 1835 - Overhead Conductors & Devices | F161: 32148
A162: 1840 - Underground Conduit | F162: 36301
A163: 1845 - Underground Conductors & Devices | F163: 62898
A164: 1850 - Line Transformers | F164: 103592
A165: 1855 - Services | F165: 44649
A166: 1860 - Meters
A167: 1920 - Computer Hardware
A168: 1925 - Computer Software
A169: 1995 - Contributions and Grants - Credit
A170: Sub-Total | B170: =SUM(B160:B169) -> 0 | C170: 0 | D170: 0 | E170: 0 | F170: 344703 | G170: 0 | H170: 0
A171: Project 933 Frances St
A172: 1830 - Poles, Towers and Fixtures | G172: 23112
A173: 1835 - Overhead Conductors & Devices | G173: 17334
A174: 1840 - Underground Conduit | G174: 17334
A175: 1845 - Underground Conductors & Devices | G175: 11556
A176: 1850 - Line Transformers | G176: 34668
A177: 1855 - Services | G177: 11556
A178: 1860 - Meters
A179: 1920 - Computer Hardware
A180: 1925 - Computer Software
A181: 1995 - Contributions and Grants - Credit
A182: Sub-Total | B182: =SUM(B172:B181) -> 0 | C182: 0 | D182: 0 | E182: 0 | F182: 0 | G182: 115560 | H182: 0
A183: Project 935 Cambdon Crt
A184: 1830 - Poles, Towers and Fixtures
A185: 1835 - Overhead Conductors & Devices | B185: 4880
A186: 1840 - Underground Conduit
A187: 1845 - Underground Conductors & Devices | B187: 92061
A188: 1850 - Line Transformers | B188: 45809
A189: 1855 - Services | B189: 114070
A190: 1860 - Meters | B190: 44
A191: 1920 - Computer Hardware
A192: 1925 - Computer Software
A193: 1995 - Contributions and Grants - Credit
A194: Sub-Total | B194: =SUM(B184:B193) -> 256864 | C194: 0 | D194: 0 | E194: 0 | F194: 0 | G194: 0 | H194: 0
A195: Project 935 Queen St Apmts
A196: 1830 - Poles, Towers and Fixtures | G196: 17262
A197: 1835 - Overhead Conductors & Devices | G197: 11508
A198: 1840 - Underground Conduit | G198: 28770
A199: 1845 - Underground Conductors & Devices | G199: 23016
A200: 1850 - Line Transformers | G200: 34524
A201: 1855 - Services
A202: 1860 - Meters
A203: 1920 - Computer Hardware
A204: 1925 - Computer Software
... 210 more rows

Sheet App.2-B_Fixed Asset Continuity
M1: File Number: | N1: ='LDC Info'!$E$18 -> EB-2012-0168
M2: Exhibit: | N2: 2
M3: Tab: | N3: 3
M4: Schedule: | N4: 3
M5: Attachment: | N5: 2
M7: Date: | N7: 2012-09-28
M8: Corrected: | N8: 2012-10-22
A9: Appendix 2-B
A10: Fixed Asset Continuity Schedule
F12: Year | G12: 2008
E14: Cost | K14: Accumulated Depreciation
A15: CCA Class | B15: OEB | C15: Description | D15: Depreciation Rate | E15: Opening Balance | F15: Additions | G15: Disposals | H15: Closing Balance | J15: Opening Balance | K15: Additions | L15: Disposals | M15: Closing Balance | N15: Net Book Value
A16: 12 | B16: 1611 | C16: Computer Software (Formally known as Account 1925) | H16: =E16+F16+G16 -> 0 | M16: =J16+K16+L16 -> 0 | N16: =H16+M16 -> 0
A17: CEC | B17: 1612 | C17: Land Rights (Formally known as Account 1906) | H17: =E17+F17+G17 -> 0 | M17: =J17+K17+L17 -> 0 | N17: =H17+M17 -> 0
A18: N/A | B18: 1805 | C18: Land | E18: 11520 | H18: =E18+F18+G18 -> 11520 | M18: =J18+K18+L18 -> 0 | N18: =H18+M18 -> 11520
A19: 47 | B19: 1808 | C19: Buildings | H19: =E19+F19+G19 -> 0 | M19: =J19+K19+L19 -> 0 | N19: =H19+M19 -> 0
A20: 13 | B20: 1810 | C20: Leasehold Improvements | H20: 0 | M20: 0 | N20: 0
A21: 47 | B21: 1815 | C21: Transformer Station Equipment >50 kV | H21: 0 | M21: 0 | N21: 0
A22: 47 | B22: 1820 | C22: Distribution Station Equipment <50 kV | E22: 400152 | H22: 400152 | J22: -306548 | K22: -8664 | M22: -315212 | N22: 84940
A23: 47 | B23: 1825 | C23: Storage Battery Equipment | H23: 0 | M23: 0 | N23: 0
A24: 47 | B24: 1830 | C24: Poles, Towers & Fixtures | E24: 4172500 | F24: 54840 | H24: 4227340 | J24: -2448949.95 | K24: -156076 | M24: -2605025.95 | N24: 1622314.05
A25: 47 | B25: 1835 | C25: Overhead Conductors & Devices | E25: 1037671 | F25: 74261 | G25: 79709 | H25: 1191641 | J25: -140691.5 | K25: -42993 | L25: -79708.9 | M25: -263393.4 | N25: 928247.6
A26: 47 | B26: 1840 | C26: Underground Conduit | E26: 3299066 | F26: 48793 | H26: 3347859 | J26: -1979347.77 | K26: -122959 | M26: -2102306.77 | N26: 1245552.23
A27: 47 | B27: 1845 | C27: Underground Conductors & Devices | E27: 976769 | F27: 311958 | G27: 53741 | H27: 1342468 | J27: -114871 | K27: -46643 | L27: -33737.69 | M27: -195251.69 | N27: 1147216.31
A28: 47 | B28: 1850 | C28: Line Transformers | E28: 3319194 | F28: 300271 | H28: 3619465 | J28: -1615457.13 | K28: -109886 | M28: -1725343.13 | N28: 1894121.87
A29: 47 | B29: 1855 | C29: Services (Overhead & Underground) | E29: 633604 | F29: 113680 | H29: 747284 | J29: -77219.5 | K29: -27617 | M29: -104836.5 | N29: 642447.5
A30: 47 | B30: 1860 | C30: Meters | E30: 717180 | F30: 13884 | H30: 731064 | J30: -534943.91 | K30: -26353 | M30: -561296.91 | N30: 169767.09
A31: 47 | B31: 1860 | C31: Meters (Smart Meters) | H31: 0 | M31: 0 | N31: 0
A32: N/A | B32: 1905 | C32: Land | H32: 0 | M32: 0 | N32: 0
A33: 47 | B33: 1908 | C33: Buildings & Fixtures | H33: 0 | M33: 0 | N33: 0
A34: 13 | B34: 1910 | C34: Leasehold Improvements | H34: 0 | M34: 0 | N34: 0
A35: 8 | B35: 1915 | C35: Office Furniture & Equipment (10 years) | H35: 0 | M35: 0 | N35: 0
A36: 8 | B36: 1915 | C36: Office Furniture & Equipment (5 years) | H36: 0 | M36: 0 | N36: 0
A37: 10 | B37: 1920 | C37: Computer Equipment - Hardware | H37: 0 | M37: 0 | N37: 0
A38: 45 | B38: 1920 | C38: Computer Equip.-Hardware(Post Mar. 22/04) | H38: 0 | M38: 0 | N38: 0
A39: 45.1 | B39: 1920 | C39: Computer Equip.-Hardware(Post Mar. 19/07) | H39: 0 | M39: 0 | N39: 0
A40: 10 | B40: 1930 | C40: Transportation Equipment | H40: 0 | M40: 0 | N40: 0
A41: 8 | B41: 1935 | C41: Stores Equipment | H41: 0 | M41: 0 | N41: 0
A42: 8 | B42: 1940 | C42: Tools, Shop & Garage Equipment | H42: 0 | M42: 0 | N42: 0
A43: 8 | B43: 1945 | C43: Measurement & Testing Equipment | H43: 0 | M43: 0 | N43: 0
A44: 8 | B44: 1950 | C44: Power Operated Equipment | H44: 0 | M44: 0 | N44: 0
A45: 8 | B45: 1955 | C45: Communications Equipment | H45: 0 | M45: 0 | N45: 0
A46: 8 | B46: 1955 | C46: Communication Equipment (Smart Meters) | H46: 0 | M46: 0 | N46: 0
A47: 8 | B47: 1960 | C47: Miscellaneous Equipment | H47: 0 | M47: 0 | N47: 0
A48: 47 | B48: 1975 | C48: Load Management Controls Utility Premises | H48: 0 | M48: 0 | N48: 0
A49: 47 | B49: 1980 | C49: System Supervisor Equipment | H49: 0 | M49: 0 | N49: 0
A50: 47 | B50: 1985 | C50: Miscellaneous Fixed Assets | H50: 0 | M50: 0 | N50: 0
A51: 47 | B51: 1995 | C51: Contributions & Grants | E51: -1658900 | F51: -768457 | H51: -2427357 | J51: 207182 | K51: 81724 | M51: 288906 | N51: -2138451
H52: 0 | M52: 0 | N52: 0
C54: Total | E54: =SUM(E16:E53) -> 12908756 | F54: =SUM(F16:F53) -> 149230 | G54: 133450 | H54: 13191436 | J54: =SUM(J16:J53) -> -7010846.76 | K54: =SUM(K16:K53) -> -459467 | L54: -113446.59 | M54: -7583760.35 | N54: 5607675.65
J56: Less: Fully Allocated Depreciation
A57: 10 | C57: Transportation | J57: Transportation
A58: 8 | C58: Stores Equipment | J58: Stores Equipment
J59: Net Depreciation | L59: =L54-L57-L58 -> -113446.59
A61: Notes:
A63: 1 | B63: Tables in the format outlined above covering all fixed asset accounts should be submitted for the Test Year, Bridge Year and all relevant historical years. At a minimum , the applicant must provide data for the earlier of: 1) all historical years back to its last rebasing; or 2) at least three years of historical actuals, in addition to Bridge Year and Test Year forecasts.
A66: 2 | B66: The "CCA Class" for fixed assets should agree with the CCA Class used for tax purposes in Tax Returns. Fixed Assets sub-components may be used where the underlying asset components are classified under multiple CCA Classes for tax purposes. If an applicant uses any different classes from those shown in the table, an explanation should be provided. (also see note 3 below).
A69: 3 | B69: The table may need to be customized for a utility's asset categories or for any new asset accounts announced or authorized by the Board.
A71: 4 | B71: The depreciation column (D) is not required as the relevant information will be provided in the following 2-C series of appendices.
A72: Appendix 2-B
A73: Fixed Asset Continuity Schedule
F75: Year | G75: 2009
E77: Cost | K77: Accumulated Depreciation
A78: CCA Class | B78: OEB | C78: Description | D78: Depreciation Rate | E78: Opening Balance | F78: Additions | G78: Disposals | H78: Closing Balance | J78: Opening Balance | K78: Additions | L78: Disposals | M78: Closing Balance | N78: Net Book Value
A79: 12 | B79: 1611 | C79: Computer Software (Formally known as Account 1925) | F79: 296643 | H79: =E79+F79+G79 -> 296643 | K79: -74161 | M79: =J79+K79+L79 -> -74161 | N79: =H79+M79 -> 222482
A80: CEC | B80: 1612 | C80: Land Rights (Formally known as Account 1906) | H80: =E80+F80+G80 -> 0 | M80: =J80+K80+L80 -> 0 | N80: =H80+M80 -> 0
A81: N/A | B81: 1805 | C81: Land | E81: 11520.38 | H81: =E81+F81+G81 -> 11520.38 | M81: =J81+K81+L81 -> 0 | N81: =H81+M81 -> 11520.38
A82: 47 | B82: 1808 | C82: Buildings | H82: =E82+F82+G82 -> 0 | M82: =J82+K82+L82 -> 0 | N82: =H82+M82 -> 0
A83: 13 | B83: 1810 | C83: Leasehold Improvements | H83: 0 | M83: 0 | N83: 0
A84: 47 | B84: 1815 | C84: Transformer Station Equipment >50 kV | H84: 0 | M84: 0 | N84: 0
A85: 47 | B85: 1820 | C85: Distribution Station Equipment <50 kV | E85: 400152.28 | H85: 400152.28 | J85: -315211.54 | K85: -8664 | M85: -323875.54 | N85: 76276.74
A86: 47 | B86: 1825 | C86: Storage Battery Equipment | H86: 0 | M86: 0 | N86: 0
A87: 47 | B87: 1830 | C87: Poles, Towers & Fixtures | E87: 4227339.61 | F87: 151293.38 | H87: 4378632.99 | J87: -2605025.95 | K87: -160199 | M87: -2765224.95 | N87: 1613408.04
A88: 47 | B88: 1835 | C88: Overhead Conductors & Devices | E88: 1191640.82 | F88: 202896.45 | H88: 1394537.27 | J88: -263393.4 | K88: -48536 | M88: -311929.4 | N88: 1082607.87
A89: 47 | B89: 1840 | C89: Underground Conduit | E89: 3347859.03 | F89: 4611.11 | H89: 3352470.14 | J89: -2102306.77 | K89: -124027 | M89: -2226333.77 | N89: 1126136.37
A90: 47 | B90: 1845 | C90: Underground Conductors & Devices | E90: 1342467.59 | F90: 28004.25 | H90: 1370471.84 | J90: -195252.19 | K90: -53442 | M90: -248694.19 | N90: 1121777.65
A91: 47 | B91: 1850 | C91: Line Transformers | E91: 3619465.16 | F91: 213800.93 | H91: 3833266.09 | J91: -1725343.13 | K91: -120168 | M91: -1845511.13 | N91: 1987754.96
A92: 47 | B92: 1855 | C92: Services (Overhead & Underground) | E92: 747283.4 | F92: 99582.68 | H92: 846866.08 | J92: -104836.5 | K92: -31882 | M92: -136718.5 | N92: 710147.58
A93: 47 | B93: 1860 | C93: Meters | E93: 731063.91 | F93: 12461.42 | H93: 743525.33 | J93: -561296.91 | K93: -26879 | M93: -588175.91 | N93: 155349.42
A94: 47 | B94: 1860 | C94: Meters (Smart Meters) | H94: 0 | M94: 0 | N94: 0
A95: N/A | B95: 1905 | C95: Land | H95: 0 | M95: 0 | N95: 0
A96: 47 | B96: 1908 | C96: Buildings & Fixtures | H96: 0 | M96: 0 | N96: 0
A97: 13 | B97: 1910 | C97: Leasehold Improvements | H97: 0 | M97: 0 | N97: 0
A98: 8 | B98: 1915 | C98: Office Furniture & Equipment (10 years) | H98: 0 | M98: 0 | N98: 0
A99: 8 | B99: 1915 | C99: Office Furniture & Equipment (5 years) | H99: 0 | M99: 0 | N99: 0
A100: 10 | B100: 1920 | C100: Computer Equipment - Hardware | H100: 0 | M100: 0 | N100: 0
A101: 45 | B101: 1920 | C101: Computer Equip.-Hardware(Post Mar. 22/04) | H101: 0 | M101: 0 | N101: 0
A102: 45.1 | B102: 1920 | C102: Computer Equip.-Hardware(Post Mar. 19/07) | F102: 11532 | H102: 11532 | K102: -2883 | M102: -2883 | N102: 8649
A103: 10 | B103: 1930 | C103: Transportation Equipment | H103: 0 | M103: 0 | N103: 0
A104: 8 | B104: 1935 | C104: Stores Equipment | H104: 0 | M104: 0 | N104: 0
A105: 8 | B105: 1940 | C105: Tools, Shop & Garage Equipment | H105: 0 | M105: 0 | N105: 0
A106: 8 | B106: 1945 | C106: Measurement & Testing Equipment | H106: 0 | M106: 0 | N106: 0
A107: 8 | B107: 1950 | C107: Power Operated Equipment | H107: 0 | M107: 0 | N107: 0
A108: 8 | B108: 1955 | C108: Communications Equipment | H108: 0 | M108: 0 | N108: 0
A109: 8 | B109: 1955 | C109: Communication Equipment (Smart Meters) | H109: 0 | M109: 0 | N109: 0
A110: 8 | B110: 1960 | C110: Miscellaneous Equipment | H110: 0 | M110: 0 | N110: 0
A111: 47 | B111: 1975 | C111: Load Management Controls Utility Premises | H111: 0 | M111: 0 | N111: 0
A112: 47 | B112: 1980 | C112: System Supervisor Equipment | H112: 0 | M112: 0 | N112: 0
A113: 47 | B113: 1985 | C113: Miscellaneous Fixed Assets | H113: 0 | M113: 0 | N113: 0
A114: 47 | B114: 1995 | C114: Contributions & Grants | E114: -2427357 | F114: -91847 | H114: -2519204 | J114: 288906 | K114: 98930 | M114: 387836 | N114: -2131368
H115: 0 | M115: 0 | N115: 0
C117: Total | E117: =SUM(E79:E116) -> 13191435.18 | F117: =SUM(F79:F116) -> 928978.22 | G117: 0 | H117: 14120413.4 | J117: =SUM(J79:J116) -> -7583760.39 | K117: =SUM(K79:K116) -> -551911 | L117: 0 | M117: -8135671.39 | N117: 5984742.01
J119: Less: Fully Allocated Depreciation
A120: 10 | C120: Transportation | J120: Transportation
A121: 8 | C121: Stores Equipment | J121: Stores Equipment
J122: Net Depreciation | L122: =L117-L120-L121 -> 0
A124: Notes:
A126: 1 | B126: Tables in the format outlined above covering all fixed asset accounts should be submitted for the Test Year, Bridge Year and all relevant historical years. At a minimum , the applicant must provide data for the earlier of: 1) all historical years back to its last rebasing; or 2) at least three years of historical actuals, in addition to Bridge Year and Test Year forecasts.
A129: 2 | B129: The "CCA Class" for fixed assets should agree with the CCA Class used for tax purposes in Tax Returns. Fixed Assets sub-components may be used where the underlying asset components are classified under multiple CCA Classes for tax purposes. If an applicant uses any different classes from those shown in the table, an explanation should be provided. (also see note 3 below).
A132: 3 | B132: The table may need to be customized for a utility's asset categories or for any new asset accounts announced or authorized by the Board.
A134: 4 | B134: The depreciation column (D) is not required as the relevant information will be provided in the following 2-C series of appendices.
A135: Appendix 2-B
A136: Fixed Asset Continuity Schedule
F138: Year | G138: 2010
E140: Cost | K140: Accumulated Depreciation
A141: CCA Class | B141: OEB | C141: Description | D141: Depreciation Rate | E141: Opening Balance | F141: Additions | G141: Disposals | H141: Closing Balance | J141: Opening Balance | K141: Additions | L141: Disposals | M141: Closing Balance | N141: Net Book Value
A142: 12 | B142: 1611 | C142: Computer Software (Formally known as Account 1925) | E142: =H79 -> 296643 | H142: =E142+F142+G142 -> 296643 | J142: =M79 -> -74161 | K142: -148322 | M142: =J142+K142+L142 -> -222483 | N142: =H142+M142 -> 74160
A143: CEC | B143: 1612 | C143: Land Rights (Formally known as Account 1906) | H143: =E143+F143+G143 -> 0 | M143: =J143+K143+L143 -> 0 | N143: =H143+M143 -> 0
A144: N/A | B144: 1805 | C144: Land | E144: 11520.38 | H144: =E144+F144+G144 -> 11520.38 | M144: =J144+K144+L144 -> 0 | N144: =H144+M144 -> 11520.38
A145: 47 | B145: 1808 | C145: Buildings | H145: =E145+F145+G145 -> 0 | M145: =J145+K145+L145 -> 0 | N145: =H145+M145 -> 0
A146: 13 | B146: 1810 | C146: Leasehold Improvements | H146: 0 | M146: 0 | N146: 0
A147: 47 | B147: 1815 | C147: Transformer Station Equipment >50 kV | H147: 0 | M147: 0 | N147: 0
A148: 47 | B148: 1820 | C148: Distribution Station Equipment <50 kV | E148: 400152.28 | H148: 400152.28 | J148: -323875.54 | K148: -8664 | M148: -332539.54 | N148: 67612.74
A149: 47 | B149: 1825 | C149: Storage Battery Equipment | H149: 0 | J149: 0 | M149: 0 | N149: 0
A150: 47 | B150: 1830 | C150: Poles, Towers & Fixtures | E150: 4378632.99 | F150: 145184.3 | H150: 4523817.29 | J150: -2765224.95 | K150: -166129 | M150: -2931353.95 | N150: 1592463.34
A151: 47 | B151: 1835 | C151: Overhead Conductors & Devices | E151: 1394537.27 | F151: 87416.66 | H151: 1481953.93 | J151: -311929.4 | K151: -54342 | M151: -366271.4 | N151: 1115682.53
A152: 47 | B152: 1840 | C152: Underground Conduit | E152: 3352470.14 | F152: 47380.07 | H152: 3399850.21 | J152: -2226333.77 | K152: -125067 | M152: -2351400.77 | N152: 1048449.44
A153: 47 | B153: 1845 | C153: Underground Conductors & Devices | E153: 1370471.84 | F153: 71675.79 | H153: 1442147.63 | J153: -248694.19 | K153: -55436 | M153: -304130.19 | N153: 1138017.44
A154: 47 | B154: 1850 | C154: Line Transformers | E154: 3833266.09 | F154: 246240.56 | H154: 4079506.65 | J154: -1845511.13 | K154: -129369 | M154: -1974880.13 | N154: 2104626.52
A155: 47 | B155: 1855 | C155: Services (Overhead & Underground) | E155: 846866.08 | F155: 83692.86 | H155: 930558.94 | J155: -136718.5 | K155: -35547 | M155: -172265.5 | N155: 758293.44
A156: 47 | B156: 1860 | C156: Meters | E156: 743525.33 | F156: 8106.86 | H156: 751632.19 | J156: -588175.91 | K156: -27290 | M156: -615465.91 | N156: 136166.28
A157: 47 | B157: 1860 | C157: Meters (Smart Meters) | H157: 0 | M157: 0 | N157: 0
A158: N/A | B158: 1905 | C158: Land | H158: 0 | M158: 0 | N158: 0
A159: 47 | B159: 1908 | C159: Buildings & Fixtures | H159: 0 | M159: 0 | N159: 0
A160: 13 | B160: 1910 | C160: Leasehold Improvements | H160: 0 | M160: 0 | N160: 0
A161: 8 | B161: 1915 | C161: Office Furniture & Equipment (10 years) | H161: 0 | M161: 0 | N161: 0
A162: 8 | B162: 1915 | C162: Office Furniture & Equipment (5 years) | H162: 0 | M162: 0 | N162: 0
A163: 10 | B163: 1920 | C163: Computer Equipment - Hardware | H163: 0 | M163: 0 | N163: 0
A164: 45 | B164: 1920 | C164: Computer Equip.-Hardware(Post Mar. 22/04) | H164: 0 | M164: 0 | N164: 0
A165: 45.1 | B165: 1920 | C165: Computer Equip.-Hardware(Post Mar. 19/07) | E165: =H102 -> 11532 | H165: 11532 | J165: =M102 -> -2883 | K165: -5766 | M165: -8649 | N165: 2883
A166: 10 | B166: 1930 | C166: Transportation Equipment | H166: 0 | M166: 0 | N166: 0
A167: 8 | B167: 1935 | C167: Stores Equipment | H167: 0 | M167: 0 | N167: 0
A168: 8 | B168: 1940 | C168: Tools, Shop & Garage Equipment | H168: 0 | M168: 0 | N168: 0
A169: 8 | B169: 1945 | C169: Measurement & Testing Equipment | H169: 0 | M169: 0 | N169: 0
A170: 8 | B170: 1950 | C170: Power Operated Equipment | H170: 0 | M170: 0 | N170: 0
A171: 8 | B171: 1955 | C171: Communications Equipment | H171: 0 | M171: 0 | N171: 0
A172: 8 | B172: 1955 | C172: Communication Equipment (Smart Meters) | H172: 0 | M172: 0 | N172: 0
A173: 8 | B173: 1960 | C173: Miscellaneous Equipment | H173: 0 | M173: 0 | N173: 0
A174: 47 | B174: 1975 | C174: Load Management Controls Utility Premises | H174: 0 | M174: 0 | N174: 0
A175: 47 | B175: 1980 | C175: System Supervisor Equipment | H175: 0 | M175: 0 | N175: 0
A176: 47 | B176: 1985 | C176: Miscellaneous Fixed Assets | H176: 0 | M176: 0 | N176: 0
A177: 47 | B177: 1995 | C177: Contributions & Grants | E177: -2519204 | F177: -90325 | H177: -2609529 | J177: 387836 | K177: 102573 | M177: 490409 | N177: -2119120
H178: 0 | M178: 0 | N178: 0
C180: Total | E180: =SUM(E142:E179) -> 14120413.4 | F180: =SUM(F142:F179) -> 599372.1 | G180: 0 | H180: 14719785.5 | J180: =SUM(J142:J179) -> -8135671.39 | K180: =SUM(K142:K179) -> -653359 | L180: 0 | M180: -8789030.39 | N180: 5930755.11
J182: Less: Fully Allocated Depreciation
A183: 10 | C183: Transportation | J183: Transportation
A184: 8 | C184: Stores Equipment | J184: Stores Equipment
J185: Net Depreciation | L185: =L180-L183-L184 -> 0
A187: Notes:
A189: 1 | B189: Tables in the format outlined above covering all fixed asset accounts should be submitted for the Test Year, Bridge Year and all relevant historical years. At a minimum , the applicant must provide data for the earlier of: 1) all historical years back to its last rebasing; or 2) at least three years of historical actuals, in addition to Bridge Year and Test Year forecasts.
A192: 2 | B192: The "CCA Class" for fixed assets should agree with the CCA Class used for tax purposes in Tax Returns. Fixed Assets sub-components may be used where the underlying asset components are classified under multiple CCA Classes for tax purposes. If an applicant uses any different classes from those shown in the table, an explanation should be provided. (also see note 3 below).
A195: 3 | B195: The table may need to be customized for a utility's asset categories or for any new asset accounts announced or authorized by the Board.
A197: 4 | B197: The depreciation column (D) is not required as the relevant information will be provided in the following 2-C series of appendices.
A198: Appendix 2-B
A199: Fixed Asset Continuity Schedule
F201: Year | G201: 2011
E203: Cost | K203: Accumulated Depreciation
A204: CCA Class | B204: OEB | C204: Description | D204: Depreciation Rate | E204: Opening Balance | F204: Additions | G204: Disposals | H204: Closing Balance | J204: Opening Balance | K204: Additions | L204: Disposals | M204: Closing Balance | N204: Net Book Value
A205: 12 | B205: 1611 | C205: Computer Software (Formally known as Account 1925) | E205: 296643 | H205: =E205+F205+G205 -> 296643 | J205: -222483 | K205: -74160 | M205: =J205+K205+L205 -> -296643 | N205: =H205+M205 -> 0
A206: CEC | B206: 1612 | C206: Land Rights (Formally known as Account 1906) | H206: =E206+F206+G206 -> 0 | M206: =J206+K206+L206 -> 0 | N206: =H206+M206 -> 0
A207: N/A | B207: 1805 | C207: Land | E207: 11520.38 | H207: =E207+F207+G207 -> 11520.38 | M207: =J207+K207+L207 -> 0 | N207: =H207+M207 -> 11520.38
A208: 47 | B208: 1808 | C208: Buildings | E208: 0 | H208: =E208+F208+G208 -> 0 | M208: =J208+K208+L208 -> 0 | N208: =H208+M208 -> 0
A209: 13 | B209: 1810 | C209: Leasehold Improvements | E209: 0 | H209: 0 | M209: 0 | N209: 0
A210: 47 | B210: 1815 | C210: Transformer Station Equipment >50 kV | E210: 0 | H210: 0 | M210: 0 | N210: 0
A211: 47 | B211: 1820 | C211: Distribution Station Equipment <50 kV | E211: 400152.28 | H211: 400152.28 | J211: -332540 | K211: -4096 | M211: -336636 | N211: 63516.28
A212: 47 | B212: 1825 | C212: Storage Battery Equipment | E212: 0 | H212: 0 | M212: 0 | N212: 0
A213: 47 | B213: 1830 | C213: Poles, Towers & Fixtures | E213: 4523817.29 | F213: 155221.18 | H213: 4679038.47 | J213: -2931354 | K213: -172136 | M213: -3103490 | N213: 1575548.47
A214: 47 | B214: 1835 | C214: Overhead Conductors & Devices | E214: 1481953.93 | F214: 78387.31 | H214: 1560341.24 | J214: -366271 | K214: -57659 | M214: -423930 | N214: 1136411.24
A215: 47 | B215: 1840 | C215: Underground Conduit | E215: 3399850.21 | F215: 108227.06 | H215: 3508077.27 | J215: -2351401 | K215: -128179 | M215: -2479580 | N215: 1028497.27
A216: 47 | B216: 1845 | C216: Underground Conductors & Devices | E216: 1442147.63 | F216: 87662.71 | H216: 1529810.34 | J216: -304130 | K216: -58622 | M216: -362752 | N216: 1167058.34
A217: 47 | B217: 1850 | C217: Line Transformers | E217: 4079506.65 | F217: 207169.7 | H217: 4286676.35 | J217: -1974880 | K217: -138437 | M217: -2113317 | N217: 2173359.35
A218: 47 | B218: 1855 | C218: Services (Overhead & Underground) | E218: 930558.94 | F218: 152784.82 | H218: 1083343.76 | J218: -172266 | K218: -40277 | M218: -212543 | N218: 870800.76
A219: 47 | B219: 1860 | C219: Meters | E219: 751632.19 | F219: 31804.02 | H219: 783436.21 | J219: -615466 | K219: -28088 | M219: -643554 | N219: 139882.21
A220: 47 | B220: 1860 | C220: Meters (Smart Meters) | H220: 0 | M220: 0 | N220: 0
A221: N/A | B221: 1905 | C221: Land | H221: 0 | M221: 0 | N221: 0
A222: 47 | B222: 1908 | C222: Buildings & Fixtures | H222: 0 | M222: 0 | N222: 0
A223: 13 | B223: 1910 | C223: Leasehold Improvements | H223: 0 | M223: 0 | N223: 0
A224: 8 | B224: 1915 | C224: Office Furniture & Equipment (10 years) | H224: 0 | M224: 0 | N224: 0
A225: 8 | B225: 1915 | C225: Office Furniture & Equipment (5 years) | H225: 0 | M225: 0 | N225: 0
A226: 10 | B226: 1920 | C226: Computer Equipment - Hardware | H226: 0 | M226: 0 | N226: 0
A227: 45 | B227: 1920 | C227: Computer Equip.-Hardware(Post Mar. 22/04) | H227: 0 | M227: 0 | N227: 0
A228: 45.1 | B228: 1920 | C228: Computer Equip.-Hardware(Post Mar. 19/07) | E228: 11532 | H228: 11532 | J228: -8649 | K228: -2883 | M228: -11532 | N228: 0
A229: 10 | B229: 1930 | C229: Transportation Equipment | H229: 0 | M229: 0 | N229: 0
A230: 8 | B230: 1935 | C230: Stores Equipment | H230: 0 | M230: 0 | N230: 0
A231: 8 | B231: 1940 | C231: Tools, Shop & Garage Equipment | H231: 0 | M231: 0 | N231: 0
A232: 8 | B232: 1945 | C232: Measurement & Testing Equipment | H232: 0 | M232: 0 | N232: 0
A233: 8 | B233: 1950 | C233: Power Operated Equipment | H233: 0 | M233: 0 | N233: 0
A234: 8 | B234: 1955 | C234: Communications Equipment | H234: 0 | M234: 0 | N234: 0
A235: 8 | B235: 1955 | C235: Communication Equipment (Smart Meters) | H235: 0 | M235: 0 | N235: 0
A236: 8 | B236: 1960 | C236: Miscellaneous Equipment | H236: 0 | M236: 0 | N236: 0
... 171 more rows

Sheet App.2-CA_CGAAP_DepExp_2011
K1: File Number: | L1: ='LDC Info'!$E$18 -> EB-2012-0168
K2: Exhibit: | L2: N/A
K3: Tab:
K4: Schedule:
K5: Attachment:
K7: Date: | L7: 2012-09-28
A9: Appendix 2-CA
A10: Depreciation and Amortization Expense
A11: Assumes the applicant adopted IFRS for financial reporting purposes January 1, 2012
C12: Year | D12: 2011 | E12: CGAAP
A14: Account | B14: Description | C14: Opening Regulatory Gross PP&E as at Jan 1, 2011 | D14: Less Fully Depreciated | E14: Net for Depreciation | F14: Additions | G14: Total for Depreciation | H14: Years | I14: Depreciation Rate | J14: Depreciation Expense | K14: 2011 Depreciation Expense per Appendix 2-B Fixed Assets, Column K (l) | L14: Variance 2
C15: (a) | D15: (b) | E15: (c) | F15: (d) | G15: (e) = (c) + ½ x (d) 1 | H15: (f) | I15: (g) = 1 / (f) | J15: (h) = (e) / (f) | L15: (m) = (h) - (l)
A16: 1611 | B16: Computer Software (Formally known as Account 1925) | E16: =C16-D16 -> 0 | G16: =E16+0.5*F16 -> 0 | I16: =IF(H16=0,0,1/H16) -> 0 | J16: =IF(H16=0,0,G16/H16) -> 0 | L16: =IF(ISERROR(+J16-K16), 0, +J16-K16) -> 0
A17: 1612 | B17: Land Rights (Formally known as Account 1906) | E17: =C17-D17 -> 0 | G17: =E17+0.5*F17 -> 0 | I17: 0 | J17: 0 | L17: 0
A18: 1805 | B18: Land | E18: 0 | G18: 0 | I18: 0 | J18: 0 | L18: 0
A19: 1808 | B19: Buildings | E19: 0 | G19: 0 | I19: 0 | J19: 0 | L19: 0
A20: 1810 | B20: Leasehold Improvements | E20: 0 | G20: 0 | I20: 0 | J20: 0 | L20: 0
A21: 1815 | B21: Transformer Station Equipment >50 kV | E21: 0 | G21: 0 | I21: 0 | J21: 0 | L21: 0
A22: 1820 | B22: Distribution Station Equipment <50 kV | E22: 0 | G22: 0 | I22: 0 | J22: 0 | L22: 0
A23: 1825 | B23: Storage Battery Equipment | E23: 0 | G23: 0 | I23: 0 | J23: 0 | L23: 0
A24: 1830 | B24: Poles, Towers & Fixtures | E24: 0 | G24: 0 | I24: 0 | J24: 0 | L24: 0
A25: 1835 | B25: Overhead Conductors & Devices | E25: 0 | G25: 0 | I25: 0 | J25: 0 | L25: 0
A26: 1840 | B26: Underground Conduit | E26: 0 | G26: 0 | I26: 0 | J26: 0 | L26: 0
A27: 1845 | B27: Underground Conductors & Devices | E27: 0 | G27: 0 | I27: 0 | J27: 0 | L27: 0
A28: 1850 | B28: Line Transformers | E28: 0 | G28: 0 | I28: 0 | J28: 0 | L28: 0
A29: 1855 | B29: Services (Overhead & Underground) | E29: 0 | G29: 0 | I29: 0 | J29: 0 | L29: 0
A30: 1860 | B30: Meters | E30: 0 | G30: 0 | I30: 0 | J30: 0 | L30: 0
A31: 1860 | B31: Meters (Smart Meters) | E31: 0 | G31: 0 | I31: 0 | J31: 0 | L31: 0
A32: 1905 | B32: Land | E32: 0 | G32: 0 | I32: 0 | J32: 0 | L32: 0
A33: 1908 | B33: Buildings & Fixtures | E33: 0 | G33: 0 | I33: 0 | J33: 0 | L33: 0
A34: 1910 | B34: Leasehold Improvements | E34: 0 | G34: 0 | I34: 0 | J34: 0 | L34: 0
A35: 1915 | B35: Office Furniture & Equipment (10 years) | E35: 0 | G35: 0 | I35: 0 | J35: 0 | L35: 0
A36: 1915 | B36: Office Furniture & Equipment (5 years) | E36: 0 | G36: 0 | I36: 0 | J36: 0 | L36: 0
A37: 1920 | B37: Computer Equipment - Hardware | E37: 0 | G37: 0 | I37: 0 | J37: 0 | L37: 0
A38: 1920 | B38: Computer Equip.-Hardware(Post Mar. 22/04) | E38: 0 | G38: 0 | I38: 0 | J38: 0 | L38: 0
A39: 1920 | B39: Computer Equip.-Hardware(Post Mar. 19/07) | E39: 0 | G39: 0 | I39: 0 | J39: 0 | L39: 0
A40: 1930 | B40: Transportation Equipment | E40: 0 | G40: 0 | I40: 0 | J40: 0 | L40: 0
A41: 1935 | B41: Stores Equipment | E41: 0 | G41: 0 | I41: 0 | J41: 0 | L41: 0
A42: 1940 | B42: Tools, Shop & Garage Equipment | E42: 0 | G42: 0 | I42: 0 | J42: 0 | L42: 0
A43: 1945 | B43: Measurement & Testing Equipment | E43: 0 | G43: 0 | I43: 0 | J43: 0 | L43: 0
A44: 1950 | B44: Power Operated Equipment | E44: 0 | G44: 0 | I44: 0 | J44: 0 | L44: 0
A45: 1955 | B45: Communications Equipment | E45: 0 | G45: 0 | I45: 0 | J45: 0 | L45: 0
A46: 1955 | B46: Communication Equipment (Smart Meters) | E46: 0 | G46: 0 | I46: 0 | J46: 0 | L46: 0
A47: 1960 | B47: Miscellaneous Equipment | E47: 0 | G47: 0 | I47: 0 | J47: 0 | L47: 0
A48: 1975 | B48: Load Management Controls Utility Premises | E48: 0 | G48: 0 | I48: 0 | J48: 0 | L48: 0
A49: 1980 | B49: System Supervisor Equipment | E49: 0 | G49: 0 | I49: 0 | J49: 0 | L49: 0
A50: 1985 | B50: Miscellaneous Fixed Assets | E50: 0 | G50: 0 | I50: 0 | J50: 0 | L50: 0
A51: 1995 | B51: Contributions & Grants | E51: 0 | G51: 0 | I51: 0 | J51: 0 | L51: 0
A52: etc. | E52: 0 | G52: 0 | I52: 0 | J52: 0 | L52: 0
E53: 0 | G53: 0 | I53: 0 | J53: 0 | L53: 0
B54: Total | C54: =SUM(C16:C53) -> 0 | D54: =SUM(D16:D53) -> 0 | E54: =SUM(E16:E53) -> 0 | F54: =SUM(F16:F53) -> 0 | G54: =SUM(G16:G53) -> 0 | J54: =SUM(J16:J53) -> 0 | K54: =SUM(K16:K53) -> 0 | L54: =SUM(L16:L53) -> 0
A56: Notes:
A58: 1 | B58: Board policy of the "half-year" rule - the applicant must ensure that additions in the year attract a half-year depreciation expense in the first year. Deviations from this standard practice must be supported in the application.
A59: 2 | B59: The applicant must provide an explanation of material variances in evidence
A61: General | B61: Applicants must provide a breakdown of depreciation and amortization expense in the above format for all relevant accounts. Asset Retirement Obligations (AROs), depreciation and accretion expense should be disclosed separately consistent with the Notes of historical Audited Financial Statements.

Sheet App.2-CB_MIFRS_DepExp_2011
N1: File Number: | O1: ='LDC Info'!$E$18 -> EB-2012-0168
N2: Exhibit: | O2: N/A
N3: Tab:
N4: Schedule:
N5: Attachment:
N7: Date: | O7: 2012-09-28
A9: Appendix 2-CB
A10: Depreciation and Amortization Expense
A11: Assumes the applicant adopted IFRS for financial reporting purposes January 1, 2012
C12: Year | D12: 2011 | E12: MIFRS
A14: Account | B14: Description | C14: Opening NBV as at Jan 1, 2011 5 | D14: Additions | E14: Average Remaining Life of Opening NBV 4 | F14: Years (new additions only) 3 | G14: Depreciation Rate on New Additions | H14: Depreciation Expense on Opening NBV | I14: Depreciation Expense on Additions 1 | J14: 2011 Depreciation Expense | K14: 2011 Depreciation Expense per Appendix 2-B Fixed Assets, Column K (l) | L14: Variance 2 | M14: Depreciation Expense on 2011 Full Year Additions | O14: 2011 Full Year Depreciation 6
C15: (a) | D15: (d) | E15: (i) | F15: (f) | G15: (g) = 1 / (f) | H15: (j) = (a) / (i) | I15: (h)=((d)*0.5)/(f) | J15: (k) = (j) + (h) | L15: (m) = (k) - (l) | M15: (n) = (d)/(f) | O15: (p) = (j) + (n) - (o)
A16: 1611 | B16: Computer Software (Formally known as Account 1925) | G16: =IF(F16=0,0,1/F16) -> 0 | H16: =IF(E16=0,0,+C16/E16) -> 0 | I16: =IF(F16=0,0,+(D16*0.5)/F16) -> 0 | J16: =IF(ISERROR(+H16+I16), 0, +H16+I16) -> 0 | L16: =IF(ISERROR(+J16-K16), 0, +J16-K16) -> 0 | M16: =IF(F16=0,0,+(D16)/F16) -> 0 | O16: =IF(ISERROR(+M16+H16-N16), 0, +M16+H16-N16) -> 0
A17: 1612 | B17: Land Rights (Formally known as Account 1906) | G17: 0 | H17: 0 | I17: 0 | J17: 0 | L17: 0 | M17: 0 | O17: =IF(ISERROR(+M17+H17-N17), 0, +M17+H17-N17) -> 0
A18: 1805 | B18: Land | G18: 0 | H18: 0 | I18: 0 | J18: 0 | L18: 0 | M18: 0 | O18: 0
A19: 1808 | B19: Buildings | G19: 0 | H19: 0 | I19: 0 | J19: 0 | L19: 0 | M19: 0 | O19: 0
A20: 1810 | B20: Leasehold Improvements | G20: 0 | H20: 0 | I20: 0 | J20: 0 | L20: 0 | M20: 0 | O20: 0
A21: 1815 | B21: Transformer Station Equipment >50 kV | G21: 0 | H21: 0 | I21: 0 | J21: 0 | L21: 0 | M21: 0 | O21: 0
A22: 1820 | B22: Distribution Station Equipment <50 kV | G22: 0 | H22: 0 | I22: 0 | J22: 0 | L22: 0 | M22: 0 | O22: 0
A23: 1825 | B23: Storage Battery Equipment | G23: 0 | H23: 0 | I23: 0 | J23: 0 | L23: 0 | M23: 0 | O23: 0
A24: 1830 | B24: Poles, Towers & Fixtures | G24: 0 | H24: 0 | I24: 0 | J24: 0 | L24: 0 | M24: 0 | O24: 0
A25: 1835 | B25: Overhead Conductors & Devices | G25: 0 | H25: 0 | I25: 0 | J25: 0 | L25: 0 | M25: 0 | O25: 0
A26: 1840 | B26: Underground Conduit | G26: 0 | H26: 0 | I26: 0 | J26: 0 | L26: 0 | M26: 0 | O26: 0
A27: 1845 | B27: Underground Conductors & Devices | G27: 0 | H27: 0 | I27: 0 | J27: 0 | L27: 0 | M27: 0 | O27: 0
A28: 1850 | B28: Line Transformers | G28: 0 | H28: 0 | I28: 0 | J28: 0 | L28: 0 | M28: 0 | O28: 0
A29: 1855 | B29: Services (Overhead & Underground) | G29: 0 | H29: 0 | I29: 0 | J29: 0 | L29: 0 | M29: 0 | O29: 0
A30: 1860 | B30: Meters | G30: 0 | H30: 0 | I30: 0 | J30: 0 | L30: 0 | M30: 0 | O30: 0
A31: 1860 | B31: Meters (Smart Meters) | G31: 0 | H31: 0 | I31: 0 | J31: 0 | L31: 0 | M31: 0 | O31: 0
A32: 1905 | B32: Land | G32: 0 | H32: 0 | I32: 0 | J32: 0 | L32: 0 | M32: 0 | O32: 0
A33: 1908 | B33: Buildings & Fixtures | G33: 0 | H33: 0 | I33: 0 | J33: 0 | L33: 0 | M33: 0 | O33: 0
A34: 1910 | B34: Leasehold Improvements | G34: 0 | H34: 0 | I34: 0 | J34: 0 | L34: 0 | M34: 0 | O34: 0
A35: 1915 | B35: Office Furniture & Equipment (10 years) | G35: 0 | H35: 0 | I35: 0 | J35: 0 | L35: 0 | M35: 0 | O35: 0
A36: 1915 | B36: Office Furniture & Equipment (5 years) | G36: 0 | H36: 0 | I36: 0 | J36: 0 | L36: 0 | M36: 0 | O36: 0
A37: 1920 | B37: Computer Equipment - Hardware | G37: 0 | H37: 0 | I37: 0 | J37: 0 | L37: 0 | M37: 0 | O37: 0
A38: 1920 | B38: Computer Equip.-Hardware(Post Mar. 22/04) | G38: 0 | H38: 0 | I38: 0 | J38: 0 | L38: 0 | M38: 0 | O38: 0
A39: 1920 | B39: Computer Equip.-Hardware(Post Mar. 19/07) | G39: 0 | H39: 0 | I39: 0 | J39: 0 | L39: 0 | M39: 0 | O39: 0
A40: 1930 | B40: Transportation Equipment | G40: 0 | H40: 0 | I40: 0 | J40: 0 | L40: 0 | M40: 0 | O40: 0
A41: 1935 | B41: Stores Equipment | G41: 0 | H41: 0 | I41: 0 | J41: 0 | L41: 0 | M41: 0 | O41: 0
A42: 1940 | B42: Tools, Shop & Garage Equipment | G42: 0 | H42: 0 | I42: 0 | J42: 0 | L42: 0 | M42: 0 | O42: 0
A43: 1945 | B43: Measurement & Testing Equipment | G43: 0 | H43: 0 | I43: 0 | J43: 0 | L43: 0 | M43: 0 | O43: 0
A44: 1950 | B44: Power Operated Equipment | G44: 0 | H44: 0 | I44: 0 | J44: 0 | L44: 0 | M44: 0 | O44: 0
A45: 1955 | B45: Communications Equipment | G45: 0 | H45: 0 | I45: 0 | J45: 0 | L45: 0 | M45: 0 | O45: 0
A46: 1955 | B46: Communication Equipment (Smart Meters) | G46: 0 | H46: 0 | I46: 0 | J46: 0 | L46: 0 | M46: 0 | O46: 0
A47: 1960 | B47: Miscellaneous Equipment | G47: 0 | H47: 0 | I47: 0 | J47: 0 | L47: 0 | M47: 0 | O47: 0
A48: 1975 | B48: Load Management Controls Utility Premises | G48: 0 | H48: 0 | I48: 0 | J48: 0 | L48: 0 | M48: 0 | O48: 0
A49: 1980 | B49: System Supervisor Equipment | G49: 0 | H49: 0 | I49: 0 | J49: 0 | L49: 0 | M49: 0 | O49: 0
A50: 1985 | B50: Miscellaneous Fixed Assets | G50: 0 | H50: 0 | I50: 0 | J50: 0 | L50: 0 | M50: 0 | O50: 0
A51: 1995 | B51: Contributions & Grants | G51: 0 | H51: 0 | I51: 0 | J51: 0 | L51: 0 | M51: 0 | O51: 0
A52: etc. | G52: 0 | H52: 0 | I52: 0 | J52: 0 | L52: 0 | M52: 0 | O52: 0
G53: 0 | H53: 0 | I53: 0 | J53: 0 | L53: 0 | M53: 0 | O53: 0
B54: Total | C54: =SUM(C16:C53) -> 0 | D54: =SUM(D16:D53) -> 0 | H54: =SUM(H16:H53) -> 0 | I54: 0 | J54: 0 | K54: 0 | L54: 0 | M54: 0 | N54: =SUM(N16:N53) -> 0 | O54: 0
A56: Notes:
A58: 1 | B58: Board policy of the "half-year" rule - the applicant must ensure that additions in the year attract a half-year depreciation expense in the first year. Deviations from this standard practice must be supported in the application.
A59: 2 | B59: The applicant must provide an explanation of material variances in evidence
A60: 3 | B60: The applicant should ensure that the years for new additions of assets are the asset useful lives determined by management in accordance with IFRS.
A61: 4 | B61: A recalculation should be performed to determine the average remaining life of opening balance of assets (i.e. excluding 2011 additions) under IFRS. For example, Asset A had a useful life of 20 years under CGAAP. On January 1, 2011, the date of transition, Asset A was 3 years depreciated. As a result, Asset A would have a remaining service life of 17 years (20 years less 3 years) under CGAAP as of January 1, 2011. Due to the transition to IFRS, management re-assessed the asset useful lives under IFRS principles and concluded that the revised useful life of Asset A is now 30 years. Therefore, the average remaining useful life of opening balance of Asset A is determined to be 27 years (30 years less 3 years) under IFRS as of January 1, 2011.
A62: 5 | B62: NBV must exclude assets still on the books but which have been fully amortized or depreciated.
A63: 6 | B63: This column refers to the calculated full year depreciation but excludes the depreciation expense on assets fully depreciated during the year. This column is used for the purpose of calculating depreciation expense in the following year on the next worksheet.
A65: General: | B65: Applicants must provide a breakdown of depreciation and amortization expense in the above format for all relevant accounts. Asset Retirement Obligations (AROs), depreciation and accretion expense should be disclosed separately consistent with the Notes of historical Audited Financial Statements.

Sheet App.2-CC_MIFRS_DepExp_2012
J1: File Number: | K1: ='LDC Info'!$E$18 -> EB-2012-0168
J2: Exhibit: | K2: N/A
J3: Tab:
J4: Schedule:
J5: Attachment:
J7: Date: | K7: 2012-09-28
A9: Appendix 2-CC
A10: Depreciation and Amortization Expense
A11: Assumes the applicant adopted IFRS for financial reporting purposes January 1, 2012
C12: 2012 | D12: MIFRS
A14: Account | B14: Description | C14: Additions | D14: Years (new additions only) | E14: Depreciation Rate on New Additions | F14: 2012 Depreciation Expense 1 | G14: 2012 Depreciation Expense per Apppendix 2-B Fixed Assets, Column K (l) | H14: Variance 2 | I14: Depreciation Expense on 2012 Full Year Additions | J14: Less Depreciation Expense on Assets Fully Depreciated during the year (o) | K14: 2012 Full Year Depreciation 3
C15: (d) | D15: (f) | E15: (g) = 1 / (f) | F15: (h)=2011 Full Year Deprecation + ((d)*0.5)/(f) | H15: (m) = (h) - (l) | I15: (n)=((d))/(f) | K15: (o) = 2011 Full Year Depreciation + (n) - (o)
A16: 1611 | B16: Computer Software (Formally known as Account 1925) | E16: =IF(D16=0,0,1/D16) -> 0 | F16: =IF(D16=0,+'App.2-CB_MIFRS_DepExp_2011'!O16,+'App.2-CB_MIFRS_DepExp_2011'!O16+((C16*0.5)/D16)) -> 0 | H16: =IF(ISERROR(+F16-G16), 0, +F16-G16) -> 0 | I16: =IF(D16=0,0,+(C16)/D16) -> 0 | K16: =IF(ISERROR(+I16+'App.2-CB_MIFRS_DepExp_2011'!O16-J16), 0, +I16+'App.2-CB_MIFRS_DepExp_2011'!O16-J16) -> 0
A17: 1612 | B17: Land Rights (Formally known as Account 1906) | E17: 0 | F17: =IF(D17=0,+'App.2-CB_MIFRS_DepExp_2011'!O17,+'App.2-CB_MIFRS_DepExp_2011'!O17+((C17*0.5)/D17)) -> 0 | H17: 0 | I17: 0 | K17: =IF(ISERROR(+I17+'App.2-CB_MIFRS_DepExp_2011'!O17-J17), 0, +I17+'App.2-CB_MIFRS_DepExp_2011'!O17-J17) -> 0
A18: 1805 | B18: Land | E18: 0 | F18: =IF(D18=0,+'App.2-CB_MIFRS_DepExp_2011'!O18,+'App.2-CB_MIFRS_DepExp_2011'!O18+((C18*0.5)/D18)) -> 0 | H18: 0 | I18: 0 | K18: =IF(ISERROR(+I18+'App.2-CB_MIFRS_DepExp_2011'!O18-J18), 0, +I18+'App.2-CB_MIFRS_DepExp_2011'!O18-J18) -> 0
A19: 1808 | B19: Buildings | E19: 0 | F19: =IF(D19=0,+'App.2-CB_MIFRS_DepExp_2011'!O19,+'App.2-CB_MIFRS_DepExp_2011'!O19+((C19*0.5)/D19)) -> 0 | H19: 0 | I19: 0 | K19: =IF(ISERROR(+I19+'App.2-CB_MIFRS_DepExp_2011'!O19-J19), 0, +I19+'App.2-CB_MIFRS_DepExp_2011'!O19-J19) -> 0
A20: 1810 | B20: Leasehold Improvements | E20: 0 | F20: =IF(D20=0,+'App.2-CB_MIFRS_DepExp_2011'!O20,+'App.2-CB_MIFRS_DepExp_2011'!O20+((C20*0.5)/D20)) -> 0 | H20: 0 | I20: 0 | K20: =IF(ISERROR(+I20+'App.2-CB_MIFRS_DepExp_2011'!O20-J20), 0, +I20+'App.2-CB_MIFRS_DepExp_2011'!O20-J20) -> 0
A21: 1815 | B21: Transformer Station Equipment >50 kV | E21: 0 | F21: =IF(D21=0,+'App.2-CB_MIFRS_DepExp_2011'!O21,+'App.2-CB_MIFRS_DepExp_2011'!O21+((C21*0.5)/D21)) -> 0 | H21: 0 | I21: 0 | K21: =IF(ISERROR(+I21+'App.2-CB_MIFRS_DepExp_2011'!O21-J21), 0, +I21+'App.2-CB_MIFRS_DepExp_2011'!O21-J21) -> 0
A22: 1820 | B22: Distribution Station Equipment <50 kV | E22: 0 | F22: =IF(D22=0,+'App.2-CB_MIFRS_DepExp_2011'!O22,+'App.2-CB_MIFRS_DepExp_2011'!O22+((C22*0.5)/D22)) -> 0 | H22: 0 | I22: 0 | K22: =IF(ISERROR(+I22+'App.2-CB_MIFRS_DepExp_2011'!O22-J22), 0, +I22+'App.2-CB_MIFRS_DepExp_2011'!O22-J22) -> 0
A23: 1825 | B23: Storage Battery Equipment | E23: 0 | F23: =IF(D23=0,+'App.2-CB_MIFRS_DepExp_2011'!O23,+'App.2-CB_MIFRS_DepExp_2011'!O23+((C23*0.5)/D23)) -> 0 | H23: 0 | I23: 0 | K23: =IF(ISERROR(+I23+'App.2-CB_MIFRS_DepExp_2011'!O23-J23), 0, +I23+'App.2-CB_MIFRS_DepExp_2011'!O23-J23) -> 0
A24: 1830 | B24: Poles, Towers & Fixtures | E24: 0 | F24: =IF(D24=0,+'App.2-CB_MIFRS_DepExp_2011'!O24,+'App.2-CB_MIFRS_DepExp_2011'!O24+((C24*0.5)/D24)) -> 0 | H24: 0 | I24: 0 | K24: =IF(ISERROR(+I24+'App.2-CB_MIFRS_DepExp_2011'!O24-J24), 0, +I24+'App.2-CB_MIFRS_DepExp_2011'!O24-J24) -> 0
A25: 1835 | B25: Overhead Conductors & Devices | E25: 0 | F25: =IF(D25=0,+'App.2-CB_MIFRS_DepExp_2011'!O25,+'App.2-CB_MIFRS_DepExp_2011'!O25+((C25*0.5)/D25)) -> 0 | H25: 0 | I25: 0 | K25: =IF(ISERROR(+I25+'App.2-CB_MIFRS_DepExp_2011'!O25-J25), 0, +I25+'App.2-CB_MIFRS_DepExp_2011'!O25-J25) -> 0
A26: 1840 | B26: Underground Conduit | E26: 0 | F26: =IF(D26=0,+'App.2-CB_MIFRS_DepExp_2011'!O26,+'App.2-CB_MIFRS_DepExp_2011'!O26+((C26*0.5)/D26)) -> 0 | H26: 0 | I26: 0 | K26: =IF(ISERROR(+I26+'App.2-CB_MIFRS_DepExp_2011'!O26-J26), 0, +I26+'App.2-CB_MIFRS_DepExp_2011'!O26-J26) -> 0
A27: 1845 | B27: Underground Conductors & Devices | E27: 0 | F27: =IF(D27=0,+'App.2-CB_MIFRS_DepExp_2011'!O27,+'App.2-CB_MIFRS_DepExp_2011'!O27+((C27*0.5)/D27)) -> 0 | H27: 0 | I27: 0 | K27: =IF(ISERROR(+I27+'App.2-CB_MIFRS_DepExp_2011'!O27-J27), 0, +I27+'App.2-CB_MIFRS_DepExp_2011'!O27-J27) -> 0
A28: 1850 | B28: Line Transformers | E28: 0 | F28: =IF(D28=0,+'App.2-CB_MIFRS_DepExp_2011'!O28,+'App.2-CB_MIFRS_DepExp_2011'!O28+((C28*0.5)/D28)) -> 0 | H28: 0 | I28: 0 | K28: =IF(ISERROR(+I28+'App.2-CB_MIFRS_DepExp_2011'!O28-J28), 0, +I28+'App.2-CB_MIFRS_DepExp_2011'!O28-J28) -> 0
A29: 1855 | B29: Services (Overhead & Underground) | E29: 0 | F29: =IF(D29=0,+'App.2-CB_MIFRS_DepExp_2011'!O29,+'App.2-CB_MIFRS_DepExp_2011'!O29+((C29*0.5)/D29)) -> 0 | H29: 0 | I29: 0 | K29: =IF(ISERROR(+I29+'App.2-CB_MIFRS_DepExp_2011'!O29-J29), 0, +I29+'App.2-CB_MIFRS_DepExp_2011'!O29-J29) -> 0
A30: 1860 | B30: Meters | E30: 0 | F30: =IF(D30=0,+'App.2-CB_MIFRS_DepExp_2011'!O30,+'App.2-CB_MIFRS_DepExp_2011'!O30+((C30*0.5)/D30)) -> 0 | H30: 0 | I30: 0 | K30: =IF(ISERROR(+I30+'App.2-CB_MIFRS_DepExp_2011'!O30-J30), 0, +I30+'App.2-CB_MIFRS_DepExp_2011'!O30-J30) -> 0
A31: 1860 | B31: Meters (Smart Meters) | E31: 0 | F31: =IF(D31=0,+'App.2-CB_MIFRS_DepExp_2011'!O31,+'App.2-CB_MIFRS_DepExp_2011'!O31+((C31*0.5)/D31)) -> 0 | H31: 0 | I31: 0 | K31: =IF(ISERROR(+I31+'App.2-CB_MIFRS_DepExp_2011'!O31-J31), 0, +I31+'App.2-CB_MIFRS_DepExp_2011'!O31-J31) -> 0
A32: 1905 | B32: Land | E32: 0 | F32: =IF(D32=0,+'App.2-CB_MIFRS_DepExp_2011'!O32,+'App.2-CB_MIFRS_DepExp_2011'!O32+((C32*0.5)/D32)) -> 0 | H32: 0 | I32: 0 | K32: =IF(ISERROR(+I32+'App.2-CB_MIFRS_DepExp_2011'!O32-J32), 0, +I32+'App.2-CB_MIFRS_DepExp_2011'!O32-J32) -> 0
A33: 1908 | B33: Buildings & Fixtures | E33: 0 | F33: =IF(D33=0,+'App.2-CB_MIFRS_DepExp_2011'!O33,+'App.2-CB_MIFRS_DepExp_2011'!O33+((C33*0.5)/D33)) -> 0 | H33: 0 | I33: 0 | K33: =IF(ISERROR(+I33+'App.2-CB_MIFRS_DepExp_2011'!O33-J33), 0, +I33+'App.2-CB_MIFRS_DepExp_2011'!O33-J33) -> 0
A34: 1910 | B34: Leasehold Improvements | E34: 0 | F34: =IF(D34=0,+'App.2-CB_MIFRS_DepExp_2011'!O34,+'App.2-CB_MIFRS_DepExp_2011'!O34+((C34*0.5)/D34)) -> 0 | H34: 0 | I34: 0 | K34: =IF(ISERROR(+I34+'App.2-CB_MIFRS_DepExp_2011'!O34-J34), 0, +I34+'App.2-CB_MIFRS_DepExp_2011'!O34-J34) -> 0
A35: 1915 | B35: Office Furniture & Equipment (10 years) | E35: 0 | F35: =IF(D35=0,+'App.2-CB_MIFRS_DepExp_2011'!O35,+'App.2-CB_MIFRS_DepExp_2011'!O35+((C35*0.5)/D35)) -> 0 | H35: 0 | I35: 0 | K35: =IF(ISERROR(+I35+'App.2-CB_MIFRS_DepExp_2011'!O35-J35), 0, +I35+'App.2-CB_MIFRS_DepExp_2011'!O35-J35) -> 0
A36: 1915 | B36: Office Furniture & Equipment (5 years) | E36: 0 | F36: =IF(D36=0,+'App.2-CB_MIFRS_DepExp_2011'!O36,+'App.2-CB_MIFRS_DepExp_2011'!O36+((C36*0.5)/D36)) -> 0 | H36: 0 | I36: 0 | K36: =IF(ISERROR(+I36+'App.2-CB_MIFRS_DepExp_2011'!O36-J36), 0, +I36+'App.2-CB_MIFRS_DepExp_2011'!O36-J36) -> 0
A37: 1920 | B37: Computer Equipment - Hardware | E37: 0 | F37: =IF(D37=0,+'App.2-CB_MIFRS_DepExp_2011'!O37,+'App.2-CB_MIFRS_DepExp_2011'!O37+((C37*0.5)/D37)) -> 0 | H37: 0 | I37: 0 | K37: =IF(ISERROR(+I37+'App.2-CB_MIFRS_DepExp_2011'!O37-J37), 0, +I37+'App.2-CB_MIFRS_DepExp_2011'!O37-J37) -> 0
A38: 1920 | B38: Computer Equip.-Hardware(Post Mar. 22/04) | E38: 0 | F38: =IF(D38=0,+'App.2-CB_MIFRS_DepExp_2011'!O38,+'App.2-CB_MIFRS_DepExp_2011'!O38+((C38*0.5)/D38)) -> 0 | H38: 0 | I38: 0 | K38: =IF(ISERROR(+I38+'App.2-CB_MIFRS_DepExp_2011'!O38-J38), 0, +I38+'App.2-CB_MIFRS_DepExp_2011'!O38-J38) -> 0
A39: 1920 | B39: Computer Equip.-Hardware(Post Mar. 19/07) | E39: 0 | F39: =IF(D39=0,+'App.2-CB_MIFRS_DepExp_2011'!O39,+'App.2-CB_MIFRS_DepExp_2011'!O39+((C39*0.5)/D39)) -> 0 | H39: 0 | I39: 0 | K39: =IF(ISERROR(+I39+'App.2-CB_MIFRS_DepExp_2011'!O39-J39), 0, +I39+'App.2-CB_MIFRS_DepExp_2011'!O39-J39) -> 0
A40: 1930 | B40: Transportation Equipment | E40: 0 | F40: =IF(D40=0,+'App.2-CB_MIFRS_DepExp_2011'!O40,+'App.2-CB_MIFRS_DepExp_2011'!O40+((C40*0.5)/D40)) -> 0 | H40: 0 | I40: 0 | K40: =IF(ISERROR(+I40+'App.2-CB_MIFRS_DepExp_2011'!O40-J40), 0, +I40+'App.2-CB_MIFRS_DepExp_2011'!O40-J40) -> 0
A41: 1935 | B41: Stores Equipment | E41: 0 | F41: =IF(D41=0,+'App.2-CB_MIFRS_DepExp_2011'!O41,+'App.2-CB_MIFRS_DepExp_2011'!O41+((C41*0.5)/D41)) -> 0 | H41: 0 | I41: 0 | K41: =IF(ISERROR(+I41+'App.2-CB_MIFRS_DepExp_2011'!O41-J41), 0, +I41+'App.2-CB_MIFRS_DepExp_2011'!O41-J41) -> 0
A42: 1940 | B42: Tools, Shop & Garage Equipment | E42: 0 | F42: =IF(D42=0,+'App.2-CB_MIFRS_DepExp_2011'!O42,+'App.2-CB_MIFRS_DepExp_2011'!O42+((C42*0.5)/D42)) -> 0 | H42: 0 | I42: 0 | K42: =IF(ISERROR(+I42+'App.2-CB_MIFRS_DepExp_2011'!O42-J42), 0, +I42+'App.2-CB_MIFRS_DepExp_2011'!O42-J42) -> 0
A43: 1945 | B43: Measurement & Testing Equipment | E43: 0 | F43: =IF(D43=0,+'App.2-CB_MIFRS_DepExp_2011'!O43,+'App.2-CB_MIFRS_DepExp_2011'!O43+((C43*0.5)/D43)) -> 0 | H43: 0 | I43: 0 | K43: =IF(ISERROR(+I43+'App.2-CB_MIFRS_DepExp_2011'!O43-J43), 0, +I43+'App.2-CB_MIFRS_DepExp_2011'!O43-J43) -> 0
A44: 1950 | B44: Power Operated Equipment | E44: 0 | F44: =IF(D44=0,+'App.2-CB_MIFRS_DepExp_2011'!O44,+'App.2-CB_MIFRS_DepExp_2011'!O44+((C44*0.5)/D44)) -> 0 | H44: 0 | I44: 0 | K44: =IF(ISERROR(+I44+'App.2-CB_MIFRS_DepExp_2011'!O44-J44), 0, +I44+'App.2-CB_MIFRS_DepExp_2011'!O44-J44) -> 0
A45: 1955 | B45: Communications Equipment | E45: 0 | F45: =IF(D45=0,+'App.2-CB_MIFRS_DepExp_2011'!O45,+'App.2-CB_MIFRS_DepExp_2011'!O45+((C45*0.5)/D45)) -> 0 | H45: 0 | I45: 0 | K45: =IF(ISERROR(+I45+'App.2-CB_MIFRS_DepExp_2011'!O45-J45), 0, +I45+'App.2-CB_MIFRS_DepExp_2011'!O45-J45) -> 0
A46: 1955 | B46: Communication Equipment (Smart Meters) | E46: 0 | F46: =IF(D46=0,+'App.2-CB_MIFRS_DepExp_2011'!O46,+'App.2-CB_MIFRS_DepExp_2011'!O46+((C46*0.5)/D46)) -> 0 | H46: 0 | I46: 0 | K46: =IF(ISERROR(+I46+'App.2-CB_MIFRS_DepExp_2011'!O46-J46), 0, +I46+'App.2-CB_MIFRS_DepExp_2011'!O46-J46) -> 0
A47: 1960 | B47: Miscellaneous Equipment | E47: 0 | F47: =IF(D47=0,+'App.2-CB_MIFRS_DepExp_2011'!O47,+'App.2-CB_MIFRS_DepExp_2011'!O47+((C47*0.5)/D47)) -> 0 | H47: 0 | I47: 0 | K47: =IF(ISERROR(+I47+'App.2-CB_MIFRS_DepExp_2011'!O47-J47), 0, +I47+'App.2-CB_MIFRS_DepExp_2011'!O47-J47) -> 0
A48: 1975 | B48: Load Management Controls Utility Premises | E48: 0 | F48: =IF(D48=0,+'App.2-CB_MIFRS_DepExp_2011'!O48,+'App.2-CB_MIFRS_DepExp_2011'!O48+((C48*0.5)/D48)) -> 0 | H48: 0 | I48: 0 | K48: =IF(ISERROR(+I48+'App.2-CB_MIFRS_DepExp_2011'!O48-J48), 0, +I48+'App.2-CB_MIFRS_DepExp_2011'!O48-J48) -> 0
A49: 1980 | B49: System Supervisor Equipment | E49: 0 | F49: =IF(D49=0,+'App.2-CB_MIFRS_DepExp_2011'!O49,+'App.2-CB_MIFRS_DepExp_2011'!O49+((C49*0.5)/D49)) -> 0 | H49: 0 | I49: 0 | K49: =IF(ISERROR(+I49+'App.2-CB_MIFRS_DepExp_2011'!O49-J49), 0, +I49+'App.2-CB_MIFRS_DepExp_2011'!O49-J49) -> 0
A50: 1985 | B50: Miscellaneous Fixed Assets | E50: 0 | F50: =IF(D50=0,+'App.2-CB_MIFRS_DepExp_2011'!O50,+'App.2-CB_MIFRS_DepExp_2011'!O50+((C50*0.5)/D50)) -> 0 | H50: 0 | I50: 0 | K50: =IF(ISERROR(+I50+'App.2-CB_MIFRS_DepExp_2011'!O50-J50), 0, +I50+'App.2-CB_MIFRS_DepExp_2011'!O50-J50) -> 0
A51: 1995 | B51: Contributions & Grants | E51: 0 | F51: =IF(D51=0,+'App.2-CB_MIFRS_DepExp_2011'!O51,+'App.2-CB_MIFRS_DepExp_2011'!O51+((C51*0.5)/D51)) -> 0 | H51: 0 | I51: 0 | K51: =IF(ISERROR(+I51+'App.2-CB_MIFRS_DepExp_2011'!O51-J51), 0, +I51+'App.2-CB_MIFRS_DepExp_2011'!O51-J51) -> 0
A52: etc. | E52: 0 | F52: =IF(D52=0,+'App.2-CB_MIFRS_DepExp_2011'!O52,+'App.2-CB_MIFRS_DepExp_2011'!O52+((C52*0.5)/D52)) -> 0 | H52: 0 | I52: 0 | K52: =IF(ISERROR(+I52+'App.2-CB_MIFRS_DepExp_2011'!O52-J52), 0, +I52+'App.2-CB_MIFRS_DepExp_2011'!O52-J52) -> 0
E53: 0 | F53: =IF(D53=0,+'App.2-CB_MIFRS_DepExp_2011'!O53,+'App.2-CB_MIFRS_DepExp_2011'!O53+((C53*0.5)/D53)) -> 0 | H53: 0 | I53: 0 | K53: =IF(ISERROR(+I53+'App.2-CB_MIFRS_DepExp_2011'!O53-J53), 0, +I53+'App.2-CB_MIFRS_DepExp_2011'!O53-J53) -> 0
B54: Total | C54: =SUM(C16:C53) -> 0 | F54: =SUM(F16:F53) -> 0 | G54: 0 | H54: 0 | I54: 0 | J54: 0 | K54: 0
A56: Notes:
A57: 1 | B57: Board policy of the "half-year" rule - the applicant must ensure that additions in the year attract a half-year depreciation expense in the first year. Deviations from this standard practice must be supported in the application.
A58: 2 | B58: The applicant must provide an explanation of material variances in evidence
A59: 3 | B59: This column refers to the calculated full year depreciation but excludes the depreciation expense on assets fully depreciated during the year. This column is used for the purpose of calculating depreciation expense in the following year on the next worksheet.
A61: General: | B61: Applicants must provide a breakdown of depreciation and amortization expense in the above format for all relevant accounts. Asset Retirement Obligations (AROs), depreciation and accretion expense should be disclosed separately consistent with the Notes of historical Audited Financial Statements.

Sheet App.2-CD_MIFRS_DepExp_2013
G1: File Number: | H1: ='LDC Info'!$E$18 -> EB-2012-0168
G2: Exhibit: | H2: N/A
G3: Tab:
G4: Schedule:
G5: Attachment:
G7: Date: | H7: 2012-09-28
A9: Appendix 2-CD
A10: Depreciation and Amortization Expense
A11: Assumes the applicant adopted IFRS for financial reporting purposes January 1, 2012
C12: 2013 | D12: MIFRS
A14: Account | B14: Description | C14: Additions | D14: Years (new additions only) | E14: Depreciation Rate on New Additions | F14: 2013 Depreciation Expense 1 | G14: 2013 Depreciation Expense per Appendix 2-B Fixed Assets, Column K (l) | H14: Variance 2
C15: (d) | D15: (f) | E15: (g) = 1 / (f) | F15: (h)=2012 Full Year Depreciation + ((d)*0.5)/(f) | H15: (m) = (h) - (l)
A16: 1611 | B16: Computer Software (Formally known as Account 1925) | E16: =IF(D16=0,0,1/D16) -> 0 | F16: =IF(D16=0,'App.2-CC_MIFRS_DepExp_2012'!K16,+'App.2-CC_MIFRS_DepExp_2012'!K16+((C16*0.5)/D16)) -> 0 | H16: =IF(ISERROR(+F16-G16), 0, +F16-G16) -> 0
A17: 1612 | B17: Land Rights (Formally known as Account 1906) | E17: 0 | F17: =IF(D17=0,'App.2-CC_MIFRS_DepExp_2012'!K17,+'App.2-CC_MIFRS_DepExp_2012'!K17+((C17*0.5)/D17)) -> 0 | H17: 0
A18: 1805 | B18: Land | E18: 0 | F18: =IF(D18=0,'App.2-CC_MIFRS_DepExp_2012'!K18,+'App.2-CC_MIFRS_DepExp_2012'!K18+((C18*0.5)/D18)) -> 0 | H18: 0
A19: 1808 | B19: Buildings | E19: 0 | F19: =IF(D19=0,'App.2-CC_MIFRS_DepExp_2012'!K19,+'App.2-CC_MIFRS_DepExp_2012'!K19+((C19*0.5)/D19)) -> 0 | H19: 0
A20: 1810 | B20: Leasehold Improvements | E20: 0 | F20: =IF(D20=0,'App.2-CC_MIFRS_DepExp_2012'!K20,+'App.2-CC_MIFRS_DepExp_2012'!K20+((C20*0.5)/D20)) -> 0 | H20: 0
A21: 1815 | B21: Transformer Station Equipment >50 kV | E21: 0 | F21: =IF(D21=0,'App.2-CC_MIFRS_DepExp_2012'!K21,+'App.2-CC_MIFRS_DepExp_2012'!K21+((C21*0.5)/D21)) -> 0 | H21: 0
A22: 1820 | B22: Distribution Station Equipment <50 kV | E22: 0 | F22: =IF(D22=0,'App.2-CC_MIFRS_DepExp_2012'!K22,+'App.2-CC_MIFRS_DepExp_2012'!K22+((C22*0.5)/D22)) -> 0 | H22: 0
A23: 1825 | B23: Storage Battery Equipment | E23: 0 | F23: =IF(D23=0,'App.2-CC_MIFRS_DepExp_2012'!K23,+'App.2-CC_MIFRS_DepExp_2012'!K23+((C23*0.5)/D23)) -> 0 | H23: 0
A24: 1830 | B24: Poles, Towers & Fixtures | E24: 0 | F24: =IF(D24=0,'App.2-CC_MIFRS_DepExp_2012'!K24,+'App.2-CC_MIFRS_DepExp_2012'!K24+((C24*0.5)/D24)) -> 0 | H24: 0
A25: 1835 | B25: Overhead Conductors & Devices | E25: 0 | F25: =IF(D25=0,'App.2-CC_MIFRS_DepExp_2012'!K25,+'App.2-CC_MIFRS_DepExp_2012'!K25+((C25*0.5)/D25)) -> 0 | H25: 0
A26: 1840 | B26: Underground Conduit | E26: 0 | F26: =IF(D26=0,'App.2-CC_MIFRS_DepExp_2012'!K26,+'App.2-CC_MIFRS_DepExp_2012'!K26+((C26*0.5)/D26)) -> 0 | H26: 0
A27: 1845 | B27: Underground Conductors & Devices | E27: 0 | F27: =IF(D27=0,'App.2-CC_MIFRS_DepExp_2012'!K27,+'App.2-CC_MIFRS_DepExp_2012'!K27+((C27*0.5)/D27)) -> 0 | H27: 0
A28: 1850 | B28: Line Transformers | E28: 0 | F28: =IF(D28=0,'App.2-CC_MIFRS_DepExp_2012'!K28,+'App.2-CC_MIFRS_DepExp_2012'!K28+((C28*0.5)/D28)) -> 0 | H28: 0
A29: 1855 | B29: Services (Overhead & Underground) | E29: 0 | F29: =IF(D29=0,'App.2-CC_MIFRS_DepExp_2012'!K29,+'App.2-CC_MIFRS_DepExp_2012'!K29+((C29*0.5)/D29)) -> 0 | H29: 0
A30: 1860 | B30: Meters | E30: 0 | F30: =IF(D30=0,'App.2-CC_MIFRS_DepExp_2012'!K30,+'App.2-CC_MIFRS_DepExp_2012'!K30+((C30*0.5)/D30)) -> 0 | H30: 0
A31: 1860 | B31: Meters (Smart Meters) | E31: 0 | F31: =IF(D31=0,'App.2-CC_MIFRS_DepExp_2012'!K31,+'App.2-CC_MIFRS_DepExp_2012'!K31+((C31*0.5)/D31)) -> 0 | H31: 0
A32: 1905 | B32: Land | E32: 0 | F32: =IF(D32=0,'App.2-CC_MIFRS_DepExp_2012'!K32,+'App.2-CC_MIFRS_DepExp_2012'!K32+((C32*0.5)/D32)) -> 0 | H32: 0
A33: 1908 | B33: Buildings & Fixtures | E33: 0 | F33: =IF(D33=0,'App.2-CC_MIFRS_DepExp_2012'!K33,+'App.2-CC_MIFRS_DepExp_2012'!K33+((C33*0.5)/D33)) -> 0 | H33: 0
A34: 1910 | B34: Leasehold Improvements | E34: 0 | F34: =IF(D34=0,'App.2-CC_MIFRS_DepExp_2012'!K34,+'App.2-CC_MIFRS_DepExp_2012'!K34+((C34*0.5)/D34)) -> 0 | H34: 0
A35: 1915 | B35: Office Furniture & Equipment (10 years) | E35: 0 | F35: =IF(D35=0,'App.2-CC_MIFRS_DepExp_2012'!K35,+'App.2-CC_MIFRS_DepExp_2012'!K35+((C35*0.5)/D35)) -> 0 | H35: 0
A36: 1915 | B36: Office Furniture & Equipment (5 years) | E36: 0 | F36: =IF(D36=0,'App.2-CC_MIFRS_DepExp_2012'!K36,+'App.2-CC_MIFRS_DepExp_2012'!K36+((C36*0.5)/D36)) -> 0 | H36: 0
A37: 1920 | B37: Computer Equipment - Hardware | E37: 0 | F37: =IF(D37=0,'App.2-CC_MIFRS_DepExp_2012'!K37,+'App.2-CC_MIFRS_DepExp_2012'!K37+((C37*0.5)/D37)) -> 0 | H37: 0
A38: 1920 | B38: Computer Equip.-Hardware(Post Mar. 22/04) | E38: 0 | F38: =IF(D38=0,'App.2-CC_MIFRS_DepExp_2012'!K38,+'App.2-CC_MIFRS_DepExp_2012'!K38+((C38*0.5)/D38)) -> 0 | H38: 0
A39: 1920 | B39: Computer Equip.-Hardware(Post Mar. 19/07) | E39: 0 | F39: =IF(D39=0,'App.2-CC_MIFRS_DepExp_2012'!K39,+'App.2-CC_MIFRS_DepExp_2012'!K39+((C39*0.5)/D39)) -> 0 | H39: 0
A40: 1930 | B40: Transportation Equipment | E40: 0 | F40: =IF(D40=0,'App.2-CC_MIFRS_DepExp_2012'!K40,+'App.2-CC_MIFRS_DepExp_2012'!K40+((C40*0.5)/D40)) -> 0 | H40: 0
A41: 1935 | B41: Stores Equipment | E41: 0 | F41: =IF(D41=0,'App.2-CC_MIFRS_DepExp_2012'!K41,+'App.2-CC_MIFRS_DepExp_2012'!K41+((C41*0.5)/D41)) -> 0 | H41: 0
A42: 1940 | B42: Tools, Shop & Garage Equipment | E42: 0 | F42: =IF(D42=0,'App.2-CC_MIFRS_DepExp_2012'!K42,+'App.2-CC_MIFRS_DepExp_2012'!K42+((C42*0.5)/D42)) -> 0 | H42: 0
A43: 1945 | B43: Measurement & Testing Equipment | E43: 0 | F43: =IF(D43=0,'App.2-CC_MIFRS_DepExp_2012'!K43,+'App.2-CC_MIFRS_DepExp_2012'!K43+((C43*0.5)/D43)) -> 0 | H43: 0
A44: 1950 | B44: Power Operated Equipment | E44: 0 | F44: =IF(D44=0,'App.2-CC_MIFRS_DepExp_2012'!K44,+'App.2-CC_MIFRS_DepExp_2012'!K44+((C44*0.5)/D44)) -> 0 | H44: 0
A45: 1955 | B45: Communications Equipment | E45: 0 | F45: =IF(D45=0,'App.2-CC_MIFRS_DepExp_2012'!K45,+'App.2-CC_MIFRS_DepExp_2012'!K45+((C45*0.5)/D45)) -> 0 | H45: 0
A46: 1955 | B46: Communication Equipment (Smart Meters) | E46: 0 | F46: =IF(D46=0,'App.2-CC_MIFRS_DepExp_2012'!K46,+'App.2-CC_MIFRS_DepExp_2012'!K46+((C46*0.5)/D46)) -> 0 | H46: 0
A47: 1960 | B47: Miscellaneous Equipment | E47: 0 | F47: =IF(D47=0,'App.2-CC_MIFRS_DepExp_2012'!K47,+'App.2-CC_MIFRS_DepExp_2012'!K47+((C47*0.5)/D47)) -> 0 | H47: 0
A48: 1975 | B48: Load Management Controls Utility Premises | E48: 0 | F48: =IF(D48=0,'App.2-CC_MIFRS_DepExp_2012'!K48,+'App.2-CC_MIFRS_DepExp_2012'!K48+((C48*0.5)/D48)) -> 0 | H48: 0
A49: 1980 | B49: System Supervisor Equipment | E49: 0 | F49: =IF(D49=0,'App.2-CC_MIFRS_DepExp_2012'!K49,+'App.2-CC_MIFRS_DepExp_2012'!K49+((C49*0.5)/D49)) -> 0 | H49: 0
A50: 1985 | B50: Miscellaneous Fixed Assets | E50: 0 | F50: =IF(D50=0,'App.2-CC_MIFRS_DepExp_2012'!K50,+'App.2-CC_MIFRS_DepExp_2012'!K50+((C50*0.5)/D50)) -> 0 | H50: 0
A51: 1995 | B51: Contributions & Grants | E51: 0 | F51: =IF(D51=0,'App.2-CC_MIFRS_DepExp_2012'!K51,+'App.2-CC_MIFRS_DepExp_2012'!K51+((C51*0.5)/D51)) -> 0 | H51: 0
A52: etc. | E52: 0 | F52: =IF(D52=0,'App.2-CC_MIFRS_DepExp_2012'!K52,+'App.2-CC_MIFRS_DepExp_2012'!K52+((C52*0.5)/D52)) -> 0 | H52: 0
E53: 0 | F53: =IF(D53=0,'App.2-CC_MIFRS_DepExp_2012'!K53,+'App.2-CC_MIFRS_DepExp_2012'!K53+((C53*0.5)/D53)) -> 0 | H53: 0
B54: Total | C54: =SUM(C16:C53) -> 0 | F54: =SUM(F16:F53) -> 0 | G54: =SUM(G16:G53) -> 0 | H54: =SUM(H16:H53) -> 0
B55: Depreciation expense adjustment resulting from amortization of Account 1575 | F55: 0
B56: Total Depreciation expense to be included in the test year revenue requirement | F56: =+F54+F55 -> 0
A57: Notes:
A58: 1 | B58: Board policy of the "half-year" rule - the applicant must ensure that additions in the year attract a half-year depreciation expense in the first year. Deviations from this standard practice must be supported in the application.
A59: 2 | B59: The applicant must provide an explanation of material variances in evidence
A61: General: | B61: Applicants must provide a breakdown of depreciation and amortization expense in the above format for all relevant accounts. Asset Retirement Obligations (AROs), depreciation and accretion expense should be disclosed separately consistent with the Notes of historical Audited Financial Statements.

Sheet App.2-CE_CGAAP_DepExp_2011
K1: File Number: | L1: ='LDC Info'!$E$18 -> EB-2012-0168
K2: Exhibit: | L2: N/A
K3: Tab:
K4: Schedule:
K5: Attachment:
K7: Date: | L7: 2012-09-28
A9: Appendix 2-CE
A10: Depreciation and Amortization Expense
A11: Assumes the applicant adopted IFRS for financial reporting purposes January 1, 2013
C12: Year | D12: 2011 | E12: CGAAP
A14: Account | B14: Description | C14: Opening Regulatory Gross PP&E as at Jan 1, 2011 | D14: Less Fully Depreciated | E14: Net for Depreciation | F14: Additions | G14: Total for Depreciation | H14: Years | I14: Depreciation Rate | J14: 2011 Depreciation Expense | K14: 2011 Depreciation Expense per Appendix 2-B Fixed Assets, Column K (l) | L14: Variance 2
C15: (a) | D15: (b) | E15: (c) | F15: (d) | G15: (e) = (c) + ½ x (d) 1 | H15: (f) | I15: (g) = 1 / (f) | J15: (h) = (e) / (f) | L15: (m) = (h) - (l)
A16: 1611 | B16: Computer Software (Formally known as Account 1925) | C16: 296643.35 | E16: =C16-D16 -> 296643.35 | G16: =E16+0.5*F16 -> 296643.35 | H16: 2 | I16: =IF(H16=0,"",1/H16) -> 0.5 | J16: =IF(H16=0,0,G16/H16) -> 148321.675 | K16: 105633 | L16: =IF(ISERROR(+J16-K16), "", +J16-K16) -> 42688.675
A17: 1612 | B17: Land Rights (Formally known as Account 1906) | E17: =C17-D17 -> 0 | G17: =E17+0.5*F17 -> 0 | J17: 0 | L17: =IF(ISERROR(+J17-K17), "", +J17-K17) -> 0
A18: 1805 | B18: Land | C18: 11520.38 | E18: 11520.38 | G18: 11520.38 | J18: 0 | L18: 0
A19: 1808 | B19: Buildings | C19: 0 | E19: 0 | G19: 0 | J19: 0 | L19: 0
A20: 1810 | B20: Leasehold Improvements | C20: 0 | E20: 0 | G20: 0 | J20: 0 | L20: 0
A21: 1815 | B21: Transformer Station Equipment >50 kV | C21: 0 | E21: 0 | G21: 0 | J21: 0 | L21: 0
A22: 1820 | B22: Distribution Station Equipment <50 kV | C22: 159487.78 | E22: 159487.78 | G22: 159487.78 | H22: 25 | I22: 0.04 | J22: 6379.5112 | K22: 4095.96 | L22: 2283.5512
A23: 1825 | B23: Storage Battery Equipment | C23: 0 | E23: 0 | G23: 0 | J23: 0 | L23: 0
A24: 1830 | B24: Poles, Towers & Fixtures | C24: 4225788.03 | E24: 4225788.03 | F24: 155221.18 | G24: 4303398.62 | H24: 25 | I24: 0.04 | J24: 172135.9448 | K24: 172136 | L24: -0.0552
A25: 1835 | B25: Overhead Conductors & Devices | C25: 1402245.03 | E25: 1402245.03 | F25: 78387.31 | G25: 1441438.685 | H25: 25 | I25: 0.04 | J25: 57657.5474 | K25: 57659 | L25: -1.4526
A26: 1840 | B26: Underground Conduit | C26: 3150337.95 | E26: 3150337.95 | F26: 108227.06 | G26: 3204451.48 | H26: 25 | I26: 0.04 | J26: 128178.0592 | K26: 128179 | L26: -0.9408
A27: 1845 | B27: Underground Conductors & Devices | C27: 1421731.94 | E27: 1421731.94 | F27: 87662.71 | G27: 1465563.295 | H27: 25 | I27: 0.04 | J27: 58622.5318 | K27: 58622 | L27: 0.5318
A28: 1850 | B28: Line Transformers | C28: 3357360.66 | E28: 3357360.66 | F28: 207169.7 | G28: 3460945.51 | H28: 25 | I28: 0.04 | J28: 138437.8204 | K28: 138437 | L28: 0.8204
A29: 1855 | B29: Services (Overhead & Underground) | C29: 930558.94 | E29: 930558.94 | F29: 152784.82 | G29: 1006951.35 | H29: 25 | I29: 0.04 | J29: 40278.054 | K29: 40277 | L29: 1.054
A30: 1860 | B30: Meters | C30: 686344.03 | E30: 686344.03 | F30: 31804.02 | G30: 702246.04 | H30: 25 | I30: 0.04 | J30: 28089.8416 | K30: 28088 | L30: 1.8416
A31: 1860 | B31: Meters (Smart Meters) | E31: 0 | G31: 0 | J31: 0 | K31: 65400 | L31: -65400
A32: 1905 | B32: Land | E32: 0 | G32: 0 | J32: 0 | L32: 0
A33: 1908 | B33: Buildings & Fixtures | E33: 0 | G33: 0 | J33: 0 | L33: 0
A34: 1910 | B34: Leasehold Improvements | E34: 0 | G34: 0 | J34: 0 | L34: 0
A35: 1915 | B35: Office Furniture & Equipment (10 years) | E35: 0 | G35: 0 | J35: 0 | L35: 0
A36: 1915 | B36: Office Furniture & Equipment (5 years) | E36: 0 | G36: 0 | J36: 0 | L36: 0
A37: 1920 | B37: Computer Equipment - Hardware | E37: 0 | G37: 0 | J37: 0 | L37: 0
A38: 1920 | B38: Computer Equip.-Hardware(Post Mar. 22/04) | E38: 0 | G38: 0 | J38: 0 | L38: 0
A39: 1920 | B39: Computer Equip.-Hardware(Post Mar. 19/07) | C39: 11531.65 | E39: 11531.65 | G39: 11531.65 | H39: 5 | I39: 0.2 | J39: 2306.33 | K39: 4114 | L39: -1807.67
A40: 1930 | B40: Transportation Equipment | E40: 0 | G40: 0 | J40: 0 | L40: 0
A41: 1935 | B41: Stores Equipment | E41: 0 | G41: 0 | J41: 0 | L41: 0
A42: 1940 | B42: Tools, Shop & Garage Equipment | E42: 0 | G42: 0 | J42: 0 | L42: 0
A43: 1945 | B43: Measurement & Testing Equipment | E43: 0 | G43: 0 | J43: 0 | L43: 0
A44: 1950 | B44: Power Operated Equipment | E44: 0 | G44: 0 | J44: 0 | L44: 0
A45: 1955 | B45: Communications Equipment | E45: 0 | G45: 0 | J45: 0 | L45: 0
A46: 1955 | B46: Communication Equipment (Smart Meters) | E46: 0 | G46: 0 | J46: 0 | L46: 0
A47: 1960 | B47: Miscellaneous Equipment | E47: 0 | G47: 0 | J47: 0 | L47: 0
A48: 1975 | B48: Load Management Controls Utility Premises | E48: 0 | G48: 0 | J48: 0 | L48: 0
A49: 1980 | B49: System Supervisor Equipment | E49: 0 | G49: 0 | J49: 0 | L49: 0
A50: 1985 | B50: Miscellaneous Fixed Assets | E50: 0 | G50: 0 | J50: 0 | L50: 0
A51: 1995 | B51: Contributions & Grants | C51: -2609528.71 | E51: -2609528.71 | F51: -172792.7 | G51: -2695925.06 | H51: 25 | I51: 0.04 | J51: -107837.0024 | K51: -107836 | L51: -1.0024
A52: etc. | E52: 0 | G52: 0 | J52: 0 | L52: 0
E53: 0 | G53: 0 | J53: 0 | L53: 0
B54: Total | C54: =SUM(C16:C53) -> 13044021.03 | D54: =SUM(D16:D53) -> 0 | E54: =SUM(E16:E53) -> 13044021.03 | F54: =SUM(F16:F53) -> 648464.1 | G54: =SUM(G16:G53) -> 13368253.08 | J54: =SUM(J16:J53) -> 672570.313 | K54: =SUM(K16:K53) -> 694804.96 | L54: =SUM(L16:L53) -> -22234.647
A56: Notes:
A57: 1 | B57: Board policy of the "half-year" rule - the applicant must ensure that additions in the year attract a half-year depreciation expense in the first year. Deviations from this standard practice must be supported in the application.
A58: 2 | B58: The applicant must provide an explanation of material variances in evidence
A59: General: | B59: Applicants must provide a breakdown of depreciation and amortization expense in the above format for all relevant accounts. Asset Retirement Obligations (AROs), depreciation and accretion expense should be disclosed separately consistent with the Notes of historical Audited Financial Statements.

Sheet App.2-CF_CGAAP_DepExp_2012
K1: File Number: | L1: ='LDC Info'!$E$18 -> EB-2012-0168
K2: Exhibit: | L2: N/A
K3: Tab:
K4: Schedule:
K5: Attachment:
K7: Date: | L7: 2012-09-28
A9: Appendix 2-CF
A10: Depreciation and Amortization Expense
A11: Assumes the applicant adopted IFRS for financial reporting purposes January 1, 2013
C12: Year | D12: 2012 | E12: CGAAP
A14: Account | B14: Description | C14: Opening Regulatory Gross PP&E as at Jan 1, 2012 | D14: Less Fully Depreciated | E14: Net for Depreciation | F14: Additions | G14: Total for Depreciation | H14: Years | I14: Depreciation Rate | J14: 2012 Depreciation Expense | K14: 2012 Depreciation Expense per Appendix 2-B Fixed Assets, Column K (l) | L14: Variance 2
C15: (a) | D15: (b) | E15: (c) | F15: (d) | G15: (e) = (c) + ½ x (d) 1 | H15: (f) | I15: (g) = 1 / (f) | J15: (h) = (e) / (f) | L15: (m) = (h) - (l)
A16: 1611 | B16: Computer Software (Formally known as Account 1925) | C16: 550489.35 | E16: =C16-D16 -> 550489.35 | G16: =E16+0.5*F16 -> 550489.35 | H16: 5 | I16: =IF(H16=0,0,1/H16) -> 0.2 | J16: =IF(H16=0,0,G16/H16) -> 110097.87 | K16: 110098 | L16: =IF(ISERROR(+J16-K16), 0, +J16-K16) -> -0.13
A17: 1612 | B17: Land Rights (Formally known as Account 1906) | E17: =C17-D17 -> 0 | G17: =E17+0.5*F17 -> 0 | I17: 0 | J17: 0 | L17: 0
A18: 1805 | B18: Land | C18: 11520.38 | E18: 11520.38 | G18: 11520.38 | I18: 0 | J18: 0 | L18: 0
A19: 1808 | B19: Buildings | C19: 0 | E19: 0 | G19: 0 | I19: 0 | J19: 0 | L19: 0
A20: 1810 | B20: Leasehold Improvements | C20: 0 | E20: 0 | G20: 0 | I20: 0 | J20: 0 | L20: 0
A21: 1815 | B21: Transformer Station Equipment >50 kV | C21: 0 | E21: 0 | G21: 0 | I21: 0 | J21: 0 | L21: 0
A22: 1820 | B22: Distribution Station Equipment <50 kV | C22: 159487.78 | D22: 73650 | E22: 85837.78 | G22: 85837.78 | H22: 25 | I22: 0.04 | J22: 3433.5112 | K22: 3434 | L22: -0.4888
A23: 1825 | B23: Storage Battery Equipment | C23: 0 | E23: 0 | G23: 0 | I23: 0 | J23: 0 | L23: 0
A24: 1830 | B24: Poles, Towers & Fixtures | C24: 4381009.21 | E24: 4381009.21 | F24: 126800 | G24: 4444409.21 | H24: 25 | I24: 0.04 | J24: 177776.3684 | K24: 177777 | L24: -0.6316
A25: 1835 | B25: Overhead Conductors & Devices | C25: 1480632.34 | E25: 1480632.34 | F25: 83520 | G25: 1522392.34 | H25: 25 | I25: 0.04 | J25: 60895.6936 | K25: 60896 | L25: -0.3064
A26: 1840 | B26: Underground Conduit | C26: 3258565.01 | E26: 3258565.01 | F26: 64620 | G26: 3290875.01 | H26: 25 | I26: 0.04 | J26: 131635.0004 | K26: 131635 | L26: 0.000400000019
A27: 1845 | B27: Underground Conductors & Devices | C27: 1509394.65 | E27: 1509394.65 | F27: 58095 | G27: 1538442.15 | H27: 25 | I27: 0.04 | J27: 61537.686 | K27: 61538 | L27: -0.314
A28: 1850 | B28: Line Transformers | C28: 3564530.36 | E28: 3564530.36 | F28: 151980 | G28: 3640520.36 | H28: 25 | I28: 0.04 | J28: 145620.8144 | K28: 145621 | L28: -0.1856
A29: 1855 | B29: Services (Overhead & Underground) | C29: 1083343.76 | E29: 1083343.76 | F29: 59785 | G29: 1113236.26 | H29: 25 | I29: 0.04 | J29: 44529.4504 | K29: 44528 | L29: 1.4504
A30: 1860 | B30: Meters | C30: 718148.05 | D30: 528275 | E30: 189873.05 | F30: 28000 | G30: 203873.05 | H30: 25 | I30: 0.04 | J30: 8154.922 | K30: 8153 | L30: 1.922
A31: 1860 | B31: Meters (Smart Meters) | C31: 1010844 | E31: 1010844 | G31: 1010844 | H31: 15 | I31: 0.06666666667 | J31: 67389.6 | K31: 67389 | L31: 0.6
A32: 1905 | B32: Land | E32: 0 | G32: 0 | I32: 0 | J32: 0 | L32: 0
A33: 1908 | B33: Buildings & Fixtures | E33: 0 | G33: 0 | I33: 0 | J33: 0 | L33: 0
A34: 1910 | B34: Leasehold Improvements | E34: 0 | G34: 0 | I34: 0 | J34: 0 | L34: 0
A35: 1915 | B35: Office Furniture & Equipment (10 years) | E35: 0 | G35: 0 | I35: 0 | J35: 0 | L35: 0
A36: 1915 | B36: Office Furniture & Equipment (5 years) | E36: 0 | G36: 0 | I36: 0 | J36: 0 | L36: 0
A37: 1920 | B37: Computer Equipment - Hardware | E37: 0 | G37: 0 | I37: 0 | J37: 0 | L37: 0
A38: 1920 | B38: Computer Equip.-Hardware(Post Mar. 22/04) | E38: 0 | G38: 0 | I38: 0 | J38: 0 | L38: 0
A39: 1920 | B39: Computer Equip.-Hardware(Post Mar. 19/07) | C39: 20574.65 | E39: 20574.65 | G39: 20574.65 | H39: 5 | I39: 0.2 | J39: 4114.93 | K39: 4115 | L39: -0.07
A40: 1930 | B40: Transportation Equipment | E40: 0 | G40: 0 | I40: 0 | J40: 0 | L40: 0
A41: 1935 | B41: Stores Equipment | E41: 0 | G41: 0 | I41: 0 | J41: 0 | L41: 0
A42: 1940 | B42: Tools, Shop & Garage Equipment | E42: 0 | G42: 0 | I42: 0 | J42: 0 | L42: 0
A43: 1945 | B43: Measurement & Testing Equipment | E43: 0 | G43: 0 | I43: 0 | J43: 0 | L43: 0
A44: 1950 | B44: Power Operated Equipment | E44: 0 | G44: 0 | I44: 0 | J44: 0 | L44: 0
A45: 1955 | B45: Communications Equipment | E45: 0 | G45: 0 | I45: 0 | J45: 0 | L45: 0
A46: 1955 | B46: Communication Equipment (Smart Meters) | E46: 0 | G46: 0 | I46: 0 | J46: 0 | L46: 0
A47: 1960 | B47: Miscellaneous Equipment | E47: 0 | G47: 0 | I47: 0 | J47: 0 | L47: 0
A48: 1975 | B48: Load Management Controls Utility Premises | E48: 0 | G48: 0 | I48: 0 | J48: 0 | L48: 0
A49: 1980 | B49: System Supervisor Equipment | E49: 0 | G49: 0 | I49: 0 | J49: 0 | L49: 0
A50: 1985 | B50: Miscellaneous Fixed Assets | E50: 0 | G50: 0 | I50: 0 | J50: 0 | L50: 0
A51: 1995 | B51: Contributions & Grants | C51: -2782321.41 | E51: -2782321.41 | F51: -10300 | G51: -2787471.41 | H51: 25 | I51: 0.04 | J51: -111498.8564 | K51: -111498 | L51: -0.8564
A52: etc. | E52: 0 | G52: 0 | I52: 0 | J52: 0 | L52: 0
E53: 0 | G53: 0 | I53: 0 | J53: 0 | L53: 0
B54: Total | C54: =SUM(C16:C53) -> 14966218.13 | D54: =SUM(D16:D53) -> 601925 | E54: =SUM(E16:E53) -> 14364293.13 | F54: =SUM(F16:F53) -> 562500 | G54: =SUM(G16:G53) -> 14645543.13 | J54: =SUM(J16:J53) -> 703686.99 | K54: =SUM(K16:K53) -> 703686 | L54: =SUM(L16:L53) -> 0.99
A56: Notes:
A57: 1 | B57: Board policy of the "half-year" rule - the applicant must ensure that additions in the year attract a half-year depreciation expense in the first year. Deviations from this standard practice must be supported in the application.
A58: 2 | B58: The applicant must provide an explanation of material variances in evidence
A60: General: | B60: Applicants must provide a breakdown of depreciation and amortization expense in the above format for all relevant accounts. Asset Retirement Obligations (AROs), depreciation and accretion expense should be disclosed separately consistent with the Notes of historical Audited Financial Statements.

Sheet App.2-CG_MIFRS_DepExp_2012
N1: File Number: | O1: ='LDC Info'!$E$18 -> EB-2012-0168
N2: Exhibit: | O2: 9
N3: Tab: | O3: 3
N4: Schedule: | O4: 2
N5: Attachment: | O5: 1
N7: Date: | O7: 2012-09-28
A9: Appendix 2-CG
A10: Depreciation and Amortization Expense
A11: Assumes the applicant adopted IFRS for financial reporting purposes January 1, 2013
C12: Year | D12: 2012 | E12: MIFRS
A14: Account | B14: Description | C14: Opening NBV as at Jan 1, 2012 5 | D14: Additions | E14: Average Remaining Life of Opening NBV 4 | F14: Years (new additions only) 3 | G14: Depreciation Rate on New Additions | H14: Depreciation Expense on Opening NBV | I14: Depreciation Expense on Additions 1 | J14: 2012 Depreciation Expense | K14: 2012 Depreciation Expense per Appendix 2-B Fixed Assets, Column K (l) | L14: Variance 2 | M14: Depreciation Expense on 2012 Full Year Additions | N14: Less Depreciation Expense on Assets Fully Depreciated during the year (o) | O14: 2012 Full Year Depreciation 6
C15: (a) | D15: (d) | E15: (i) | F15: (f) | G15: (g) = 1 / (f) | H15: (j) = (a) / (i) | I15: (h)=((d)*0.5)/(f) | J15: (k) = (j) + (h) | L15: (m) = (k) - (l) | M15: (n)=((d))/(f) | O15: (p) = (j) + (n) - (o)
A16: 1611 - 1 | B16: Computer Software (Formally known as Account 1925) [Regular] | C16: 0 | F16: 5 | G16: =IF(F16=0,0,1/F16) -> 0.2 | H16: =IF(E16=0,0,+C16/E16) -> 0 | I16: =IF(F16=0,0,+(D16*0.5)/F16) -> 0 | J16: =IF(ISERROR(+H16+I16), 0, +H16+I16) -> 0 | L16: =IF(ISERROR(+J16-K16), 0, +J16-K16) -> 0 | M16: =IF(F16=0,0,+(D16)/F16) -> 0 | O16: =IF(ISERROR(+M16+H16-N16), 0, +M16+H16-N16) -> 0
A17: 1611 - 2 | B17: Computer Software (Formally known as Account 1925) [Smart meter related] | G17: =IF(F17=0,0,1/F17) -> 0 | H17: =IF(E17=0,0,+C17/E17) -> 0 | I17: =IF(F17=0,0,+(D17*0.5)/F17) -> 0 | J17: =IF(ISERROR(+H17+I17), 0, +H17+I17) -> 0 | L17: =IF(ISERROR(+J17-K17), 0, +J17-K17) -> 0 | M17: =IF(F17=0,0,+(D17)/F17) -> 0 | O17: =IF(ISERROR(+M17+H17-N17), 0, +M17+H17-N17) -> 0
A18: 1612 | B18: Land Rights (Formally known as Account 1906) | C18: 0 | G18: 0 | H18: 0 | I18: 0 | J18: 0 | L18: 0 | M18: 0 | O18: =IF(ISERROR(+M18+H18-N18), 0, +M18+H18-N18) -> 0
A19: 1805 | B19: Land | C19: 11520.38 | G19: 0 | H19: 0 | I19: 0 | J19: 0 | L19: 0 | M19: 0 | O19: 0
A20: 1808 | B20: Buildings | C20: 0 | G20: 0 | H20: 0 | I20: =IF(F20=0,0,+(D20*0.5)/F20) -> 0 | J20: 0 | L20: 0 | M20: 0 | O20: 0
A21: 1810 | B21: Leasehold Improvements | C21: 0 | G21: 0 | H21: 0 | I21: 0 | J21: 0 | L21: 0 | M21: 0 | O21: 0
A22: 1815 | B22: Transformer Station Equipment >50 kV | C22: 0 | G22: 0 | H22: 0 | I22: 0 | J22: 0 | L22: 0 | M22: 0 | O22: 0
A23: 1820 | B23: Distribution Station Equipment <50 kV | C23: 63516.28 | E23: =C23/2145.94 -> 29.59834851 | F23: 40 | G23: 0.025 | H23: 2145.94 | I23: 0 | J23: 2145.94 | K23: 2145.94 | L23: 0 | M23: 0 | O23: 2145.94
A24: 1825 | B24: Storage Battery Equipment | C24: 0 | G24: 0 | H24: 0 | I24: 0 | J24: 0 | L24: 0 | M24: 0 | O24: 0
A25: 1830 | B25: Poles, Towers & Fixtures | C25: 1575548.47 | D25: 126800 | E25: =C25/44777.59 -> 35.18609353 | F25: 50 | G25: 0.02 | H25: 44777.59 | I25: 1268 | J25: =IF(ISERROR(+H25+I25), 0, +H25+I25) -> 46045.59 | K25: 46045.59 | L25: 0 | M25: =IF(F25=0,0,+(D25)/F25) -> 2536 | O25: =IF(ISERROR(+M25+H25-N25), 0, +M25+H25-N25) -> 47313.59
A26: 1835 | B26: Overhead Conductors & Devices | C26: 1136411.24 | D26: =25056+58464 -> 83520 | E26: =C26/33314.23 -> 34.11188672 | F26: 50 | G26: 0.02 | H26: 33314.23 | I26: 835.2 | J26: 34149.43 | K26: 34253.83 | L26: =IF(ISERROR(+J26-K26), 0, +J26-K26) -> -104.4 | M26: 1670.4 | O26: 34984.63
A27: 1840 | B27: Underground Conduit | C27: 1028497.27 | D27: 64620 | E27: =C27/30225.3 -> 34.02769435 | F27: 50 | G27: 0.02 | H27: 30225.3 | I27: 646.2 | J27: 30871.5 | K27: 30871.5 | L27: 0 | M27: 1292.4 | O27: 31517.7
A28: 1845 | B28: Underground Conductors & Devices | C28: 1167058.34 | D28: 58095 | E28: =C28/50119.26 -> 23.28562593 | F28: 30 | G28: 0.03333333333 | H28: 50119.26 | I28: 968.25 | J28: 51087.51 | K28: 51087.51 | L28: 0 | M28: 1936.5 | O28: 52055.76
A29: 1850 | B29: Line Transformers | C29: 2173359.35 | D29: 151980 | E29: =C29/72782.72 -> 29.86092509 | F29: 40 | G29: 0.025 | H29: 72782.72 | I29: 1899.75 | J29: 74682.47 | K29: 74682.47 | L29: 0 | M29: 3799.5 | O29: 76582.22
A30: 1855 | B30: Services (Overhead & Underground) | C30: 870800.76 | D30: =49442.2+10342.8 -> 59785 | E30: =C30/24390.53 -> 35.70241237 | F30: 45 | G30: 0.02222222222 | H30: 24390.53 | I30: 664.2777778 | J30: 25054.80778 | K30: 25014.24 | L30: 40.56777778 | M30: 1328.555556 | O30: 25719.08556
A31: 1860 | B31: Meters | C31: 139882.21 | D31: 28000 | E31: =C31/7594.92 -> 18.41786484 | F31: 25 | G31: 0.04 | H31: 7594.92 | I31: 560 | J31: 8154.92 | K31: 8154.92 | L31: 9.094947018e-13 | M31: 1120 | O31: 8714.92
A32: 1860 | B32: Meters (Smart Meters) | C32: 0 | F32: 15 | G32: 0.06666666667 | H32: 0 | I32: 0 | J32: 0 | L32: 0 | M32: 0 | O32: 0
A33: 1905 | B33: Land | C33: 0 | G33: 0 | H33: 0 | I33: 0 | J33: 0 | L33: 0 | M33: 0 | O33: 0
A34: 1908 | B34: Buildings & Fixtures | C34: 0 | G34: 0 | H34: 0 | I34: 0 | J34: 0 | L34: 0 | M34: 0 | O34: 0
A35: 1910 | B35: Leasehold Improvements | C35: 0 | G35: 0 | H35: 0 | I35: 0 | J35: 0 | L35: 0 | M35: 0 | O35: 0
A36: 1915 | B36: Office Furniture & Equipment (10 years) | C36: 0 | G36: 0 | H36: 0 | I36: 0 | J36: 0 | L36: 0 | M36: 0 | O36: 0
A37: 1915 | B37: Office Furniture & Equipment (5 years) | C37: 0 | G37: 0 | H37: 0 | I37: 0 | J37: 0 | L37: 0 | M37: 0 | O37: 0
A38: 1920 | B38: Computer Equipment - Hardware | C38: 0 | G38: 0 | H38: 0 | I38: 0 | J38: 0 | L38: 0 | M38: 0 | O38: 0
A39: 1920 | B39: Computer Equip.-Hardware(Post Mar. 22/04) | C39: 0 | G39: 0 | H39: 0 | I39: 0 | J39: 0 | L39: 0 | M39: 0 | O39: 0
A40: 1920 - 1 | B40: Computer Equip.-Hardware(Post Mar. 19/07) | C40: 0 | F40: 5 | G40: 0.2 | H40: 0 | I40: 0 | J40: 0 | L40: 0 | M40: 0 | O40: 0
A41: 1920 - 2 | B41: Computer Equip.-Hardware(Post Mar. 19/07) [Smart Meters related] | C41: 0 | G41: =IF(F41=0,0,1/F41) -> 0 | H41: =IF(E41=0,0,+C41/E41) -> 0 | I41: =IF(F41=0,0,+(D41*0.5)/F41) -> 0 | J41: =IF(ISERROR(+H41+I41), 0, +H41+I41) -> 0 | L41: =IF(ISERROR(+J41-K41), 0, +J41-K41) -> 0 | M41: =IF(F41=0,0,+(D41)/F41) -> 0 | O41: =IF(ISERROR(+M41+H41-N41), 0, +M41+H41-N41) -> 0
A42: 1930 | B42: Transportation Equipment | C42: 0 | G42: 0 | H42: 0 | I42: 0 | J42: 0 | L42: 0 | M42: 0 | O42: 0
A43: 1935 | B43: Stores Equipment | C43: 0 | G43: 0 | H43: 0 | I43: 0 | J43: 0 | L43: 0 | M43: 0 | O43: 0
A44: 1940 | B44: Tools, Shop & Garage Equipment | C44: 0 | G44: 0 | H44: 0 | I44: 0 | J44: 0 | L44: 0 | M44: 0 | O44: 0
A45: 1945 | B45: Measurement & Testing Equipment | C45: 0 | G45: 0 | H45: 0 | I45: 0 | J45: 0 | L45: 0 | M45: 0 | O45: 0
A46: 1950 | B46: Power Operated Equipment | C46: 0 | G46: 0 | H46: 0 | I46: 0 | J46: 0 | L46: 0 | M46: 0 | O46: 0
A47: 1955 | B47: Communications Equipment | C47: 0 | G47: 0 | H47: 0 | I47: 0 | J47: 0 | L47: 0 | M47: 0 | O47: 0
A48: 1955 | B48: Communication Equipment (Smart Meters) | C48: 0 | G48: 0 | H48: 0 | I48: 0 | J48: 0 | L48: 0 | M48: 0 | O48: 0
A49: 1960 | B49: Miscellaneous Equipment | C49: 0 | G49: 0 | H49: 0 | I49: 0 | J49: 0 | L49: 0 | M49: 0 | O49: 0
A50: 1975 | B50: Load Management Controls Utility Premises | C50: 0 | G50: 0 | H50: 0 | I50: 0 | J50: 0 | L50: 0 | M50: 0 | O50: 0
A51: 1980 | B51: System Supervisor Equipment | C51: 0 | G51: 0 | H51: 0 | I51: 0 | J51: 0 | L51: 0 | M51: 0 | O51: 0
A52: 1985 | B52: Miscellaneous Fixed Assets | C52: 0 | G52: 0 | H52: 0 | I52: 0 | J52: 0 | L52: 0 | M52: 0 | O52: 0
A53: 1995 | B53: Contributions & Grants | C53: -2184076.41 | D53: -10300 | E53: 31.4 | F53: 40 | G53: 0.025 | H53: -69556.57357 | I53: -128.75 | J53: -69685.32357 | K53: -69686.79 | L53: 1.466433121 | M53: -257.5 | O53: -69814.07357
A54: etc. | C54: 0 | G54: 0 | H54: 0 | I54: 0 | J54: 0 | L54: 0 | M54: 0 | O54: 0
G55: 0 | H55: 0 | I55: 0 | J55: 0 | L55: 0 | M55: 0 | O55: 0
B56: Total | C56: =SUM(C16:C55) -> 5982517.89 | D56: =SUM(D16:D55) -> 562500 | H56: =SUM(H16:H55) -> 195793.9164 | I56: 6712.927778 | J56: 202506.8442 | K56: 202569.21 | L56: -62.3657891 | M56: 13425.85556 | N56: =SUM(N16:N55) -> 0 | O56: 209219.772
A58: Notes:
A60: 1 | B60: Board policy of the "half-year" rule - the applicant must ensure that additions in the year attract a half-year depreciation expense in the first year. Deviations from this standard practice must be supported in the application.
A61: 2 | B61: The applicant must provide an explanation of material variances in evidence
A62: 3 | B62: The applicant should ensure that the years for new additions of assets are the asset useful lives determined by management in accordance with IFRS.
A63: 4 | B63: A recalculation should be performed to determine the average remaining life of opening balance of assets (i.e. excluding 2012 additions) under IFRS. For example, Asset A had a useful life of 20 years under CGAAP. On January 1, 2012, the date of transition, Asset A was 3 years depreciated. As a result, Asset A would have a remaining service life of 17 years (20 years less 3 years) under CGAAP as of January 1, 2012. Due to the transition to IFRS, management re-assessed the asset useful lives under IFRS principles and concluded that the revised useful life of Asset A is now 30 years. Therefore, the average remaining useful life of opening balance of Asset A is determined to be 27 years (30 years less 3 years) under IFRS as of January 1, 2012.
A64: 5 | B64: NBV must exclude assets still on the books but which have been fully amortized or depreciated.
A65: 6 | B65: This column refers to the calculated full year depreciation but excludes the depreciation expense on assets fully depreciated during the year. This column is used for the purpose of calculating depreciation expense in the following year on the next worksheet.
A67: General: | B67: Applicants must provide a breakdown of depreciation and amortization expense in the above format for all relevant accounts. Asset Retirement Obligations (AROs), depreciation and accretion expense should be disclosed separately consistent with the Notes of historical Audited Financial Statements.

Sheet App.2-CH_MIFRS_DepExp_2013
I1: File Number: | J1: ='LDC Info'!$E$18 -> EB-2012-0168
I2: Exhibit: | J2: 9
I3: Tab: | J3: 3
I4: Schedule: | J4: 2
I5: Attachment: | J5: 2
I7: Date: | J7: 2012-09-28
A9: Appendix 2-CH
A10: Depreciation and Amortization Expense
A11: Assumes the applicant adopted IFRS for financial reporting purposes January 1, 2013
C12: Year | D12: 2013 | E12: MIFRS
A14: Account | B14: Description | C14: Additions | D14: Years (new additions only) | E14: Depreciation Rate on New Additions | F14: 2013 Depreciation Expense 1 | G14: 2013 Depreciation Expense per Appendix 2-B Fixed Assets, Column K (l) | H14: Variance 2
C15: (d) | D15: (f) | E15: (g) = 1 / (f) | F15: (h)=2012 Full Year Depreciation + ((d)*0.5)/(f) | H15: (m) = (h) - (l)
A16: 1611 - 1 | B16: Computer Software (Formally known as Account 1925) [Regular] | C16: =+(29000+5000)+(18000+2000) -> 54000 | D16: 5 | E16: =IF(D16=0,0,1/D16) -> 0.2 | F16: =IF(D16=0,'App.2-CG_MIFRS_DepExp_2012'!O16,+'App.2-CG_MIFRS_DepExp_2012'!O16+((C16*0.5)/D16)) -> 5400 | G16: =56731.2-51331.2 -> 5400 | H16: =IF(ISERROR(+F16-G16), 0, +F16-G16) -> 0
A17: 1611 - 2 | B17: Computer Software (Formally known as Account 1925) [Smart meter related] | C17: 256656 | D17: 2.5 | E17: 0.4 | F17: =IF(D17=0,'App.2-CG_MIFRS_DepExp_2012'!O17,+'App.2-CG_MIFRS_DepExp_2012'!O17+((C17*0.5)/D17)) -> 51331.2 | G17: =56731.2-5400 -> 51331.2 | H17: 0
A18: 1612 | B18: Land Rights (Formally known as Account 1906) | E18: 0 | F18: =IF(D18=0,'App.2-CG_MIFRS_DepExp_2012'!O18,+'App.2-CG_MIFRS_DepExp_2012'!O18+((C18*0.5)/D18)) -> 0 | H18: 0
A19: 1805 | B19: Land | E19: 0 | F19: =IF(D19=0,'App.2-CG_MIFRS_DepExp_2012'!O19,+'App.2-CG_MIFRS_DepExp_2012'!O19+((C19*0.5)/D19)) -> 0 | H19: 0
A20: 1808 | B20: Buildings | E20: 0 | F20: =IF(D20=0,'App.2-CG_MIFRS_DepExp_2012'!O20,+'App.2-CG_MIFRS_DepExp_2012'!O20+((C20*0.5)/D20)) -> 0 | H20: 0
A21: 1810 | B21: Leasehold Improvements | E21: 0 | F21: =IF(D21=0,'App.2-CG_MIFRS_DepExp_2012'!O21,+'App.2-CG_MIFRS_DepExp_2012'!O21+((C21*0.5)/D21)) -> 0 | H21: 0
A22: 1815 | B22: Transformer Station Equipment >50 kV | E22: 0 | F22: =IF(D22=0,'App.2-CG_MIFRS_DepExp_2012'!O22,+'App.2-CG_MIFRS_DepExp_2012'!O22+((C22*0.5)/D22)) -> 0 | H22: 0
A23: 1820 | B23: Distribution Station Equipment <50 kV | D23: 40 | E23: 0.025 | F23: =IF(D23=0,'App.2-CG_MIFRS_DepExp_2012'!O23,+'App.2-CG_MIFRS_DepExp_2012'!O23+((C23*0.5)/D23)) -> 2145.94 | G23: 2145.94 | H23: 0
A24: 1825 | B24: Storage Battery Equipment | E24: 0 | F24: =IF(D24=0,'App.2-CG_MIFRS_DepExp_2012'!O24,+'App.2-CG_MIFRS_DepExp_2012'!O24+((C24*0.5)/D24)) -> 0 | H24: 0
A25: 1830 | B25: Poles, Towers & Fixtures | C25: 174330 | D25: 50 | E25: 0.02 | F25: =IF(D25=0,'App.2-CG_MIFRS_DepExp_2012'!O25,+'App.2-CG_MIFRS_DepExp_2012'!O25+((C25*0.5)/D25)) -> 49056.89 | G25: 49056.89 | H25: 0
A26: 1835 | B26: Overhead Conductors & Devices | C26: 156010 | D26: 50 | E26: 0.02 | F26: =IF(D26=0,'App.2-CG_MIFRS_DepExp_2012'!O26,+'App.2-CG_MIFRS_DepExp_2012'!O26+((C26*0.5)/D26)) -> 36544.73 | G26: 36948.55 | H26: -403.82
A27: 1840 | B27: Underground Conduit | C27: 43835 | D27: 50 | E27: 0.02 | F27: =IF(D27=0,'App.2-CG_MIFRS_DepExp_2012'!O27,+'App.2-CG_MIFRS_DepExp_2012'!O27+((C27*0.5)/D27)) -> 31956.05 | G27: 31956.05 | H27: 0
A28: 1845 | B28: Underground Conductors & Devices | C28: 54895 | D28: 30 | E28: 0.03333333333 | F28: =IF(D28=0,'App.2-CG_MIFRS_DepExp_2012'!O28,+'App.2-CG_MIFRS_DepExp_2012'!O28+((C28*0.5)/D28)) -> 52970.67667 | G28: 52970.68 | H28: -0.003333333334
A29: 1850 | B29: Line Transformers | C29: 222500 | D29: 40 | E29: 0.025 | F29: =IF(D29=0,'App.2-CG_MIFRS_DepExp_2012'!O29,+'App.2-CG_MIFRS_DepExp_2012'!O29+((C29*0.5)/D29)) -> 79363.47 | G29: 79363.47 | H29: 0
A30: 1855 | B30: Services (Overhead & Underground) | C30: =66023+11107 -> 77130 | D30: 50 | E30: 0.02 | F30: =IF(D30=0,'App.2-CG_MIFRS_DepExp_2012'!O30,+'App.2-CG_MIFRS_DepExp_2012'!O30+((C30*0.5)/D30)) -> 26490.38556 | G30: =12421.35+14015.66 -> 26437.01 | H30: 53.37555556
A31: 1860 | B31: Meters | D31: 25 | E31: 0.04 | F31: =IF(D31=0,'App.2-CG_MIFRS_DepExp_2012'!O31,+'App.2-CG_MIFRS_DepExp_2012'!O31+((C31*0.5)/D31)) -> 8714.92 | G31: 3944.6 | H31: 4770.32
A32: 1860 | B32: Meters (Smart Meters) | C32: 980897 | D32: 7.5 | E32: 0.1333333333 | F32: =IF(D32=0,'App.2-CG_MIFRS_DepExp_2012'!O32,+'App.2-CG_MIFRS_DepExp_2012'!O32+((C32*0.5)/D32)) -> 65393.13333 | G32: 65393.13 | H32: 0.003333333334
A33: 1905 | B33: Land | E33: 0 | F33: =IF(D33=0,'App.2-CG_MIFRS_DepExp_2012'!O33,+'App.2-CG_MIFRS_DepExp_2012'!O33+((C33*0.5)/D33)) -> 0 | H33: 0
A34: 1908 | B34: Buildings & Fixtures | E34: 0 | F34: =IF(D34=0,'App.2-CG_MIFRS_DepExp_2012'!O34,+'App.2-CG_MIFRS_DepExp_2012'!O34+((C34*0.5)/D34)) -> 0 | H34: 0
A35: 1910 | B35: Leasehold Improvements | E35: 0 | F35: =IF(D35=0,'App.2-CG_MIFRS_DepExp_2012'!O35,+'App.2-CG_MIFRS_DepExp_2012'!O35+((C35*0.5)/D35)) -> 0 | H35: 0
A36: 1915 | B36: Office Furniture & Equipment (10 years) | E36: 0 | F36: =IF(D36=0,'App.2-CG_MIFRS_DepExp_2012'!O36,+'App.2-CG_MIFRS_DepExp_2012'!O36+((C36*0.5)/D36)) -> 0 | H36: 0
A37: 1915 | B37: Office Furniture & Equipment (5 years) | E37: 0 | F37: =IF(D37=0,'App.2-CG_MIFRS_DepExp_2012'!O37,+'App.2-CG_MIFRS_DepExp_2012'!O37+((C37*0.5)/D37)) -> 0 | H37: 0
A38: 1920 | B38: Computer Equipment - Hardware | E38: 0 | F38: =IF(D38=0,'App.2-CG_MIFRS_DepExp_2012'!O38,+'App.2-CG_MIFRS_DepExp_2012'!O38+((C38*0.5)/D38)) -> 0 | H38: 0
A39: 1920 | B39: Computer Equip.-Hardware(Post Mar. 22/04) | E39: 0 | F39: =IF(D39=0,'App.2-CG_MIFRS_DepExp_2012'!O39,+'App.2-CG_MIFRS_DepExp_2012'!O39+((C39*0.5)/D39)) -> 0 | H39: 0
A40: 1920 - 1 | B40: Computer Equip.-Hardware(Post Mar. 19/07) | C40: 11000 | D40: 5 | E40: 0.2 | F40: =IF(D40=0,'App.2-CG_MIFRS_DepExp_2012'!O40,+'App.2-CG_MIFRS_DepExp_2012'!O40+((C40*0.5)/D40)) -> 1100 | G40: =2752.6-G41 -> 1100 | H40: 0
A41: 1920 - 2 | B41: Computer Equip.-Hardware(Post Mar. 19/07) [Smart Meters related] | C41: 8263 | D41: 2.5 | E41: =IF(D41=0,0,1/D41) -> 0.4 | F41: =IF(D41=0,'App.2-CG_MIFRS_DepExp_2012'!O41,+'App.2-CG_MIFRS_DepExp_2012'!O41+((C41*0.5)/D41)) -> 1652.6 | G41: 1652.6 | H41: =IF(ISERROR(+F41-G41), 0, +F41-G41) -> 0
A42: 1930 | B42: Transportation Equipment | E42: 0 | F42: =IF(D42=0,'App.2-CG_MIFRS_DepExp_2012'!O42,+'App.2-CG_MIFRS_DepExp_2012'!O42+((C42*0.5)/D42)) -> 0 | H42: 0
A43: 1935 | B43: Stores Equipment | E43: 0 | F43: =IF(D43=0,'App.2-CG_MIFRS_DepExp_2012'!O43,+'App.2-CG_MIFRS_DepExp_2012'!O43+((C43*0.5)/D43)) -> 0 | H43: 0
A44: 1940 | B44: Tools, Shop & Garage Equipment | E44: 0 | F44: =IF(D44=0,'App.2-CG_MIFRS_DepExp_2012'!O44,+'App.2-CG_MIFRS_DepExp_2012'!O44+((C44*0.5)/D44)) -> 0 | H44: 0
A45: 1945 | B45: Measurement & Testing Equipment | E45: 0 | F45: =IF(D45=0,'App.2-CG_MIFRS_DepExp_2012'!O45,+'App.2-CG_MIFRS_DepExp_2012'!O45+((C45*0.5)/D45)) -> 0 | H45: 0
A46: 1950 | B46: Power Operated Equipment | E46: 0 | F46: =IF(D46=0,'App.2-CG_MIFRS_DepExp_2012'!O46,+'App.2-CG_MIFRS_DepExp_2012'!O46+((C46*0.5)/D46)) -> 0 | H46: 0
A47: 1955 | B47: Communications Equipment | E47: 0 | F47: =IF(D47=0,'App.2-CG_MIFRS_DepExp_2012'!O47,+'App.2-CG_MIFRS_DepExp_2012'!O47+((C47*0.5)/D47)) -> 0 | H47: 0
A48: 1955 | B48: Communication Equipment (Smart Meters) | E48: 0 | F48: =IF(D48=0,'App.2-CG_MIFRS_DepExp_2012'!O48,+'App.2-CG_MIFRS_DepExp_2012'!O48+((C48*0.5)/D48)) -> 0 | H48: 0
A49: 1960 | B49: Miscellaneous Equipment | E49: 0 | F49: =IF(D49=0,'App.2-CG_MIFRS_DepExp_2012'!O49,+'App.2-CG_MIFRS_DepExp_2012'!O49+((C49*0.5)/D49)) -> 0 | H49: 0
A50: 1975 | B50: Load Management Controls Utility Premises | E50: 0 | F50: =IF(D50=0,'App.2-CG_MIFRS_DepExp_2012'!O50,+'App.2-CG_MIFRS_DepExp_2012'!O50+((C50*0.5)/D50)) -> 0 | H50: 0
A51: 1980 | B51: System Supervisor Equipment | E51: 0 | F51: =IF(D51=0,'App.2-CG_MIFRS_DepExp_2012'!O51,+'App.2-CG_MIFRS_DepExp_2012'!O51+((C51*0.5)/D51)) -> 0 | H51: 0
A52: 1985 | B52: Miscellaneous Fixed Assets | E52: 0 | F52: =IF(D52=0,'App.2-CG_MIFRS_DepExp_2012'!O52,+'App.2-CG_MIFRS_DepExp_2012'!O52+((C52*0.5)/D52)) -> 0 | H52: 0
A53: 1995 | B53: Contributions & Grants | C53: -132500 | D53: 40 | E53: 0.025 | F53: =IF(D53=0,'App.2-CG_MIFRS_DepExp_2012'!O53,+'App.2-CG_MIFRS_DepExp_2012'!O53+((C53*0.5)/D53)) -> -71470.32357 | G53: -71471.79 | H53: 1.466433121
A54: etc. | E54: 0 | F54: =IF(D54=0,'App.2-CG_MIFRS_DepExp_2012'!O54,+'App.2-CG_MIFRS_DepExp_2012'!O54+((C54*0.5)/D54)) -> 0 | H54: 0
E55: 0 | F55: =IF(D55=0,'App.2-CG_MIFRS_DepExp_2012'!O55,+'App.2-CG_MIFRS_DepExp_2012'!O55+((C55*0.5)/D55)) -> 0 | H55: 0
B56: Total | C56: =SUM(C16:C55) -> 1907016 | F56: =SUM(F16:F55) -> 340649.672 | G56: =SUM(G16:G55) -> 336228.33 | H56: =SUM(H16:H55) -> 4421.341989
B57: Depreciation expense adjustment resulting from amortization of Account 1575 | F57: -53688 | G57: -53688
B58: Total Depreciation expense to be included in the test year revenue requirement | F58: =+F57+F56 -> 286961.672 | G58: =+G57+G56 -> 282540.33
A60: Notes:
A61: 1 | B61: Board policy of the "half-year" rule - the applicant must ensure that additions in the year attract a half-year depreciation expense in the first year. Deviations from this standard practice must be supported in the application.
A62: 2 | B62: The applicant must provide an explanation of material variances in evidence
A65: General: | B65: Applicants must provide a breakdown of depreciation and amortization expense in the above format for all relevant accounts. Asset Retirement Obligations (AROs), depreciation and accretion expense should be disclosed separately consistent with the Notes of historical Audited Financial Statements.

Sheet App.2-CI_AltAccStd_DepExp
K1: File Number: | L1: ='LDC Info'!$E$18 -> EB-2012-0168
K2: Exhibit: | L2: N/A
K3: Tab:
K4: Schedule:
K5: Attachment:
K7: Date: | L7: 2012-09-28
A9: Appendix 2-CI
A10: Depreciation and Amortization Expense
A11: Assumes the applicant adopted an alternate accounting standard other than IFRS for financial reporting purposes. For applicants adopting an Alternate Accounting Standard for financial reporting purposes January 1, 2012, applicants must complete 4 versions of the table below (2011 CGAAP, 2011 Alternate Accounting Standard, 2012 Alternate Accounting Standard and 2013 Alternate Accounting Standard). For applicants adopting an Alternate Accounting Standard for financial reporting purposes January 1, 2013, applicants must complete 4 versions of the table below (2011 CGAAP, 2012 CGAAP, 2012 Alternate Accounting Standard and 2013 Alternate Accounting Standard).
B12: Year | E12: Accounting Standard
A14: Account | B14: Description | C14: Opening Regulatory Gross PP&E | D14: Less Fully Depreciated | E14: Net for Depreciation | F14: Additions | G14: Total for Depreciation | H14: Years | I14: Depreciation Rate | J14: Depreciation Expense | K14: Depreciation Expense per Appendix 2-B Fixed Assets, Column K (l) | L14: Variance 2
C15: (a) | D15: (b) | E15: (c) | F15: (d) | G15: (e) = (c) + ½ x (d) 1 | H15: (f) | I15: (g) = 1 / (f) | J15: (h) = (e) / (f) | L15: (m) = (h) - (l)
A16: 1611 | B16: Computer Software (Formally known as Account 1925) | E16: =C16-D16 -> 0 | G16: =E16+0.5*F16 -> 0 | I16: =IF(H16=0,0,1/H16) -> 0 | J16: =IF(H16=0,0,G16/H16) -> 0 | L16: =IF(ISERROR(+J16-K16), 0, +J16-K16) -> 0
A17: 1612 | B17: Land Rights (Formally known as Account 1906) | E17: =C17-D17 -> 0 | G17: =E17+0.5*F17 -> 0 | I17: 0 | J17: 0 | L17: 0
A18: 1805 | B18: Land | E18: 0 | G18: 0 | I18: 0 | J18: 0 | L18: 0
A19: 1808 | B19: Buildings | E19: 0 | G19: 0 | I19: 0 | J19: 0 | L19: 0
A20: 1810 | B20: Leasehold Improvements | E20: 0 | G20: 0 | I20: 0 | J20: 0 | L20: 0
A21: 1815 | B21: Transformer Station Equipment >50 kV | E21: 0 | G21: 0 | I21: 0 | J21: 0 | L21: 0
A22: 1820 | B22: Distribution Station Equipment <50 kV | E22: 0 | G22: 0 | I22: 0 | J22: 0 | L22: 0
A23: 1825 | B23: Storage Battery Equipment | E23: 0 | G23: 0 | I23: 0 | J23: 0 | L23: 0
A24: 1830 | B24: Poles, Towers & Fixtures | E24: 0 | G24: 0 | I24: 0 | J24: 0 | L24: 0
A25: 1835 | B25: Overhead Conductors & Devices | E25: 0 | G25: 0 | I25: 0 | J25: 0 | L25: 0
A26: 1840 | B26: Underground Conduit | E26: 0 | G26: 0 | I26: 0 | J26: 0 | L26: 0
A27: 1845 | B27: Underground Conductors & Devices | E27: 0 | G27: 0 | I27: 0 | J27: 0 | L27: 0
A28: 1850 | B28: Line Transformers | E28: 0 | G28: 0 | I28: 0 | J28: 0 | L28: 0
A29: 1855 | B29: Services (Overhead & Underground) | E29: 0 | G29: 0 | I29: 0 | J29: 0 | L29: 0
A30: 1860 | B30: Meters | E30: 0 | G30: 0 | I30: 0 | J30: 0 | L30: 0
A31: 1860 | B31: Meters (Smart Meters) | E31: 0 | G31: 0 | I31: 0 | J31: 0 | L31: 0
A32: 1905 | B32: Land | E32: 0 | G32: 0 | I32: 0 | J32: 0 | L32: 0
A33: 1908 | B33: Buildings & Fixtures | E33: 0 | G33: 0 | I33: 0 | J33: 0 | L33: 0
A34: 1910 | B34: Leasehold Improvements | E34: 0 | G34: 0 | I34: 0 | J34: 0 | L34: 0
A35: 1915 | B35: Office Furniture & Equipment (10 years) | E35: 0 | G35: 0 | I35: 0 | J35: 0 | L35: 0
A36: 1915 | B36: Office Furniture & Equipment (5 years) | E36: 0 | G36: 0 | I36: 0 | J36: 0 | L36: 0
A37: 1920 | B37: Computer Equipment - Hardware | E37: 0 | G37: 0 | I37: 0 | J37: 0 | L37: 0
A38: 1920 | B38: Computer Equip.-Hardware(Post Mar. 22/04) | E38: 0 | G38: 0 | I38: 0 | J38: 0 | L38: 0
A39: 1920 | B39: Computer Equip.-Hardware(Post Mar. 19/07) | E39: 0 | G39: 0 | I39: 0 | J39: 0 | L39: 0
A40: 1930 | B40: Transportation Equipment | E40: 0 | G40: 0 | I40: 0 | J40: 0 | L40: 0
A41: 1935 | B41: Stores Equipment | E41: 0 | G41: 0 | I41: 0 | J41: 0 | L41: 0
A42: 1940 | B42: Tools, Shop & Garage Equipment | E42: 0 | G42: 0 | I42: 0 | J42: 0 | L42: 0
A43: 1945 | B43: Measurement & Testing Equipment | E43: 0 | G43: 0 | I43: 0 | J43: 0 | L43: 0
A44: 1950 | B44: Power Operated Equipment | E44: 0 | G44: 0 | I44: 0 | J44: 0 | L44: 0
A45: 1955 | B45: Communications Equipment | E45: 0 | G45: 0 | I45: 0 | J45: 0 | L45: 0
A46: 1955 | B46: Communication Equipment (Smart Meters) | E46: 0 | G46: 0 | I46: 0 | J46: 0 | L46: 0
A47: 1960 | B47: Miscellaneous Equipment | E47: 0 | G47: 0 | I47: 0 | J47: 0 | L47: 0
A48: 1975 | B48: Load Management Controls Utility Premises | E48: 0 | G48: 0 | I48: 0 | J48: 0 | L48: 0
A49: 1980 | B49: System Supervisor Equipment | E49: 0 | G49: 0 | I49: 0 | J49: 0 | L49: 0
A50: 1985 | B50: Miscellaneous Fixed Assets | E50: 0 | G50: 0 | I50: 0 | J50: 0 | L50: 0
A51: 1995 | B51: Contributions & Grants | E51: 0 | G51: 0 | I51: 0 | J51: 0 | L51: 0
A52: etc. | E52: 0 | G52: 0 | I52: 0 | J52: 0 | L52: 0
E53: 0 | G53: 0 | I53: 0 | J53: 0 | L53: 0
B54: Total | C54: =SUM(C16:C53) -> 0 | D54: =SUM(D16:D53) -> 0 | E54: =SUM(E16:E53) -> 0 | F54: 0 | G54: 0 | J54: =SUM(J16:J53) -> 0 | K54: =SUM(K16:K53) -> 0 | L54: =SUM(L16:L53) -> 0
A56: Notes:
A58: 1 | B58: Board policy of the "half-year" rule - the applicant must ensure that additions in the year attract a half-year depreciation expense in the first year. Deviations from this standard practice must be supported in the application.
A59: 2 | B59: The applicant must provide an explanation of material variances in evidence
A62: General: | B62: Applicants must provide a breakdown of depreciation and amortization expense in the above format for all relevant accounts. Asset Retirement Obligations (AROs), depreciation and accretion expense should be disclosed separately consistent with the Notes of historical Audited Financial Statements.

Sheet App.2-D_Overhead
L1: File Number: | M1: ='LDC Info'!$E$18 -> EB-2012-0168
L2: Exhibit: | M2: 2
L3: Tab: | M3: 2
L4: Schedule: | M4: 1
L5: Attachment: | M5: 1
L7: Date: | M7: 2012-09-28
A9: Appendix 2-D
A10: Overhead Expense
A12: The following table should be completed based on the information requested below. An explanation should be provided for any blank entries. The entries should include overhead costs that are currently capitalized on self-constructed assets under MIFRS or an alternate accounting standard.
E13: (A) 1 | F13: (B) | G13: (C) | H13: (D) | I13: (E) 1 | J13: (F) | K13: (G)
A14: Nature of the Overhead Costs | E14: Dollar | F14: Dollar | G14: Dollar | H14: Dollar Impact - | I14: Dollar Impact - | J14: Directly | K14: Reasons why the overhead costs are allowed to be
E15: Impact on PP&E | F15: Impact on PP&E | G15: Impact on PP&E | H15: PP&E Variance | I15: PP&E Variance | J15: Attributable? | K15: capitalized under MIFRS or an alternate accounting
E16: Historic Year | F16: Bridge Year | G16: Test Year | H16: Test versus Bridge | I16: Test versus Historic | J16: (Y/N) | K16: standard given limitations on capitalized overhead
A17: employee benefits | H17: =+G17-F17 -> 0 | I17: =+G17-E17 -> 0 | J17: Y | K17: Included for employees directly charging time to project
A18: costs of site preparation | H18: 0 | I18: 0 | J18: Y | K18: If costs incurred, directly charged to the project
A19: initial delivery and handling costs | H19: 0 | I19: 0 | J19: Y | K19: If costs incurred, directly charged to the project
A20: costs of testing whether the asset is functioning properly | H20: 0 | I20: 0 | J20: Y | K20: If costs incurred, directly charged to the project
A21: professional fees | H21: 0 | I21: 0 | J21: Y | K21: If costs incurred, directly charged to the project
H22: 0 | I22: 0
A23: costs of opening a new facility | H23: 0 | I23: 0
A24: costs of introducing a new product or service (including costs of advertising and promotional activities) | H24: 0 | I24: 0
A25: costs of conducting business in a new location or with a new class of customer (including costs of staff training) | H25: 0 | I25: 0
A26: administration and other general overhead costs | H26: 0 | I26: 0 | J26: Y | K26: Based on a percentage of project cost
A27: engineering and project management | H27: 0 | I27: 0 | J27: Y | K27: Based on a percentage of project cost
H28: 0 | I28: 0
H29: 0 | I29: 0
A30: Insert description of additional item(s) and new rows if needed. | H30: 0 | I30: 0
A31: Total | E31: =SUM(E17:E30) -> 0 | F31: =SUM(F17:F30) -> 0 | G31: =SUM(G17:G30) -> 0 | H31: =SUM(H17:H30) -> 0 | I31: =SUM(I17:I30) -> 0
A34: The following table should be completed based on the information requested below. An explanation should be provided for any blank entries. The entries should include overhead costs that were capitalized on self-constructed assets under CGAAP but are no longer capitalized under MIFRS or an alternate accounting standard and are included in OM&A.
E35: (A) 1 | F35: (B) | G35: (C) | H35: (D) | I35: (E) 1 | J35: (F) | K35: (G)
A36: Nature of the Overhead Costs | E36: Dollar | F36: Dollar | G36: Dollar | H36: Dollar Impact - | I36: Dollar Impact - | J36: Directly | K36: Reasons why the overhead costs are not allowed to be
E37: Impact on OM&A | F37: Impact on OM&A | G37: Impact on OM&A | H37: OM&A Variance | I37: OM&A Variance | J37: Attributable? | K37: capitalized under MIFRS or an alternate accounting
E38: Historic Year | F38: Bridge Year | G38: Test Year | H38: Test versus Bridge | I38: Test versus Historic | J38: (Y/N) | K38: standard given limitations on capitalized overhead
A39: employee benefits | H39: =+G39-F39 -> 0 | I39: =+G39-E39 -> 0
A40: costs of site preparation | H40: =+G40-F40 -> 0 | I40: =+G40-E40 -> 0
A41: initial delivery and handling costs | H41: =+G41-F41 -> 0 | I41: =+G41-E41 -> 0
A42: costs of testing whether the asset is functioning properly | H42: =+G42-F42 -> 0 | I42: =+G42-E42 -> 0
A43: professional fees | H43: =+G43-F43 -> 0 | I43: =+G43-E43 -> 0
A45: costs of opening a new facility | H45: =+G45-F45 -> 0 | I45: =+G45-E45 -> 0
A46: costs of introducing a new product or service (including costs of advertising and promotional activities) | H46: 0 | I46: 0
A47: costs of conducting business in a new location or with a new class of customer (including costs of staff training) | H47: 0 | I47: 0
A48: administration and other general overhead costs | F48: 90865 | G48: 101354 | H48: 10489 | I48: 101354 | J48: Y | K48: Percentage charge rather than direct time
A49: engineering and project management | F49: 16035 | G49: 17886 | H49: 1851 | I49: 17886 | J49: Y | K49: Percentage charge rather than direct time
H50: 0 | I50: 0
H51: 0 | I51: 0
A52: Insert description of additional item(s) and new rows if needed. | H52: 0 | I52: 0
A53: Total | E53: =SUM(E39:E52) -> 0 | F53: =SUM(F39:F52) -> 106900 | G53: =SUM(G39:G52) -> 119240 | H53: =SUM(H39:H52) -> 12340 | I53: =SUM(I39:I52) -> 119240
A55: Notes:
A56: 1 | B56: If the applicant chooses to adopt IFRS or an alternate accounting standard for financial reporting purposes in 2013, the applicant does not need to complete Columns A, E. If the applicant adopts IFRS or an alternate accounting standard for financial reporting purposes in 2012, the applicant must complete all columns.

Sheet App.2-EA_PP&E Deferral Account
H1: File Number: | I1: ='LDC Info'!$E$18 -> EB-2012-0168
H2: Exhibit: | I2: N/A
H3: Tab:
H4: Schedule:
H5: Attachment:
H7: Date: | I7: 2012-09-28
A9: Appendix 2-EA
A10: IFRS-CGAAP Transitional PP&E Amounts
A11: 2012 Adopters of IFRS for Financial Reporting Purposes
A13: For applicants that adopt IFRS on January 1, 2012 for financial reporting purposes
A15: Note: this sheet should be filled out if the applicant adopts IFRS for its financial reporting purpose as of January 1, 2012.
B17: 2009 Rebasing Year | C17: 2010 | D17: 2011 | E17: 2012 | F17: 2013 Rebasing Year | G17: 2014 | H17: 2015 | I17: 2016
A18: Reporting Basis | B18: CGAAP | C18: IRM | D18: IRM | E18: IRM | F18: MIFRS | G18: IRM | H18: IRM | I18: IRM
A19: Forecast vs. Actual Used in Rebasing Year | B19: Forecast | C19: Actual | D19: Actual | E19: Forecast | F19: Forecast
D20: $ | E20: $
A21: PP&E Values under CGAAP
A22: Opening net PP&E - Note 1
A23: Additions
A24: Depreciation (amounts should be negative)
A25: Closing net PP&E (1) | D25: =D22+D23+D24 -> 0 | E25: =E22+E23+E24 -> 0
A27: PP&E Values under MIFRS (Starts from 2011, the transition year)
A28: Opening net PP&E - Note 1
A29: Additions
A30: Depreciation (amounts should be negative)
A31: Closing net PP&E (2) | D31: =SUM(D28:D30) -> 0 | E31: =SUM(E28:E30) -> 0
A33: Difference in Closing net PP&E, CGAAP vs. MIFRS (Shown as adjustment to rate base on rebasing) | D33: =D25-D31 -> 0 | E33: =E25-E31 -> 0
A35: Account 1575 - IFRS-CGAAP Transitional PP&E Amounts
A36: Opening balance | D36: 0 | E36: =D40 -> 0 | F36: =E40 -> 0 | G36: =F40 -> 0 | H36: =G40 -> 0 | I36: =H40 -> 0
A37: Amounts added in the year | D37: =D33 -> 0 | E37: =E33-D33 -> 0
A38: Sub-total | D38: =D36+D37 -> 0 | E38: 0 | F38: 0 | G38: 0 | H38: 0 | I38: 0
A39: Amount of amortization, included in depreciation expense - Note 2 | F39: =IF(ISERROR(-E33/I44), 0, -E33/I44) -> 0 | G39: =+F39 -> 0 | H39: =+F39 -> 0 | I39: =+F39 -> 0
A40: Closing balance in deferral account | D40: =D38+D39 -> 0 | E40: 0 | F40: =IF(ISERROR(F38+F39), 0, F38+F39) -> 0 | G40: 0 | H40: 0 | I40: 0
A42: Effect on Revenue Requirement
A43: Amortization of deferred balance as above - Note 2 | F43: =IF(ISERROR(E33/I44), 0, E33/I44) -> 0 | H43: WACC
A44: Return on Rate Base Associated with deferred PP&E balance at WACC - Note 3 | F44: =E33*I43 -> 0 | H44: Disposition Period - Note 4 | I44: 4 | J44: Years
A45: Amount included in Revenue Requirement on rebasing | F45: =F43+F44 -> 0
A47: Notes:
A48: 1 For an applicant that adopts IFRS on January 1, 2012, the PP&E values as of January 1, 2011 under both CGAAP and MIFRS should be the same.
A49: 2 Amortization of the deferred balance in Account 1575 will start from the rebasing year.
A50: Assume the utility requests for a certain disposition period, the amortization that should be included in the depreciation expense is calculated as:
A51: the opening balance of Account 1575 / the approved disposition period
A52: 3 Return on rate base associated with deferred balance is calculated as:
A53: the deferred account opening balance as of 2013 rebasing year x WACC
A54: * Please note that the calculation should be adjusted once WACC is updated and finalized in the rate application.
A55: 4 Consistent with the 4 year normal rate cycle, the model is using a 4 year amortization period as a default selection to "clear" the PP&E deferral account through a one-time adjustment to ratebase to capture and remove the impact of the accounting policy changes as caused by the transition from CGAAP to MIFRS.

Sheet App.2-EB_PP&E Deferral Account
H1: File Number: | I1: ='LDC Info'!$E$18 -> EB-2012-0168
H2: Exhibit: | I2: 9
H3: Tab: | I3: 3
H4: Schedule: | I4: 2
H5: Attachment: | I5: 3
H7: Date: | I7: 2012-09-28
A9: Appendix 2-EB
A10: IFRS-CGAAP Transitional PP&E Amounts
A11: 2013 Adopters of IFRS for Financial Reporting Purposes
A13: For applicants that adopt IFRS on January 1, 2013 for financial reporting purposes
A15: Note: this sheet should be filled out if the applicant adopts IFRS for its financial reporting purpose as of January 1, 2013.
B17: 2009 Rebasing Year | C17: 2010 | D17: 2011 | E17: 2012 | F17: 2013 Rebasing Year | G17: 2014 | H17: 2015 | I17: 2016
A18: Reporting Basis | B18: CGAAP | C18: IRM | D18: IRM | E18: IRM | F18: MIFRS | G18: IRM | H18: IRM | I18: IRM
A19: Forecast vs. Actual Used in Rebasing Year | B19: Forecast | C19: Actual | D19: Actual | E19: Forecast | F19: Forecast
D20: $ | E20: $ | F20: $ | G20: $ | H20: $ | I20: $
A21: PP&E Values under CGAAP
A22: Opening net PP&E - Note 1 | E22: 5982518
A23: Additions | E23: 669400
A24: Depreciation (amounts should be negative) | E24: -524223
A25: Closing net PP&E (1) | E25: =SUM(E22:E24) -> 6127695
A27: PP&E Values under MIFRS (Starts from 2012, the transition year)
A28: Opening net PP&E - Note 1 | E28: 5982518
A29: Additions | E29: 562500
A30: Depreciation (amounts should be negative) | E30: -202569
A31: Closing net PP&E (2) | E31: =SUM(E28:E30) -> 6342449
A33: Difference in Closing net PP&E, CGAAP vs. MIFRS (Shown as adjustment to rate base on rebasing) | E33: =E25-E31 -> -214754
A35: Account 1575 - IFRS-CGAAP Transitional PP&E Amounts
A36: Opening balance | E36: =D40 -> 0 | F36: =E40 -> -214754 | G36: =F40 -> -161065.5 | H36: =G40 -> -107377 | I36: =H40 -> -53688.5
A37: Amounts added in the year | E37: =E33-D33 -> -214754
A38: Sub-total | E38: =E36+E37 -> -214754 | F38: =F36+F37 -> -214754 | G38: =G36+G37 -> -161065.5 | H38: =H36+H37 -> -107377 | I38: =I36+I37 -> -53688.5
A39: Amount of amortization, included in depreciation expense - Note 2 | F39: =IF(ISERROR(-E33/I44), 0, -E33/I44) -> 53688.5 | G39: =+F39 -> 53688.5 | H39: =+F39 -> 53688.5 | I39: =+F39 -> 53688.5
A40: Closing balance in deferral account | E40: =E38+E39 -> -214754 | F40: =IF(ISERROR(F38+F39), 0, F38+F39) -> -161065.5 | G40: =G38+G39 -> -107377 | H40: =H38+H39 -> -53688.5 | I40: =I38+I39 -> 0
A42: Effect on Revenue Requirement
A43: Amortization of deferred balance as above - Note 2 | F43: =IF(ISERROR(E33/I44), 0, E33/I44) -> -53688.5 | H43: WACC | I43: 0.062
A44: Return on Rate Base Associated with deferred PP&E balance at WACC - Note 3 | F44: =E33*I43 -> -13314.748 | H44: Disposition Period - Note 4 | I44: 4 | J44: Years
A45: Amount included in Revenue Requirement on rebasing | F45: =F43+F44 -> -67003.248
A47: Notes:
A48: 1 For an applicant that adopts IFRS on January 1, 2013, the PP&E values as of January 1, 2012 under both CGAAP and MIFRS should be the same.
A49: 2 Amortization of the deferred balance in Account 1575 will start from the rebasing year.
A50: Assume the utility requests for a certain disposition period, the amortization that should be included in the depreciation expense is calculated as:
A51: the opening balance of Account 1575 / the approved disposition period
A52: 3 Return on rate base associated with deferred balance is calculated as:
A53: the deferred account opening balance as of 2013 rebasing year x WACC
A54: * Please note that the calculation should be adjusted once WACC is updated and finalized in the rate application.
A55: 4 Consistent with the 4 year normal rate cycle, the model is using a 4 year amortization period as a default selection to "clear" the PP&E deferral account through a one-time adjustment to ratebase to capture and remove the impact of the accounting policy changes as caused by the transition from CGAAP to MIFRS.

Sheet App.2-F_Other_Oper_Rev
G1: File Number: | H1: ='LDC Info'!$E$18 -> EB-2012-0168
G2: Exhibit: | H2: 3
G3: Tab: | H3: 3
G4: Schedule: | H4: 1
G5: Attachment: | H5: 1
G7: Date: | H7: 2012-09-28
A9: Appendix 2-F
A10: Other Operating Revenue
A12: USoA # | B12: USoA Description | C12: =F13-3 & " Actual" -> 2009 Actual | D12: =F13-2 & " Actual" -> 2010 Actual | E12: =F13-1 & " Actual"& CHAR(178) -> 2011 Actual² | F12: ="Bridge Year" & CHAR(179) -> Bridge Year³ | G12: ="Bridge Year" & CHAR(179) -> Bridge Year³ | H12: Test Year
F13: ='LDC Info'!E26 -> 2012 | G13: ='LDC Info'!E26 -> 2012 | H13: ='LDC Info'!E28 -> 2013
B14: Reporting Basis | C14: CGAAP | D14: CGAAP | E14: CGAAP | F14: CGAAP | G14: MIFRS | H14: MIFRS
A15: 4235 | B15: Specific Service Charges | C15: 40500 | D15: 48420 | E15: 34115 | F15: 35705 | G15: 35705 | H15: 35705
A16: 4225 | B16: Late Payment Charges | C16: 20092 | D16: 23037 | E16: 17022 | F16: 17500 | G16: 17500 | H16: 17500
A17: 4082 | B17: Retail Services Revenues | C17: 11039 | D17: 14706 | E17: 12080 | F17: 13390 | G17: 13390 | H17: 14030
A18: 4084 | B18: Retail Service Transaction Request | C18: 248 | D18: 581 | E18: 310 | F18: 338 | G18: 338 | H18: 369
A19: 4210 | B19: Power Poles | C19: 26664 | D19: 26664 | E19: 26664 | F19: 26664 | G19: 26664 | H19: 26664
A20: 4080 | B20: Administration Charge | C20: 16565 | D20: 17128 | E20: 17375 | F20: 17723 | G20: 17723 | H20: 18077
A23: Specific Service Charges | C23: =C15 -> 40500 | D23: =D15 -> 48420 | E23: 34115 | F23: 35705 | G23: =G15 -> 35705 | H23: =H15 -> 35705
A24: Late Payment Charges | C24: =C16 -> 20092 | D24: 23037 | E24: 17022 | F24: 17500 | G24: =G16 -> 17500 | H24: =H16 -> 17500
A25: Other Operating Revenues | C25: 54516 | D25: 59079 | E25: 56429 | F25: 58115 | G25: 58115 | H25: 59140
A26: Other Income or Deductions | C26: 13384 | D26: 15911 | E26: 46055 | F26: =F53 -> 30000 | G26: =G53 -> 30000 | H26: =H53 -> 18000
A27: Total | C27: =SUM(C23:C26) -> 128492 | D27: 146447 | E27: 153621 | F27: 141320 | G27: 141320 | H27: 130345
A29: Description | C29: Account(s)
A30: Specific Service Charges: | C30: 4235
A31: Late Payment Charges: | C31: 4225
A32: Other Distribution Revenues: | C32: 4080, 4082, 4084, 4090, 4205, 4210, 4215, 4220, 4240, 4245
A33: Other Income and Expenses: | C33: 4305, 4310, 4315, 4320, 4325, 4330, 4335, 4340, 4345, 4350, 4355, 4360, 4365, 4370, 4375, 4380, 4385, 4390, 4395, 4398, 4405, 4415
A36: Note: Add all applicable accounts listed above to the table and include all relevant information.
A37: The above table assumes adoption of MIFRS as of January 1, 2013. If the adoption year differs, please adjust the table accordingly.
A40: Account Breakdown Details
A42: For each "Other Operating Revenue" and "Other Income or Deductions" Account, a detailed breakdown of the account components is required. See the example below for Account 4405, Interest and Dividend Income.
A45: Account 4405 - Interest and Dividend Income
C46: =C12 -> 2009 Actual | D46: =D12 -> 2010 Actual | E46: =E12 -> 2011 Actual² | F46: Bridge Year | G46: Bridge Year | H46: Test Year
A47: Reporting Basis | C47: =IF(ISBLANK(C14), "", C14) -> CGAAP | D47: CGAAP | E47: CGAAP | F47: CGAAP | G47: MIFRS | H47: MIFRS
A48: Short-term Investment Interest
A49: Bank Deposit Interest | C49: 11716.16 | D49: 13267.19 | E49: 26499.83 | F49: 24000 | G49: 24000 | H49: 18000
A50: Miscellaneous Interest Revenue | C50: 1668.13 | D50: 2643.81 | E50: 19555.14 | F50: 6000 | G50: 6000 | H50: 0
A51: etc.1
A53: Total | C53: =SUM(C48:C52) -> 13384.29 | D53: 15911 | E53: 46054.97 | F53: 30000 | G53: 30000 | H53: 18000
A56: Notes:
A57: 1 | B57: List and specify any other interest revenue
A58: 2 | B58: If the applicant is adopting IFRS or an alternate accounting standard as of January 1, 2012 for financial reporting purposes, 2011 must be presented on both a CGAAP and MIFRS (or alternate accounting standard) basis.
A59: 3 | B59: If the applicant is adopting IFRS or an alternate accounting standard as of January 1, 2013 for financial reporting purposes, 2012 must be presented on both a CGAAP and MIFRS (or alternate accounting standard) basis.

Sheet App.2-G_Detailed_OM&A_Expenses
G1: File Number: | H1: ='LDC Info'!$E$18 -> EB-2012-0168
G2: Exhibit: | H2: 4
G3: Tab: | H3: 2
G4: Schedule: | H4: 1
G5: Attachment: | H5: 2
G7: Date: | H7: 2012-09-28
A9: Appendix 2-G
A10: Detailed, Account by Account, OM&A Expense Table
A11: (excluding Depreciation and Amortization)
A14: Account | B14: Description | C14: 2009 | D14: 2010 | E14: ='LDC Info'!E26-1 & " Actual" & CHAR(178) -> 2011 Actual² | F14: ="Bridge Year " & 'LDC Info'!E26& CHAR(179) -> Bridge Year 2012³ | G14: ="Bridge Year " & 'LDC Info'!E26& CHAR(179) -> Bridge Year 2012³ | H14: ="Test Year " & 'LDC Info'!E28 -> Test Year 2013
A15: Reporting Basis | C15: CGAAP | D15: CGAAP | E15: CGAAP | F15: CGAAP | G15: MIFRS | H15: MIFRS
A16: Operations
A17: 5005 | B17: Operation Supervision and Engineering | C17: 248397 | D17: 161858.99 | E17: 159631.99 | F17: 169015 | G17: 169015 | H17: 177503
A18: 5010 | B18: Load Dispatching | C18: 1303 | D18: 1614.88 | E18: 2395.15 | F18: 2180 | G18: 2180 | H18: 2010
A19: 5012 | B19: Station Buildings and Fixtures Expense
A20: 5014 | B20: Transformer Station Equipment - Operation Labour
A21: 5015 | B21: Transformer Station Equipment - Operation Supplies and Expenses
A22: 5016 | B22: Distribution Station Equipment - Operation Labour
A23: 5017 | B23: Distribution Station Equipment - Operation Supplies and Expenses | C23: 18723 | D23: 25057.45 | E23: 23635.05 | F23: 27902 | G23: 27902 | H23: 26130
A24: 5020 | B24: Overhead Distribution Lines and Feeders - Operation Labour
A25: 5025 | B25: Overhead Distribution Lines and Feeders - Operation Supplies and Expenses | C25: 67421 | D25: 44346.1 | E25: 14960.9 | F25: 43431 | G25: 43431 | H25: 44100
A26: 5030 | B26: Overhead Sub-transmission Feeders - Operation
A27: 5035 | B27: Overhead Distribution Transformers - Operation | C27: 20283 | D27: 6990.79 | E27: 5777.32 | F27: 18847 | G27: 18847 | H27: 18700
A28: 5040 | B28: Underground Distribution Lines and Feeders - Operation Labour
A29: 5045 | B29: Underground Distribution Lines and Feeders - Operation Supplies and Expenses | C29: 16881 | D29: 5801.94 | E29: 3409.19 | F29: 11754 | G29: 11754 | H29: 11775
A30: 5050 | B30: Underground Sub-transmission Feeders - Operation
A31: 5055 | B31: Underground Distribution Transformers - Operation | C31: 5577 | D31: 13531.14 | E31: 6509.16 | F31: 43572 | G31: 43572 | H31: 34600
A32: 5060 | B32: Street Lighting and Signal System Expense
A33: 5065 | B33: Meter Expense | C33: 86544 | D33: 75993.38 | E33: 105494.29 | F33: =108792+35313.72 -> 144105.72 | G33: =108792+35313.72 -> 144105.72 | H33: 102370
A34: 5070 | B34: Customer Premises - Operation Labour
A35: 5075 | B35: Customer Premises - Operation Materials and Expenses | C35: 73205 | D35: 75970.57 | E35: 70858.72 | F35: 88287 | G35: 88287 | H35: 90000
A36: 5085 | B36: Miscellaneous Distribution Expenses | C36: 315295 | D36: 484361.04 | E36: 346757.49 | F36: 395222 | G36: 502122 | H36: 584148
A37: 5090 | B37: Underground Distribution Lines and Feeders - Rental Paid
A38: 5095 | B38: Overhead Distribution Lines and Feeders - Rental Paid | D38: 1921.19 | E38: 4958.2 | F38: 2000 | G38: 2000 | H38: 2100
A39: 5096 | B39: Other Rent
A40: Total - Operations | C40: =SUM(C17:C39) -> 853629 | D40: =SUM(D17:D39) -> 897447.47 | E40: =SUM(E17:E39) -> 744387.46 | F40: =SUM(F17:F39) -> 946315.72 | G40: 1053215.72 | H40: =SUM(H17:H39) -> 1093436
A41: Account | B41: Description | C41: =C14 -> 2009 | D41: 2010 | E41: 2011 Actual² | F41: Bridge Year 2012³ | G41: Bridge Year 2012³ | H41: Test Year 2013
A42: Maintenance
A43: 5105 | B43: Maintenance Supervision and Engineering | C43: 7725 | D43: 9692.07 | E43: 27004.24 | F43: 16000 | G43: 16000 | H43: 17000
A44: 5110 | B44: Maintenance of Buildings and Fixtures - Distribution Stations
A45: 5112 | B45: Maintenance of Transformer Station Equipment
A46: 5114 | B46: Maintenance of Distribution Station Equipment | C46: 1348 | D46: 2733.11 | E46: 4787.7 | F46: 5667 | G46: 5667 | H46: 5250
A47: 5120 | B47: Maintenance of Poles, Towers and Fixtures | C47: 18199 | D47: 23980.55 | E47: 20200.7 | F47: 33000 | G47: 33000 | H47: 33950
A48: 5125 | B48: Maintenance of Overhead Conductors and Devices | C48: 31051 | D48: 21925.47 | E48: 11020.52 | F48: 26680 | G48: 26680 | H48: 27300
A49: 5130 | B49: Maintenance of Overhead Services | C49: 17995 | D49: 9338.72 | E49: 27685.12 | F49: 20000 | G49: 20000 | H49: 21000
A50: 5135 | B50: Overhead Distribution Lines and Feeders - Right of Way | C50: 66220 | D50: 48559.02 | E50: 68125.2 | F50: 108291 | G50: 108291 | H50: 108850
A51: 5145 | B51: Maintenance of Underground Conduit
A52: 5150 | B52: Maintenance of Underground Conductors and Devices | C52: 18112 | D52: 15757.67 | E52: 7387.45 | F52: 10230 | G52: 10230 | H52: 10400
A53: 5155 | B53: Maintenance of Underground Services | C53: 10149 | D53: 11125.1 | E53: 9566.74 | F53: 11160 | G53: 11160 | H53: 12970
A54: 5160 | B54: Maintenance of Line Transformers | C54: 15295 | D54: 27071.43 | E54: 28621.58 | F54: 35283 | G54: 35283 | H54: 35500
A55: 5165 | B55: Maintenance of Street Lighting and Signal Systems
A56: 5170 | B56: Sentinel Lights - Labour
A57: 5172 | B57: Sentinel Lights - Materials and Expenses
A58: 5175 | B58: Maintenance of Meters | D58: 656.01 | E58: 1257.26 | F58: 3079 | G58: 3079 | H58: 3092
A59: 5178 | B59: Customer Installations Expenses - Leased Property
A60: 5195 | B60: Maintenance of Other Installations on Customer Premises
A61: Total - Maintenance | C61: =SUM(C43:C60) -> 186094 | D61: =SUM(D43:D60) -> 170839.15 | E61: =SUM(E43:E60) -> 205656.51 | F61: =SUM(F43:F60) -> 269390 | G61: 269390 | H61: =SUM(H43:H60) -> 275312
A62: Account | B62: Description | C62: =C41 -> 2009 | D62: =D41 -> 2010 | E62: =E41 -> 2011 Actual² | F62: =F41 -> Bridge Year 2012³ | G62: Bridge Year 2012³ | H62: =H41 -> Test Year 2013
A63: Billing and Collecting
A64: 5305 | B64: Supervision
A65: 5310 | B65: Meter Reading Expense | C65: 50240 | D65: 57790.37 | E65: 76879.14 | F65: 69477 | G65: 69477 | H65: 70000
A66: 5315 | B66: Customer Billing | C66: 241819 | D66: 332837.08 | E66: 414541.77 | F66: 428312 | G66: 428312 | H66: =436305+(10000+10000)/4-22000 -> 419305
A67: 5320 | B67: Collecting | D67: 782.49 | E67: 87.9 | F67: 1000 | G67: 1000 | H67: 1000
A68: 5325 | B68: Collecting - Cash Over and Short
A69: 5330 | B69: Collection Charges
A70: 5335 | B70: Bad Debt Expense | C70: 26311.73 | D70: 21758.13 | E70: 26860.14 | F70: 27000 | G70: 27000 | H70: 27000
A71: 5340 | B71: Miscellaneous Customer Accounts Expenses | C71: 116547 | D71: 71391.49 | E71: 44959.41 | F71: =87375-14000 -> 73375 | G71: =87375-14000 -> 73375 | H71: 79200
A72: Total - Billing and Collecting | C72: =SUM(C64:C71) -> 434917.73 | D72: =SUM(D64:D71) -> 484559.56 | E72: =SUM(E64:E71) -> 563328.36 | F72: =SUM(F64:F71) -> 599164 | G72: 599164 | H72: =SUM(H64:H71) -> 596505
A73: Account | B73: Description | C73: =C62 -> 2009 | D73: =D62 -> 2010 | E73: =E62 -> 2011 Actual² | F73: =F62 -> Bridge Year 2012³ | G73: Bridge Year 2012³ | H73: =H62 -> Test Year 2013
A74: Community Relations
A75: 5405 | B75: Supervision
A76: 5410 | B76: Community Relations - Sundry
A77: 5415 | B77: Energy Conservation | D77: 1967.05 | E77: 5364.75 | F77: 1000 | G77: 1000 | H77: 900
A78: 5420 | B78: Community Safety Program
A79: 5425 | B79: Miscellaneous Customer Service and Informational Expenses
A80: 5505 | B80: Supervision
A81: 5510 | B81: Demonstrating and Selling Expense
A82: 5515 | B82: Advertising Expenses
A83: 5520 | B83: Miscellaneous Sales Expense
A84: Total - Community Relations | C84: =SUM(C75:C83) -> 0 | D84: =SUM(D75:D83) -> 1967.05 | E84: =SUM(E75:E83) -> 5364.75 | F84: =SUM(F75:F83) -> 1000 | G84: 1000 | H84: =SUM(H75:H83) -> 900
A85: Account | B85: Description | C85: =C73 -> 2009 | D85: =D73 -> 2010 | E85: =E73 -> 2011 Actual² | F85: =F73 -> Bridge Year 2012³ | G85: Bridge Year 2012³ | H85: =H73 -> Test Year 2013
A86: Administrative and General Expenses
A87: 5605 | B87: Executive Salaries and Expenses
A88: 5610 | B88: Management Salaries and Expenses
A89: 5615 | B89: General Administrative Salaries and Expenses | C89: 94257 | D89: 136557.79 | E89: 146559.59 | F89: 179105 | G89: 179105 | H89: 202405
A90: 5620 | B90: Office Supplies and Expenses
A91: 5625 | B91: Administrative Expense Transferred - Credit
A92: 5630 | B92: Outside Services Employed | C92: 59445 | D92: 152525.45 | E92: 140004 | F92: 140004 | G92: 140004 | H92: 140004
A93: 5635 | B93: Property Insurance
A94: 5640 | B94: Injuries and Damages
A95: 5645 | B95: OMERS Pensions and Benefits
A96: 5646 | B96: Employee Pensions and OPEB
A97: 5647 | B97: Employee Sick Leave
A98: 5650 | B98: Franchise Requirements
A99: 5655 | B99: Regulatory Expenses | C99: 27877.47 | D99: 44732.19 | E99: 52569.65 | F99: 49877 | G99: 49877 | H99: 68800
A100: 5660 | B100: General Advertising Expenses | D100: 2624.52 | E100: 5239.99 | F100: 7000 | G100: 7000 | H100: 7000
A101: 5665 | B101: Miscellaneous General Expenses | C101: 118856.07 | D101: 163242.8 | E101: 203673.9 | F101: 159096 | G101: 159096 | H101: 187900
A102: 5670 | B102: Rent | C102: 91900 | D102: 90144 | E102: 90144 | F102: 132620 | G102: 132620 | H102: 132620
A103: 5672 | B103: Lease Payment Charge
A104: 5675 | B104: Maintenance of General Plant
A105: 5680 | B105: Electrical Safety Authority Fees | C105: 6120.5 | D105: 2458.06 | E105: 2458.06 | F105: 6200 | G105: 6200 | H105: 6200
A106: 5681 | B106: Special Purpose Charge Expense | D106: 41940.96 | E106: 30199.41
A107: 5685 | B107: Independent Electricity System Operator Fees and Penalties
A108: 5695 | B108: OM&A Contra Account | D108: 13741 | E108: 34452 | F108: 35000 | G108: 35000 | H108: 0
A109: 6205 | B109: Donations
A110: 6205 | B110: Donations, Sub-account LEAP Funding | E110: 3833.1 | F110: 3598.78 | G110: 3599 | H110: 4000
A111: Total - Administrative and General Expenses | C111: =SUM(C87:C110) -> 398456.04 | D111: =SUM(D87:D110) -> 647966.77 | E111: 709133.7 | F111: 712500.78 | G111: 712501 | H111: 748929
A112: Total OM&A | C112: =C40+C61+C72+C84+C111 -> 1873096.77 | D112: =D40+D61+D72+D84+D111 -> 2202780 | E112: =E40+E61+E72+E84+E111 -> 2227870.78 | F112: =F40+F61+F72+F84+F111 -> 2528370.5 | G112: 2635270.72 | H112: =H40+H61+H72+H84+H111 -> 2715082
A113: Adjustments for non-recoverable items
A114: 5681 | B114: Special Purpose Charge Expense | C114: =+C106 -> 0 | D114: 41940.96 | E114: 30199.41 | F114: 0 | G114: 0 | H114: 0
A115: 6205 | B115: Donations1
A119: Total Recoverable OM&A | C119: =C112-SUM(C114:C118) -> 1873096.77 | D119: =D112-SUM(D114:D118) -> 2160839.04 | E119: 2197671.37 | F119: =F112-SUM(F114:F118) -> 2528370.5 | G119: 2635270.72 | H119: 2715082
A121: 1 Account 6205 - Donations is generally non-recoverable. However, the sub-account LEAP funding of account 6205 is generally recoverable. | F121: =F119-E119 -> 330699.13
A123: Note:
A124: 1 | B124: If it has been more than three years since the applicant last filed a cost of service application, additional years of historical actuals should be incorporated into the table, as necessary, to go back to the last cost of service application. If the applicant last filed a cost of service application less than three years ago, a minimum of three years of actual information is required.
A125: 2 | B125: If the applicant is adopting IFRS or an alternate accounting standard as of January 1, 2012 for financial reporting purposes, 2011 must be presented on both a CGAAP and MIFRS (or alternate accounting standard) basis.
A126: 3 | B126: If the applicant is adopting IFRS or an alternate accounting standard as of January 1, 2013 for financial reporting purposes, 2012 must be presented on both a CGAAP and MIFRS (or alternate accounting standard) basis.

Sheet App.2-H_OM&A_Detailed_Analysis
H1: File Number: | I1: ='LDC Info'!$E$18 -> EB-2012-0168
H2: Exhibit: | I2: 4
H3: Tab: | I3: 3
H4: Schedule: | I4: 1
H5: Attachment: | I5: 2
H7: Date: | I7: 2012-09-28
A9: Appendix 2-H
A10: OM&A Detailed Variance Analysis
A11: (excluding Depreciation and Amortization)
A14: Account | B14: Description | C14: ="Last Board-approved Rebasing Year ("&'LDC Info'!E30&" Year)" -> Last Board-approved Rebasing Year (2009 Year) | D14: Most Current Actuals Year 2011 | E14: ="Test Year " & 'LDC Info'!E28 -> Test Year 2013 | F14: Test Year Versus Last Rebasing | H14: Test Year Versus Most Current Actuals
F15: Variance ($) | G15: Percentage Change (%) | H15: Variance ($) | I15: Percentage Change (%)
A16: Reporting Basis | C16: CGAAP
A17: Operations
A18: 5005 | B18: Operation Supervision and Engineering | C18: 146397 | D18: =+'App.2-G_Detailed_OM&A_Expenses'!E17 -> 159631.99 | E18: =+'App.2-G_Detailed_OM&A_Expenses'!H17 -> 177503 | F18: =E18-C18 -> 31106 | G18: =IF(C18=0,"",(E18/C18)-1) -> 0.2124770316 | H18: =E18-D18 -> 17871.01 | I18: =IF(D18=0,"",(E18/D18)-1) -> 0.1119513075
A19: 5010 | B19: Load Dispatching | C19: 1303 | D19: =+'App.2-G_Detailed_OM&A_Expenses'!E18 -> 2395.15 | E19: =+'App.2-G_Detailed_OM&A_Expenses'!H18 -> 2010 | F19: =E19-C19 -> 707 | G19: =IF(C19=0,"",(E19/C19)-1) -> 0.5425940138 | H19: =E19-D19 -> -385.15 | I19: =IF(D19=0,"",(E19/D19)-1) -> -0.160804125
A20: 5012 | B20: Station Buildings and Fixtures Expense | D20: =+'App.2-G_Detailed_OM&A_Expenses'!E19 -> 0 | E20: =+'App.2-G_Detailed_OM&A_Expenses'!H19 -> 0 | F20: 0 | H20: 0
A21: 5014 | B21: Transformer Station Equipment - Operation Labour | D21: =+'App.2-G_Detailed_OM&A_Expenses'!E20 -> 0 | E21: =+'App.2-G_Detailed_OM&A_Expenses'!H20 -> 0 | F21: 0 | H21: 0
A22: 5015 | B22: Transformer Station Equipment - Operation Supplies and Expenses | D22: =+'App.2-G_Detailed_OM&A_Expenses'!E21 -> 0 | E22: =+'App.2-G_Detailed_OM&A_Expenses'!H21 -> 0 | F22: 0 | H22: 0
A23: 5016 | B23: Distribution Station Equipment - Operation Labour | D23: =+'App.2-G_Detailed_OM&A_Expenses'!E22 -> 0 | E23: =+'App.2-G_Detailed_OM&A_Expenses'!H22 -> 0 | F23: 0 | H23: 0
A24: 5017 | B24: Distribution Station Equipment - Operation Supplies and Expenses | C24: 18723 | D24: =+'App.2-G_Detailed_OM&A_Expenses'!E23 -> 23635.05 | E24: =+'App.2-G_Detailed_OM&A_Expenses'!H23 -> 26130 | F24: 7407 | G24: 0.3956096779 | H24: 2494.95 | I24: 0.1055614437
A25: 5020 | B25: Overhead Distribution Lines and Feeders - Operation Labour | D25: =+'App.2-G_Detailed_OM&A_Expenses'!E24 -> 0 | E25: =+'App.2-G_Detailed_OM&A_Expenses'!H24 -> 0 | F25: 0 | H25: 0
A26: 5025 | B26: Overhead Distribution Lines and Feeders - Operation Supplies and Expenses | C26: 67421 | D26: =+'App.2-G_Detailed_OM&A_Expenses'!E25 -> 14960.9 | E26: =+'App.2-G_Detailed_OM&A_Expenses'!H25 -> 44100 | F26: -23321 | G26: -0.3459011287 | H26: 29139.1 | I26: 1.947683629
A27: 5030 | B27: Overhead Sub-transmission Feeders - Operation | D27: =+'App.2-G_Detailed_OM&A_Expenses'!E26 -> 0 | E27: =+'App.2-G_Detailed_OM&A_Expenses'!H26 -> 0 | F27: 0 | H27: 0
A28: 5035 | B28: Overhead Distribution Transformers - Operation | C28: 20283 | D28: =+'App.2-G_Detailed_OM&A_Expenses'!E27 -> 5777.32 | E28: =+'App.2-G_Detailed_OM&A_Expenses'!H27 -> 18700 | F28: -1583 | G28: -0.078045654 | H28: 12922.68 | I28: 2.236794915
A29: 5040 | B29: Underground Distribution Lines and Feeders - Operation Labour | D29: =+'App.2-G_Detailed_OM&A_Expenses'!E28 -> 0 | E29: =+'App.2-G_Detailed_OM&A_Expenses'!H28 -> 0 | F29: 0 | H29: 0
A30: 5045 | B30: Underground Distribution Lines and Feeders - Operation Supplies and Expenses | C30: 16881 | D30: =+'App.2-G_Detailed_OM&A_Expenses'!E29 -> 3409.19 | E30: =+'App.2-G_Detailed_OM&A_Expenses'!H29 -> 11775 | F30: -5106 | G30: -0.3024702328 | H30: 8365.81 | I30: 2.453899607
A31: 5050 | B31: Underground Sub-transmission Feeders - Operation | D31: =+'App.2-G_Detailed_OM&A_Expenses'!E30 -> 0 | E31: =+'App.2-G_Detailed_OM&A_Expenses'!H30 -> 0 | F31: 0 | H31: 0
A32: 5055 | B32: Underground Distribution Transformers - Operation | C32: 5577 | D32: =+'App.2-G_Detailed_OM&A_Expenses'!E31 -> 6509.16 | E32: =+'App.2-G_Detailed_OM&A_Expenses'!H31 -> 34600 | F32: 29023 | G32: 5.204052358 | H32: 28090.84 | I32: 4.315586036
A33: 5060 | B33: Street Lighting and Signal System Expense | D33: =+'App.2-G_Detailed_OM&A_Expenses'!E32 -> 0 | E33: =+'App.2-G_Detailed_OM&A_Expenses'!H32 -> 0 | F33: 0 | H33: 0
A34: 5065 | B34: Meter Expense | C34: 86544 | D34: =+'App.2-G_Detailed_OM&A_Expenses'!E33 -> 105494.29 | E34: =+'App.2-G_Detailed_OM&A_Expenses'!H33 -> 102370 | F34: 15826 | G34: 0.1828665188 | H34: -3124.29 | I34: -0.02961572612
A35: 5070 | B35: Customer Premises - Operation Labour | D35: =+'App.2-G_Detailed_OM&A_Expenses'!E34 -> 0 | E35: =+'App.2-G_Detailed_OM&A_Expenses'!H34 -> 0 | F35: 0 | H35: 0
A36: 5075 | B36: Customer Premises - Operation Materials and Expenses | C36: 73205 | D36: =+'App.2-G_Detailed_OM&A_Expenses'!E35 -> 70858.72 | E36: =+'App.2-G_Detailed_OM&A_Expenses'!H35 -> 90000 | F36: 16795 | G36: 0.2294242197 | H36: 19141.28 | I36: 0.2701330196
A37: 5085 | B37: Miscellaneous Distribution Expenses | C37: 278209 | D37: =+'App.2-G_Detailed_OM&A_Expenses'!E36 -> 346757.49 | E37: =+'App.2-G_Detailed_OM&A_Expenses'!H36 -> 584148 | F37: 305939 | G37: 1.099673267 | H37: 237390.51 | I37: 0.6846009584
A38: 5090 | B38: Underground Distribution Lines and Feeders - Rental Paid | D38: =+'App.2-G_Detailed_OM&A_Expenses'!E37 -> 0 | E38: =+'App.2-G_Detailed_OM&A_Expenses'!H37 -> 0 | F38: 0 | H38: 0
A39: 5095 | B39: Overhead Distribution Lines and Feeders - Rental Paid | D39: =+'App.2-G_Detailed_OM&A_Expenses'!E38 -> 4958.2 | E39: =+'App.2-G_Detailed_OM&A_Expenses'!H38 -> 2100 | F39: 2100 | H39: -2858.2 | I39: -0.5764591989
A40: 5096 | B40: Other Rent | D40: =+'App.2-G_Detailed_OM&A_Expenses'!E39 -> 0 | E40: =+'App.2-G_Detailed_OM&A_Expenses'!H39 -> 0 | F40: 0 | H40: 0
A41: Total - Operations | C41: =SUM(C18:C40) -> 714543 | D41: =SUM(D18:D40) -> 744387.46 | E41: =SUM(E18:E40) -> 1093436 | F41: 378893 | G41: 0.5302592006 | H41: 349048.54 | I41: 0.4689070662
A42: Account | B42: Description
A43: Maintenance
A44: 5105 | B44: Maintenance Supervision and Engineering | C44: 7725 | D44: =+'App.2-G_Detailed_OM&A_Expenses'!E43 -> 27004.24 | E44: =+'App.2-G_Detailed_OM&A_Expenses'!H43 -> 17000 | F44: =E44-C44 -> 9275 | G44: =IF(C44=0,"",(E44/C44)-1) -> 1.200647249 | H44: =E44-D44 -> -10004.24 | I44: =IF(D44=0,"",(E44/D44)-1) -> -0.37046923
A45: 5110 | B45: Maintenance of Buildings and Fixtures - Distribution Stations | D45: =+'App.2-G_Detailed_OM&A_Expenses'!E44 -> 0 | E45: =+'App.2-G_Detailed_OM&A_Expenses'!H44 -> 0 | F45: 0 | H45: 0
A46: 5112 | B46: Maintenance of Transformer Station Equipment | D46: =+'App.2-G_Detailed_OM&A_Expenses'!E45 -> 0 | E46: =+'App.2-G_Detailed_OM&A_Expenses'!H45 -> 0 | F46: 0 | H46: 0
A47: 5114 | B47: Maintenance of Distribution Station Equipment | C47: 1348 | D47: =+'App.2-G_Detailed_OM&A_Expenses'!E46 -> 4787.7 | E47: =+'App.2-G_Detailed_OM&A_Expenses'!H46 -> 5250 | F47: 3902 | G47: 2.894658754 | H47: 462.3 | I47: 0.09655993483
A48: 5120 | B48: Maintenance of Poles, Towers and Fixtures | C48: 18198 | D48: =+'App.2-G_Detailed_OM&A_Expenses'!E47 -> 20200.7 | E48: =+'App.2-G_Detailed_OM&A_Expenses'!H47 -> 33950 | F48: 15752 | G48: 0.8655896252 | H48: 13749.3 | I48: 0.6806348295
A49: 5125 | B49: Maintenance of Overhead Conductors and Devices | C49: 31051 | D49: =+'App.2-G_Detailed_OM&A_Expenses'!E48 -> 11020.52 | E49: =+'App.2-G_Detailed_OM&A_Expenses'!H48 -> 27300 | F49: -3751 | G49: -0.1208012624 | H49: 16279.48 | I49: 1.477197083
A50: 5130 | B50: Maintenance of Overhead Services | C50: 17994 | D50: =+'App.2-G_Detailed_OM&A_Expenses'!E49 -> 27685.12 | E50: =+'App.2-G_Detailed_OM&A_Expenses'!H49 -> 21000 | F50: 3006 | G50: 0.1670556852 | H50: -6685.12 | I50: -0.2414697859
A51: 5135 | B51: Overhead Distribution Lines and Feeders - Right of Way | C51: 66220 | D51: =+'App.2-G_Detailed_OM&A_Expenses'!E50 -> 68125.2 | E51: =+'App.2-G_Detailed_OM&A_Expenses'!H50 -> 108850 | F51: 42630 | G51: 0.6437632135 | H51: 40724.8 | I51: 0.5977934744
A52: 5145 | B52: Maintenance of Underground Conduit | D52: =+'App.2-G_Detailed_OM&A_Expenses'!E51 -> 0 | E52: =+'App.2-G_Detailed_OM&A_Expenses'!H51 -> 0 | F52: 0 | H52: 0
A53: 5150 | B53: Maintenance of Underground Conductors and Devices | C53: 18112 | D53: =+'App.2-G_Detailed_OM&A_Expenses'!E52 -> 7387.45 | E53: =+'App.2-G_Detailed_OM&A_Expenses'!H52 -> 10400 | F53: -7712 | G53: -0.425795053 | H53: 3012.55 | I53: 0.4077929461
A54: 5155 | B54: Maintenance of Underground Services | C54: 10149 | D54: =+'App.2-G_Detailed_OM&A_Expenses'!E53 -> 9566.74 | E54: =+'App.2-G_Detailed_OM&A_Expenses'!H53 -> 12970 | F54: 2821 | G54: 0.2779584195 | H54: 3403.26 | I54: 0.3557387365
A55: 5160 | B55: Maintenance of Line Transformers | C55: 15295 | D55: =+'App.2-G_Detailed_OM&A_Expenses'!E54 -> 28621.58 | E55: =+'App.2-G_Detailed_OM&A_Expenses'!H54 -> 35500 | F55: 20205 | G55: 1.321019941 | H55: 6878.42 | I55: 0.2403228613
A56: 5165 | B56: Maintenance of Street Lighting and Signal Systems | D56: =+'App.2-G_Detailed_OM&A_Expenses'!E55 -> 0 | E56: =+'App.2-G_Detailed_OM&A_Expenses'!H55 -> 0 | F56: 0 | H56: 0
A57: 5170 | B57: Sentinel Lights - Labour | D57: =+'App.2-G_Detailed_OM&A_Expenses'!E56 -> 0 | E57: =+'App.2-G_Detailed_OM&A_Expenses'!H56 -> 0 | F57: 0 | H57: 0
A58: 5172 | B58: Sentinel Lights - Materials and Expenses | D58: =+'App.2-G_Detailed_OM&A_Expenses'!E57 -> 0 | E58: =+'App.2-G_Detailed_OM&A_Expenses'!H57 -> 0 | F58: 0 | H58: 0
A59: 5175 | B59: Maintenance of Meters | D59: =+'App.2-G_Detailed_OM&A_Expenses'!E58 -> 1257.26 | E59: =+'App.2-G_Detailed_OM&A_Expenses'!H58 -> 3092 | F59: 3092 | H59: 1834.74 | I59: 1.459316291
A60: 5178 | B60: Customer Installations Expenses - Leased Property | D60: =+'App.2-G_Detailed_OM&A_Expenses'!E59 -> 0 | E60: =+'App.2-G_Detailed_OM&A_Expenses'!H59 -> 0 | F60: 0 | H60: 0
A61: 5195 | B61: Maintenance of Other Installations on Customer Premises | D61: =+'App.2-G_Detailed_OM&A_Expenses'!E60 -> 0 | E61: =+'App.2-G_Detailed_OM&A_Expenses'!H60 -> 0 | F61: 0 | H61: 0
A62: Total - Maintenance | C62: =SUM(C44:C61) -> 186092 | D62: =SUM(D44:D61) -> 205656.51 | E62: =SUM(E44:E61) -> 275312 | F62: 89220 | G62: 0.4794402769 | H62: 69655.49 | I62: 0.3386982012
A63: Account | B63: Description
A64: Billing and Collecting
A65: 5305 | B65: Supervision | D65: =+'App.2-G_Detailed_OM&A_Expenses'!E64 -> 0 | E65: =+'App.2-G_Detailed_OM&A_Expenses'!H64 -> 0 | F65: =E65-C65 -> 0 | G65: =IF(C65=0,"",(E65/C65)-1) ->  | H65: =E65-D65 -> 0 | I65: =IF(D65=0,"",(E65/D65)-1) -> 
A66: 5310 | B66: Meter Reading Expense | C66: 50240 | D66: =+'App.2-G_Detailed_OM&A_Expenses'!E65 -> 76879.14 | E66: =+'App.2-G_Detailed_OM&A_Expenses'!H65 -> 70000 | F66: 19760 | G66: 0.3933121019 | H66: -6879.14 | I66: -0.08947992915
A67: 5315 | B67: Customer Billing | C67: 306006 | D67: =+'App.2-G_Detailed_OM&A_Expenses'!E66 -> 414541.77 | E67: =+'App.2-G_Detailed_OM&A_Expenses'!H66 -> 419305 | F67: 113299 | G67: 0.3702509101 | H67: 4763.23 | I67: 0.01149034994
A68: 5320 | B68: Collecting | D68: =+'App.2-G_Detailed_OM&A_Expenses'!E67 -> 87.9 | E68: =+'App.2-G_Detailed_OM&A_Expenses'!H67 -> 1000 | F68: 1000 | H68: 912.1 | I68: 10.37656428
A69: 5325 | B69: Collecting - Cash Over and Short | D69: =+'App.2-G_Detailed_OM&A_Expenses'!E68 -> 0 | E69: =+'App.2-G_Detailed_OM&A_Expenses'!H68 -> 0 | F69: 0 | H69: 0
A70: 5330 | B70: Collection Charges | D70: =+'App.2-G_Detailed_OM&A_Expenses'!E69 -> 0 | E70: =+'App.2-G_Detailed_OM&A_Expenses'!H69 -> 0 | F70: 0 | H70: 0
A71: 5335 | B71: Bad Debt Expense | C71: 17000 | D71: =+'App.2-G_Detailed_OM&A_Expenses'!E70 -> 26860.14 | E71: =+'App.2-G_Detailed_OM&A_Expenses'!H70 -> 27000 | F71: 10000 | G71: 0.5882352941 | H71: 139.86 | I71: 0.005206972116
A72: 5340 | B72: Miscellaneous Customer Accounts Expenses | C72: 128376 | D72: =+'App.2-G_Detailed_OM&A_Expenses'!E71 -> 44959.41 | E72: =+'App.2-G_Detailed_OM&A_Expenses'!H71 -> 79200 | F72: -49176 | G72: -0.3830622546 | H72: 34240.59 | I72: 0.7615889532
A73: Total - Billing and Collecting | C73: =SUM(C65:C72) -> 501622 | D73: =SUM(D65:D72) -> 563328.36 | E73: =SUM(E65:E72) -> 596505 | F73: 94883 | G73: 0.1891523896 | H73: 33176.64 | I73: 0.05889396373
A74: Account | B74: Description
A75: Community Relations
A76: 5405 | B76: Supervision | D76: =+'App.2-G_Detailed_OM&A_Expenses'!E75 -> 0 | E76: =+'App.2-G_Detailed_OM&A_Expenses'!H75 -> 0 | F76: =E76-C76 -> 0 | G76: =IF(C76=0,"",(E76/C76)-1) ->  | H76: =E76-D76 -> 0 | I76: =IF(D76=0,"",(E76/D76)-1) -> 
A77: 5410 | B77: Community Relations - Sundry | D77: =+'App.2-G_Detailed_OM&A_Expenses'!E76 -> 0 | E77: =+'App.2-G_Detailed_OM&A_Expenses'!H76 -> 0 | F77: 0 | H77: 0
A78: 5415 | B78: Energy Conservation | D78: =+'App.2-G_Detailed_OM&A_Expenses'!E77 -> 5364.75 | E78: =+'App.2-G_Detailed_OM&A_Expenses'!H77 -> 900 | F78: 900 | H78: -4464.75 | I78: -0.8322382217
A79: 5420 | B79: Community Safety Program | D79: =+'App.2-G_Detailed_OM&A_Expenses'!E78 -> 0 | E79: =+'App.2-G_Detailed_OM&A_Expenses'!H78 -> 0 | F79: 0 | H79: 0
A80: 5425 | B80: Miscellaneous Customer Service and Informational Expenses | D80: =+'App.2-G_Detailed_OM&A_Expenses'!E79 -> 0 | E80: =+'App.2-G_Detailed_OM&A_Expenses'!H79 -> 0 | F80: 0 | H80: 0
A81: 5505 | B81: Supervision | D81: =+'App.2-G_Detailed_OM&A_Expenses'!E80 -> 0 | E81: =+'App.2-G_Detailed_OM&A_Expenses'!H80 -> 0 | F81: 0 | H81: 0
A82: 5510 | B82: Demonstrating and Selling Expense | D82: =+'App.2-G_Detailed_OM&A_Expenses'!E81 -> 0 | E82: =+'App.2-G_Detailed_OM&A_Expenses'!H81 -> 0 | F82: 0 | H82: 0
A83: 5515 | B83: Advertising Expenses | D83: =+'App.2-G_Detailed_OM&A_Expenses'!E82 -> 0 | E83: =+'App.2-G_Detailed_OM&A_Expenses'!H82 -> 0 | F83: 0 | H83: 0
A84: 5520 | B84: Miscellaneous Sales Expense | D84: =+'App.2-G_Detailed_OM&A_Expenses'!E83 -> 0 | E84: =+'App.2-G_Detailed_OM&A_Expenses'!H83 -> 0 | F84: 0 | H84: 0
A85: Total - Community Relations | C85: =SUM(C76:C84) -> 0 | D85: =SUM(D76:D84) -> 5364.75 | E85: =SUM(E76:E84) -> 900 | F85: 900 | H85: -4464.75 | I85: -0.8322382217
A86: Account | B86: Description
A87: Administrative and General Expenses
A88: 5605 | B88: Executive Salaries and Expenses | D88: =+'App.2-G_Detailed_OM&A_Expenses'!E87 -> 0 | E88: =+'App.2-G_Detailed_OM&A_Expenses'!H87 -> 0 | F88: =E88-C88 -> 0 | G88: =IF(C88=0,"",(E88/C88)-1) ->  | H88: =E88-D88 -> 0 | I88: =IF(D88=0,"",(E88/D88)-1) -> 
A89: 5610 | B89: Management Salaries and Expenses | D89: =+'App.2-G_Detailed_OM&A_Expenses'!E88 -> 0 | E89: =+'App.2-G_Detailed_OM&A_Expenses'!H88 -> 0 | F89: 0 | H89: 0
A90: 5615 | B90: General Administrative Salaries and Expenses | C90: 167988 | D90: =+'App.2-G_Detailed_OM&A_Expenses'!E89 -> 146559.59 | E90: =+'App.2-G_Detailed_OM&A_Expenses'!H89 -> 202405 | F90: 34417 | G90: 0.2048777294 | H90: 55845.41 | I90: 0.381042346
A91: 5620 | B91: Office Supplies and Expenses | D91: =+'App.2-G_Detailed_OM&A_Expenses'!E90 -> 0 | E91: =+'App.2-G_Detailed_OM&A_Expenses'!H90 -> 0 | F91: 0 | H91: 0
A92: 5625 | B92: Administrative Expense Transferred - Credit | D92: =+'App.2-G_Detailed_OM&A_Expenses'!E91 -> 0 | E92: =+'App.2-G_Detailed_OM&A_Expenses'!H91 -> 0 | F92: 0 | H92: 0
A93: 5630 | B93: Outside Services Employed | D93: =+'App.2-G_Detailed_OM&A_Expenses'!E92 -> 140004 | E93: =+'App.2-G_Detailed_OM&A_Expenses'!H92 -> 140004 | F93: 140004 | H93: 0 | I93: 0
A94: 5635 | B94: Property Insurance | D94: =+'App.2-G_Detailed_OM&A_Expenses'!E93 -> 0 | E94: =+'App.2-G_Detailed_OM&A_Expenses'!H93 -> 0 | F94: 0 | H94: 0
A95: 5640 | B95: Injuries and Damages | D95: =+'App.2-G_Detailed_OM&A_Expenses'!E94 -> 0 | E95: =+'App.2-G_Detailed_OM&A_Expenses'!H94 -> 0 | F95: 0 | H95: 0
A96: 5645 | B96: OMERS Pensions and Benefits | D96: =+'App.2-G_Detailed_OM&A_Expenses'!E95 -> 0 | E96: =+'App.2-G_Detailed_OM&A_Expenses'!H95 -> 0 | F96: 0 | H96: 0
A97: 5646 | B97: Employee Pensions and OPEB | D97: =+'App.2-G_Detailed_OM&A_Expenses'!E96 -> 0 | E97: =+'App.2-G_Detailed_OM&A_Expenses'!H96 -> 0 | F97: =E97-C97 -> 0 | G97: =IF(C97=0,"",(E97/C97)-1) ->  | H97: =E97-D97 -> 0 | I97: =IF(D97=0,"",(E97/D97)-1) -> 
A98: 5647 | B98: Employee Sick Leave | D98: =+'App.2-G_Detailed_OM&A_Expenses'!E97 -> 0 | E98: =+'App.2-G_Detailed_OM&A_Expenses'!H97 -> 0 | F98: 0 | H98: 0
A99: 5650 | B99: Franchise Requirements | D99: =+'App.2-G_Detailed_OM&A_Expenses'!E98 -> 0 | E99: =+'App.2-G_Detailed_OM&A_Expenses'!H98 -> 0 | F99: 0 | H99: 0
A100: 5655 | B100: Regulatory Expenses | C100: 51181 | D100: =+'App.2-G_Detailed_OM&A_Expenses'!E99 -> 52569.65 | E100: =+'App.2-G_Detailed_OM&A_Expenses'!H99 -> 68800 | F100: 17619 | G100: 0.3442488423 | H100: 16230.35 | I100: 0.3087399288
A101: 5660 | B101: General Advertising Expenses | D101: =+'App.2-G_Detailed_OM&A_Expenses'!E100 -> 5239.99 | E101: =+'App.2-G_Detailed_OM&A_Expenses'!H100 -> 7000 | F101: 7000 | H101: 1760.01 | I101: 0.335880412
A102: 5665 | B102: Miscellaneous General Expenses | C102: 145520 | D102: =+'App.2-G_Detailed_OM&A_Expenses'!E101 -> 203673.9 | E102: =+'App.2-G_Detailed_OM&A_Expenses'!H101 -> 187900 | F102: 42380 | G102: 0.2912314458 | H102: -15773.9 | I102: -0.07744684027
A103: 5670 | B103: Rent | C103: 91900 | D103: =+'App.2-G_Detailed_OM&A_Expenses'!E102 -> 90144 | E103: =+'App.2-G_Detailed_OM&A_Expenses'!H102 -> 132620 | F103: =E103-C103 -> 40720 | G103: =IF(C103=0,"",(E103/C103)-1) -> 0.4430903156 | H103: =E103-D103 -> 42476 | I103: 0.4712016329
A104: 5672 | B104: Lease Payment Charge | D104: =+'App.2-G_Detailed_OM&A_Expenses'!E103 -> 0 | E104: =+'App.2-G_Detailed_OM&A_Expenses'!H103 -> 0 | F104: 0 | H104: 0
A105: 5675 | B105: Maintenance of General Plant | D105: =+'App.2-G_Detailed_OM&A_Expenses'!E104 -> 0 | E105: =+'App.2-G_Detailed_OM&A_Expenses'!H104 -> 0 | F105: 0 | H105: 0
A106: 5680 | B106: Electrical Safety Authority Fees | C106: 3392 | D106: =+'App.2-G_Detailed_OM&A_Expenses'!E105 -> 2458.06 | E106: =+'App.2-G_Detailed_OM&A_Expenses'!H105 -> 6200 | F106: 2808 | G106: 0.8278301887 | H106: 3741.94 | I106: 1.522314345
A107: 5681 | B107: Special Purpose Charge Expense | D107: =+'App.2-G_Detailed_OM&A_Expenses'!E106 -> 30199.41 | E107: =+'App.2-G_Detailed_OM&A_Expenses'!H106 -> 0 | F107: 0 | H107: -30199.41
A108: 5685 | B108: Independent Electricity System Operator Fees and Penalties | D108: =+'App.2-G_Detailed_OM&A_Expenses'!E107 -> 0 | E108: =+'App.2-G_Detailed_OM&A_Expenses'!H107 -> 0 | F108: 0 | H108: 0
A109: 5695 | B109: OM&A Contra Account | D109: =+'App.2-G_Detailed_OM&A_Expenses'!E108 -> 34452 | E109: =+'App.2-G_Detailed_OM&A_Expenses'!H108 -> 0 | F109: 0 | H109: -34452 | I109: -1
A110: 6205 | B110: Donations | D110: =+'App.2-G_Detailed_OM&A_Expenses'!E109 -> 0 | E110: =+'App.2-G_Detailed_OM&A_Expenses'!H109 -> 0 | F110: =E110-C110 -> 0 | G110: =IF(C110=0,"",(E110/C110)-1) ->  | H110: =E110-D110 -> 0 | I110: =IF(D110=0,"",(E110/D110)-1) -> 
A111: 6205 | B111: Donations, Sub-account LEAP Funding | D111: =+'App.2-G_Detailed_OM&A_Expenses'!E110 -> 3833.1 | E111: =+'App.2-G_Detailed_OM&A_Expenses'!H110 -> 4000 | F111: 4000 | H111: 166.9 | I111: 0.0435417808
A112: Total - Administrative and General Expenses | C112: =SUM(C88:C111) -> 459981 | D112: =SUM(D88:D111) -> 709133.7 | E112: =SUM(E88:E111) -> 748929 | F112: 288948 | G112: 0.6281737724 | H112: 39795.3 | I112: 0.05611819041
A113: Total OM&A | C113: =C112+C85+C73+C62+C41 -> 1862238 | D113: =D112+D85+D73+D62+D41 -> 2227870.78 | E113: =E112+E85+E73+E62+E41 -> 2715082 | F113: 852844 | G113: 0.4579672416 | H113: 487211.22 | I113: 0.2186891737
A114: Adjustments for non-recoverable items
A115: 5681 | B115: Special Purpose Charge Expense | D115: =+'App.2-G_Detailed_OM&A_Expenses'!E114 -> 30199.41 | E115: =+'App.2-G_Detailed_OM&A_Expenses'!H114 -> 0 | F115: =E115-C115 -> 0 | G115: =IF(C115=0,"",(E115/C115)-1) ->  | H115: =E115-D115 -> -30199.41 | I115: =IF(D115=0,"",(E115/D115)-1) -> -1
A116: 6205 | B116: Donations1 | D116: =+'App.2-G_Detailed_OM&A_Expenses'!E115 -> 0 | E116: =+'App.2-G_Detailed_OM&A_Expenses'!H115 -> 0 | F116: =E116-C116 -> 0 | G116: =IF(C116=0,"",(E116/C116)-1) ->  | H116: =E116-D116 -> 0 | I116: =IF(D116=0,"",(E116/D116)-1) -> 
D117: =+'App.2-G_Detailed_OM&A_Expenses'!E116 -> 0 | E117: =+'App.2-G_Detailed_OM&A_Expenses'!H116 -> 0 | F117: =E117-C117 -> 0 | G117: =IF(C117=0,"",(E117/C117)-1) ->  | H117: =E117-D117 -> 0 | I117: =IF(D117=0,"",(E117/D117)-1) -> 
D118: =+'App.2-G_Detailed_OM&A_Expenses'!E117 -> 0 | E118: =+'App.2-G_Detailed_OM&A_Expenses'!H117 -> 0 | F118: =E118-C118 -> 0 | G118: =IF(C118=0,"",(E118/C118)-1) ->  | H118: =E118-D118 -> 0 | I118: =IF(D118=0,"",(E118/D118)-1) -> 
D119: =+'App.2-G_Detailed_OM&A_Expenses'!E118 -> 0 | E119: =+'App.2-G_Detailed_OM&A_Expenses'!H118 -> 0 | F119: =E119-C119 -> 0 | G119: =IF(C119=0,"",(E119/C119)-1) ->  | H119: =E119-D119 -> 0 | I119: =IF(D119=0,"",(E119/D119)-1) -> 
A120: Total Recoverable OM&A | C120: =C113-SUM(C115:C119) -> 1862238 | D120: =D113-SUM(D115:D119) -> 2197671.37 | E120: 2715082 | F120: 852844 | G120: =IF(C120=0,"",(E120/C120)-1) -> 0.4579672416 | H120: 517410.63 | I120: =IF(D120=0,"",(E120/D120)-1) -> 0.2354358514
A122: 1 Account 6205 - Donations is generally non-recoverable. However, the sub-account LEAP funding of account 6205 is generally recoverable.
A125: Note:
A127: 1 | B127: If the applicant is adopting IFRS or an alternate accounting standard as of January 1, 2013 for financial reporting purposes, Column D "Most Current Actual Year" must be provided on CGAAP.
A128: 2 | B128: If the applicant is adopting IFRS or an alternate accounting standard as of January 1, 2012 for financial reporting purposes, Column D "Most Current Actual Year" must be provided on that standard.

Sheet App.2-I_OM&A_Summary_Analys
K1: File Number: | L1: ='LDC Info'!$E$18 -> EB-2012-0168
K2: Exhibit: | L2: 4
K3: Tab: | L3: 2
K4: Schedule: | L4: 1
K5: Attachment: | L5: 1
K7: Date: | L7: 2012-09-28
A9: Appendix 2-I
A10: Summary of Recoverable OM&A Expenses
B13: ="Last Rebasing Year (" & 'LDC Info'!E30 & " BA)" -> Last Rebasing Year (2009 BA) | C13: ="Last Rebasing Year (" & 'LDC Info'!E30 & " Actuals)" -> Last Rebasing Year (2009 Actuals) | D13: ='LDC Info'!E26 -2 & " Actuals" -> 2010 Actuals | E13: ='LDC Info'!E26 -1 & " Actuals" -> 2011 Actuals | F13: ='LDC Info'!E26 & " Bridge Year" -> 2012 Bridge Year | G13: ='LDC Info'!E28 & " Test Year" -> 2013 Test Year
A14: Reporting Basis | B14: CGAAP | C14: CGAAP | D14: CGAAP | E14: CGAAP | F14: CGAAP | G14: MIFRS
A15: Operations | B15: 714543 | C15: 853629 | D15: 897447 | E15: =+'App.2-G_Detailed_OM&A_Expenses'!E40 -> 744387.46 | F15: =+'App.2-G_Detailed_OM&A_Expenses'!F40 -> 946315.72 | G15: =+'App.2-G_Detailed_OM&A_Expenses'!H40 -> 1093436
A16: Maintenance | B16: 186092 | C16: 186094 | D16: 170839 | E16: =+'App.2-G_Detailed_OM&A_Expenses'!E61 -> 205656.51 | F16: =+'App.2-G_Detailed_OM&A_Expenses'!F61 -> 269390 | G16: =+'App.2-G_Detailed_OM&A_Expenses'!H61 -> 275312
A17: SubTotal | B17: =SUM(B15:B16) -> 900635 | C17: =SUM(C15:C16) -> 1039723 | D17: 1068286 | E17: 950043.97 | F17: 1215705.72 | G17: 1368748
A18: %Change (year over year) | D18: =IF(ISERROR((D17-C17)/C17), "", (D17-C17)/C17) -> 0.02747174007 | E18: =IF(ISERROR((E17-D17)/D17), "", (E17-D17)/D17) -> -0.1106838712 | F18: 0.2796310049 | G18: 0.1258876038
A19: %Change (Test Year vs Last Rebasing Year - Actual) | G19: =IF(ISERROR((G17-C17)/C17), "", (G17-C17)/C17) -> 0.3164544787
A20: Billing and Collecting | B20: 501622 | C20: 434918 | D20: 484560 | E20: =+'App.2-G_Detailed_OM&A_Expenses'!E72 -> 563328.36 | F20: =+'App.2-G_Detailed_OM&A_Expenses'!F72 -> 599164 | G20: =+'App.2-G_Detailed_OM&A_Expenses'!H72 -> 596505
A21: Community Relations | D21: 1967 | E21: =+'App.2-G_Detailed_OM&A_Expenses'!E84 -> 5364.75 | F21: =+'App.2-G_Detailed_OM&A_Expenses'!F84 -> 1000 | G21: =+'App.2-G_Detailed_OM&A_Expenses'!H84 -> 900
A22: Administrative and General | B22: 459981 | C22: 398456 | D22: 606026 | E22: =+'App.2-G_Detailed_OM&A_Expenses'!E111-SUM('App.2-G_Detailed_OM&A_Expenses'!E114:E118) -> 678934.29 | F22: =+'App.2-G_Detailed_OM&A_Expenses'!F111-SUM('App.2-G_Detailed_OM&A_Expenses'!F114:F118) -> 712500.78 | G22: =+'App.2-G_Detailed_OM&A_Expenses'!H111-SUM('App.2-G_Detailed_OM&A_Expenses'!H114:H118) -> 748929
A23: SubTotal | B23: =SUM(B20:B22) -> 961603 | C23: =SUM(C20:C22) -> 833374 | D23: 1092553 | E23: 1247627.4 | F23: 1312664.78 | G23: 1346334
A24: %Change (year over year) | D24: =IF(ISERROR((D23-C23)/C23), "", (D23-C23)/C23) -> 0.3109996232 | E24: =IF(ISERROR((E23-D23)/D23), "", (E23-D23)/D23) -> 0.1419376451 | F24: =IF(ISERROR((F23-E23)/E23), "", (F23-E23)/E23) -> 0.05212884873 | G24: =IF(ISERROR((G23-F23)/F23), "", (G23-F23)/F23) -> 0.02564951884
A25: %Change (Test Year vs Last Rebasing Year - Actual) | G25: =IF(ISERROR((G23-C23)/C23), "", (G23-C23)/C23) -> 0.6155219625
A26: Total | B26: =SUM(B23,B17) -> 1862238 | C26: =SUM(C23,C17) -> 1873097 | D26: 2160839 | E26: 2197671.37 | F26: 2528370.5 | G26: 2715082
A27: %Change (year over year) | D27: =IF(ISERROR((D26-C26)/C26), "", (D26-C26)/C26) -> 0.1536183123 | E27: =IF(ISERROR((E26-D26)/D26), "", (E26-D26)/D26) -> 0.01704540227 | F27: =IF(ISERROR((F26-E26)/E26), "", (F26-E26)/E26) -> 0.1504770615 | G27: =IF(ISERROR((G26-F26)/F26), "", (G26-F26)/F26) -> 0.07384657431
B30: =B13 -> Last Rebasing Year (2009 BA) | C30: =C13 -> Last Rebasing Year (2009 Actuals) | D30: 2010 Actuals | E30: 2011 Actuals | F30: 2012 Bridge Year | G30: 2013 Test Year
A31: Operations | B31: =B15 -> 714543 | C31: =C15 -> 853629 | D31: 897447 | E31: 744387.46 | F31: 946315.72 | G31: 1093436
A32: Maintenance | B32: =B16 -> 186092 | C32: =C16 -> 186094 | D32: 170839 | E32: 205656.51 | F32: 269390 | G32: 275312
A33: Billing and Collecting | B33: =B20 -> 501622 | C33: =C20 -> 434918 | D33: 484560 | E33: 563328.36 | F33: 599164 | G33: 596505
A34: Community Relations | B34: =B21 -> 0 | C34: =C21 -> 0 | D34: 1967 | E34: 5364.75 | F34: 1000 | G34: 900
A35: Administrative and General | B35: =B22 -> 459981 | C35: =C22 -> 398456 | D35: 606026 | E35: 678934.29 | F35: 712500.78 | G35: 748929
A36: Total | B36: =SUM(B31:B35) -> 1862238 | C36: =SUM(C31:C35) -> 1873097 | D36: 2160839 | E36: 2197671.37 | F36: 2528370.5 | G36: 2715082
A37: %Change (year over year) | D37: =IF(ISERROR((D36-C36)/C36), "", (D36-C36)/C36) -> 0.1536183123 | E37: =IF(ISERROR((E36-D36)/D36), "", (E36-D36)/D36) -> 0.01704540227 | F37: =IF(ISERROR((F36-E36)/E36), "", (F36-E36)/E36) -> 0.1504770615 | G37: =IF(ISERROR((G36-F36)/F36), "", (G36-F36)/F36) -> 0.07384657431
B40: =B13 -> Last Rebasing Year (2009 BA) | C40: =C13 -> Last Rebasing Year (2009 Actuals) | D40: ="Variance " & 'LDC Info'!E30 & " BA – " & 'LDC Info'!E30 & " Actuals" -> Variance 2009 BA – 2009 Actuals | E40: =D13 -> 2010 Actuals | F40: ="Variance " & 'LDC Info'!E26 -2 & " Actuals vs. " & 'LDC Info'!E30 & " Actuals" -> Variance 2010 Actuals vs. 2009 Actuals | G40: =E13 -> 2011 Actuals | H40: ="Variance " & 'LDC Info'!E26 -1 & " Actuals vs. " & 'LDC Info'!E26-2 & " Actuals" -> Variance 2011 Actuals vs. 2010 Actuals | I40: =F13 -> 2012 Bridge Year | J40: ="Variance " & 'LDC Info'!E26 & " Bridge vs. " & 'LDC Info'!E26 -1 & " Actuals" -> Variance 2012 Bridge vs. 2011 Actuals | K40: =G13 -> 2013 Test Year | L40: ="Variance " & 'LDC Info'!E28 & " Test vs. " & 'LDC Info'!E26 & " Bridge" -> Variance 2013 Test vs. 2012 Bridge
A41: Operations | B41: =B15 -> 714543 | C41: 853629 | D41: =B41-C41 -> -139086 | E41: =D15 -> 897447 | F41: =E41-C41 -> 43818 | G41: =E15 -> 744387.46 | H41: =G41-E41 -> -153059.54 | I41: =F15 -> 946315.72 | J41: =I41-G41 -> 201928.26 | K41: =G15 -> 1093436 | L41: =K41-I41 -> 147120.28
A42: Maintenance | B42: 186092 | C42: 186094 | D42: =B42-C42 -> -2 | E42: =D16 -> 170839 | F42: =E42-C42 -> -15255 | G42: =E16 -> 205656.51 | H42: =G42-E42 -> 34817.51 | I42: =F16 -> 269390 | J42: 63733.49 | K42: =G16 -> 275312 | L42: 5922
A43: Billing and Collecting | B43: =B20 -> 501622 | C43: 434918 | D43: 66704 | E43: =D20 -> 484560 | F43: 49642 | G43: =E20 -> 563328.36 | H43: 78768.36 | I43: =F20 -> 599164 | J43: 35835.64 | K43: =G20 -> 596505 | L43: -2659
A44: Community Relations | B44: 0 | C44: 0 | D44: 0 | E44: =D21 -> 1967 | F44: 1967 | G44: =E21 -> 5364.75 | H44: 3397.75 | I44: =F21 -> 1000 | J44: -4364.75 | K44: =G21 -> 900 | L44: -100
A45: Administrative and General | B45: 459981 | C45: 398456 | D45: 61525 | E45: 606026 | F45: 207570 | G45: 678934.29 | H45: 72908.29 | I45: 712500.78 | J45: 33566.49 | K45: 748929 | L45: 36428.22
A46: Total OM&A Expenses | B46: =SUM(B41:B45) -> 1862238 | C46: =SUM(C41:C45) -> 1873097 | D46: -10859 | E46: 2160839 | F46: 287742 | G46: 2197671.37 | H46: 36832.37 | I46: 2528370.5 | J46: 330699.13 | K46: 2715082 | L46: 186711.5
A47: Variance from previous year | E47: =E46-C46 -> 287742 | G47: =G46-E46 -> 36832.37 | I47: =I46-G46 -> 330699.13 | K47: =K46-I46 -> 186711.5
A48: Percent change (year over year) | E48: =IF(ISERROR(E47/C46), "", E47/C46) -> 0.1536183123 | G48: =IF(ISERROR(G47/E46), "", G47/E46) -> 0.01704540227 | I48: =IF(ISERROR(I47/G46), "", I47/G46) -> 0.1504770615 | K48: =IF(ISERROR(K47/I46), "", K47/I46) -> 0.07384657431
A49: Percent Change: Test year vs. Most Current Actual | G49: =IF(ISERROR((K46-G46)/G46), "", (K46-G46)/G46) -> 0.2354358514
A50: Simple average of % variance for all years | G50: =IF(ISERROR((K46-C46)/C46), "", (K46-C46)/C46) -> 0.4495148943 | L50: =IF(ISERROR(AVERAGE(E48,G48,I48,K48)), "", AVERAGE(E48,G48,I48,K48)) -> 0.09874683762
A51: Compound Annual Growth Rate for all years | G51: =IF(ISERROR((K47-C47)/C47), "", (K47-C47)/C47) ->  | L51: =IF((K46-C46)=0, "", (K46-C46)^(1/5)-1) -> 14.31302075
A52: ="Compound Growth Rate (" & E13 & " vs. " & 'LDC Info'!E30 & " Actuals)" -> Compound Growth Rate (2011 Actuals vs. 2009 Actuals) | G52: =IF(ISERROR((G46/C46)^(1/(2010-2008)) - 1), "", (G46-C46)/C46) -> 0.1732822005
A54: Note:
A56: 1 "BA" = Board-Approved
A57: 2 If it has been more than three years since the applicant last filed a cost of service application, additional years of historical actuals should be incorporated into the table, as necessary, to go back to the last cost of service application. If the applicant last filed a cost of service application less than three years ago, a minimum of three years of actual information is required.
A59: 3 Recoverable OM&A that is included on these tables should be identical to the recoverable OM&A that is shown for the corresponding periods on Appendix 2-H.

Sheet App.2-J_OM&A_Cost _Drivers
F1: File Number: | G1: ='LDC Info'!$E$18 -> EB-2012-0168
F2: Exhibit: | G2: 4
F3: Tab: | G3: 2
F4: Schedule: | G4: 1
F5: Attachment: | G5: 3
F7: Date: | G7: 2012-09-28
A10: Appendix 2-J
A11: OM&A Cost Driver Table
A13: OM&A | B13: ="Last Rebasing Year (" & 'LDC Info'!E30 & " Actuals)" -> Last Rebasing Year (2009 Actuals) | C13: 2009 Actuals | D13: ='LDC Info'!E26 -2 & " Actuals" -> 2010 Actuals | E13: ='LDC Info'!E26 -1 & " Actuals" -> 2011 Actuals | F13: ='LDC Info'!E26 & " Bridge Year" -> 2012 Bridge Year | G13: ='LDC Info'!E28 & " Test Year" -> 2013 Test Year
A14: Reporting Basis | B14: CGAAP | D14: CGAAP | E14: CGAAP | F14: CGAAP | G14: MIFRS
A15: Opening Balance | B15: 1862236.204 | C15: =B48 -> 1873097.204 | D15: =+B48 -> 1873097.204 | E15: =+D48 -> 2160839.204 | F15: =+E48 -> 2197671.204 | G15: =+F48 -> 2528371
A16: Operation Regulatory Affairs position | B16: 55000 | D16: 40000
A17: Linesperson Apprentice | B17: 57000
A18: Employee Retirement costs | D18: 29000 | E18: -29000
A19: FTE Reductions | E19: -70000 | G19: -22000
A20: Increased CSR hours & Labour allocation | D20: 67000 | E20: 70000
A21: Indirect Labour allocation increase due to transfer pricing study | F21: 81000
A22: Pay Grid Movement | B22: 19000 | D22: 42000 | E22: 58000 | F22: 0 | G22: 56000
A23: Board of Directors (2 members) | B23: 10000 | E23: -10000
A24: Additional Officer - President | E24: 8000
A25: Former PUC Employee Benefits Settlement | D25: 128000 | E25: -128000
A26: Strategic Plan | B26: 51000 | D26: -51000
A27: Increased Legal costs | D27: 21000 | E27: -21000 | G27: 20000
A28: Board Governance | D28: 15000 | E28: -15000
A29: Billing system capitalized and amortized | B29: -55000
A30: Late Payment Contingency Reduction | B30: -45000 | D30: 15000 | E30: 60000 | F30: -30000
A31: Partial amortization of 2009 Rate App Costs during fiscal 2009 | B31: -9000 | D31: 9000
A32: Rate Application cost recovery | G32: 19000
A33: Increased Training | G33: 12000
A34: Elimination of PST | G34: -35000
A35: Billing System Upgrade Training Costs | G35: 5000
A36: Rent cost increase due to Transfer Pricing study | F36: 42000
A37: Smart Meter Stranded Inventory Costs | F37: 35000 | G37: -35000
A38: Smart Meter Incremental Operating Costs | G38: 22000
A39: Other | B39: 21861 | D39: 22742 | E39: 38832 | F39: 10699.79638 | G39: 35711
B40: =+SUM(B16:B39) -> 104861 | C40: 0 | D40: 337742 | E40: -38168 | F40: 138699.7964 | G40: 77711
B41: =+B40/B15 -> 0.05630918344 | D41: =+D40/D15 -> 0.1803120518 | E41: =+E40/E15 -> -0.01766350774 | F41: =+F40/F15 -> 0.06311216899 | G41: =+G40/G15 -> 0.03073560012
A42: CSC Charge to Smart Meter project | D42: -30000 | E42: 30000
A43: Decreased Capitalization of Costs due to shift from GAAP to IFRS | G43: 119000
A44: Decreased Capitalization of Management Fee | D44: 55000
A45: Decreased (Increased) Capitalization of Labour | B45: -118000 | D45: -76000 | E45: 67000 | F45: 207000 | G45: -39000
A46: Decreased (Increased) Capitalization of Fleet | B46: 24000 | D46: 1000 | E46: -22000 | F46: -15000 | G46: 29000
B47: =+SUM(B42:B46) -> -94000 | C47: 0 | D47: -50000 | E47: 75000 | F47: 192000 | G47: 109000
A48: Closing Balance | B48: =+B40+B47+B15 -> 1873097.204 | C48: 1873097.204 | D48: 2160839.204 | E48: 2197671.204 | F48: 2528371 | G48: 2715082
D49: =+(D48-C48)/C48 -> 0.1536182956 | E49: =+(E48-D48)/D48 -> 0.01704522944 | F49: =+(F48-E48)/E48 -> 0.1504773762 | G49: =+($G$48-$F$48)/$F$48 -> 0.07384636195
A50: Notes: | G50: =+($G$48-$B$48)/$B$48 -> 0.4495147367
F51: Annual Growth Average | G51: 0.097
A53: 1 | B53: For each year, a detailed explanation for each cost driver and associated amount is
B54: required.
A55: 2 | B55: The closing balance for each year becomes the opening balance for the next year.
A56: 3 | B56: If it has been more than three years since the applicant last filed a cost of service application, additional years of historical actuals should be incorporated into the table, as necessary, to go back to the last cost of service application. If the applicant last filed a cost of service application less than three years ago, a minimum of three years of actual information is required.
A60: 4 | B60: Opening Balance for "Last Rebasing Year" (cell B15) should be equal to the Board-Approved amount.

Sheet App.2-K_Employee Costs
F1: File Number: | G1: ='LDC Info'!$E$18 -> EB-2012-0168
F2: Exhibit: | G2: 4
F3: Tab: | G3: 4
F4: Schedule: | G4: 1
F5: Attachment: | G5: 1
F7: Date: | G7: 2012-09-28
A9: Appendix 2-K
A10: Employee Costs
B12: ="Last Rebasing Year (" & 'LDC Info'!E30 & " Board-Approved)" -> Last Rebasing Year (2009 Board-Approved) | C12: ="Last Rebasing Year (" & 'LDC Info'!E30 & " Actuals)" -> Last Rebasing Year (2009 Actuals) | D12: ='LDC Info'!E26 -2 & " Actuals" -> 2010 Actuals | E12: ='LDC Info'!E26 -1 & " Actuals" -> 2011 Actuals | F12: ='LDC Info'!E26 & " Bridge Year" -> 2012 Bridge Year | G12: ='LDC Info'!E28 & " Test Year" -> 2013 Test Year
A13: Reporting Basis | B13: CGAAP | C13: CGAAP | D13: CGAAP | E13: CGAAP | F13: MIFRS | G13: MIFRS
A14: Number of Employees (FTEs including Part-Time)1
A15: Executive | B15: 0.55 | C15: 0.55 | D15: 0.55 | E15: 0.45 | F15: 0.6184 | G15: 0.6184
A16: Management | B16: 1.85 | C16: 2.43 | D16: 2.975 | E16: 2.555 | F16: 2.6464 | G16: 2.6464
A17: Non-Union | B17: 14.65 | C17: 15.85 | D17: 16.945 | E17: 16.415 | F17: 16.8458 | G17: 16.55
A18: Union
A19: Total | B19: =SUM(B15:B18) -> 17.05 | C19: 18.83 | D19: 20.47 | E19: 19.42 | F19: 20.1106 | G19: 19.8148
A20: Number of Part-Time Employees
A21: Executive
A22: Management
A23: Non-Union
A24: Union
A25: Total | B25: =SUM(B21:B24) -> 0 | C25: 0 | D25: 0 | E25: 0 | F25: 0 | G25: 0
A26: Total Salary and Wages
A27: Executive | B27: 49000 | C27: 59000 | D27: 61000 | E27: 51000 | F27: 74000 | G27: 74000
A28: Management | B28: 124000 | C28: 193000 | D28: 252000 | E28: 218000 | F28: 212000 | G28: 222000
A29: Non-Union | B29: 719000 | C29: 917000 | D29: 1040000 | E29: 1012000 | F29: 1051000 | G29: 1078000
A30: Union
A31: Total | B31: =SUM(B27:B30) -> 892000 | C31: 1169000 | D31: 1353000 | E31: 1281000 | F31: 1337000 | G31: 1374000
A32: Current Benefits
A33: Executive | B33: 15000 | C33: 13000 | D33: 13000 | E33: 11000 | F33: 16000 | G33: 16000
A34: Management | B34: 42000 | C34: 48000 | D34: 60000 | E34: 55000 | F34: 55000 | G34: 55000
A35: Non-Union | B35: 223000 | C35: 252000 | D35: 281000 | E35: 272000 | F35: 284000 | G35: 283000
A36: Union
A37: Total | B37: =SUM(B33:B36) -> 280000 | C37: 313000 | D37: 354000 | E37: 338000 | F37: 355000 | G37: 354000
A38: Accrued Pension and Post-Retirement Benefits
A39: Executive
A40: Management
A41: Non-Union
A42: Union
A43: Total | B43: =SUM(B39:B42) -> 0 | C43: 0 | D43: 0 | E43: 0 | F43: 0 | G43: 0
A44: Total Benefits (Current + Accrued)
A45: Executive | B45: =B33+B39 -> 15000 | C45: 13000 | D45: 13000 | E45: 11000 | F45: 16000 | G45: 16000
A46: Management | B46: 42000 | C46: 48000 | D46: 60000 | E46: 55000 | F46: 55000 | G46: 55000
A47: Non-Union | B47: 223000 | C47: 252000 | D47: 281000 | E47: 272000 | F47: 284000 | G47: 283000
A48: Union | B48: 0 | C48: 0 | D48: 0 | E48: 0 | F48: 0 | G48: 0
A49: Total | B49: 280000 | C49: 313000 | D49: 354000 | E49: 338000 | F49: 355000 | G49: 354000
A50: Total Compensation (Salary, Wages, & Benefits)
A51: Executive | B51: =B27+B45 -> 64000 | C51: 72000 | D51: 74000 | E51: 62000 | F51: 90000 | G51: 90000
A52: Management | B52: 166000 | C52: 241000 | D52: 312000 | E52: 273000 | F52: 267000 | G52: 277000
A53: Non-Union | B53: 942000 | C53: 1169000 | D53: 1321000 | E53: 1284000 | F53: 1335000 | G53: 1361000
A54: Union | B54: 0 | C54: 0 | D54: 0 | E54: 0 | F54: 0 | G54: 0
A55: Total | B55: 1172000 | C55: 1482000 | D55: 1707000 | E55: 1619000 | F55: 1692000 | G55: 1728000
A56: Compensation - Average Yearly Base Wages
A57: Executive | B57: =ROUND(B27/B15,-3)+1000 -> 90000 | C57: =ROUND(C27/C15,-3) -> 107000 | D57: 111000 | E57: 113000 | F57: 120000 | G57: 120000
A58: Management | B58: =ROUND(B28/B16,-3) -> 67000 | C58: 79000 | D58: 85000 | E58: 85000 | F58: 80000 | G58: 84000
A59: Non-Union | B59: =ROUND(B29/B17,-3) -> 49000 | C59: 58000 | D59: 61000 | E59: 62000 | F59: 62000 | G59: 65000
A60: Union
A61: Total | B61: =ROUND(B55/B19,-3) -> 69000 | C61: 79000 | D61: 83000 | E61: 83000 | F61: 84000 | G61: 87000
A62: Compensation - Average Yearly Overtime
A63: Executive
A64: Management
A65: Non-Union | B65: 2000 | C65: 3000 | D65: 3000 | E65: 5000 | F65: 1000 | G65: 1000
A66: Union
A67: Total | B67: 2000 | C67: 2000 | D67: 3000 | E67: 4000 | F67: 1000 | G67: 1000
A68: Compensation - Average Yearly Incentive Pay
A69: Executive
A70: Management
A71: Non-Union
A72: Union
A73: Total
A74: Compensation - Average Yearly Benefits
A75: Executive | B75: =ROUND(B33/B15,-3) -> 27000 | C75: 24000 | D75: 24000 | E75: 24000 | F75: 26000 | G75: 26000
A76: Management | B76: 23000 | C76: 20000 | D76: 20000 | E76: 22000 | F76: 21000 | G76: 21000
A77: Non-Union | B77: 15000 | C77: 16000 | D77: 17000 | E77: 17000 | F77: 17000 | G77: 17000
A78: Union
A79: Total | B79: =ROUND(B37/B19,-3) -> 16000 | C79: 17000 | D79: 17000 | E79: 17000 | F79: 18000 | G79: 18000
A81: Total Compensation | B81: =SUM(B51:B54) -> 1172000 | C81: 1482000 | D81: 1707000 | E81: 1619000 | F81: 1692000 | G81: 1728000
A82: Total Compensation Capitalized (CGAAP) | B82: 131000 | C82: 296000 | D82: 372000 | E82: 306000 | F82: 99000
A83: Total Compensation Charged to OM&A (CGAAP) | B83: =B81-B82 -> 1041000 | C83: =C81-C82 -> 1186000 | D83: =D81-D82 -> 1335000 | E83: =E81-E82 -> 1313000 | F83: =F81-F82 -> 1593000
A85: Total Compensation Capitalized (MIFRS) | E85: =+E82 -> 306000 | F85: =+F82 -> 99000 | G85: 138000
A86: Total Compensation Charged to OM&A (MIFRS) | E86: =E81-E85 -> 1313000 | F86: =F81-F85 -> 1593000 | G86: =G81-G85 -> 1590000
A89: 1 If an applicant wishes to use headcount, it must also file the same schedule on an FTE basis.
A91: Note:
A92: 1 Please report compensation on a CGAAP and MIFRS basis for your transition year.

Sheet App.2-L_OM&A_per_Cust_FTEE
G1: File Number: | H1: ='LDC Info'!$E$18 -> EB-2012-0168
G2: Exhibit: | H2: 4
G3: Tab: | H3: 2
G4: Schedule: | H4: 1
G5: Attachment: | H5: 5
G7: Date: | H7: 2012-09-28
A9: Appendix 2-L
A10: Recoverable OM&A Cost per Customer and per FTEE
C12: ="Last Rebasing Year (" & 'LDC Info'!E30 & " Board-Approved)" -> Last Rebasing Year (2009 Board-Approved) | D12: ="Last Rebasing Year (" & 'LDC Info'!E30 & " Actuals)" -> Last Rebasing Year (2009 Actuals) | E12: ='LDC Info'!E26 -2 & " Actuals" -> 2010 Actuals | F12: ='LDC Info'!E26 -1 & " Actuals" -> 2011 Actuals | G12: ='LDC Info'!E26 & " Bridge Year" -> 2012 Bridge Year | H12: ='LDC Info'!E28 & " Test Year" -> 2013 Test Year
A13: Reporting Basis | C13: CGAAP | D13: CGAAP | E13: CGAAP | F13: CGAAP | G13: CGAAP | H13: MIFRS
A14: Number of Customers | C14: 6759 | D14: 6790 | E14: 6844 | F14: 6887 | G14: 6900 | H14: 6940
A15: Total Recoverable OM&A from Appendix 2-I | C15: 1862238 | D15: =+'App.2-G_Detailed_OM&A_Expenses'!C119 -> 1873096.77 | E15: =+'App.2-G_Detailed_OM&A_Expenses'!D119 -> 2160839.04 | F15: =+'App.2-G_Detailed_OM&A_Expenses'!E119 -> 2197671.37 | G15: =+'App.2-G_Detailed_OM&A_Expenses'!F119 -> 2528370.5 | H15: =+'App.2-G_Detailed_OM&A_Expenses'!H119 -> 2715082
A16: OM&A cost per customer | C16: =IF(C14=0,"",C15/C14) -> 275.5197514 | D16: 275.8610854 | E16: 315.7275044 | F16: 319.1043081 | G16: 366.4305072 | H16: 391.2221902
A17: Number of FTEEs | C17: =+'App.2-K_Employee Costs'!B19 -> 17.05 | D17: =+'App.2-K_Employee Costs'!C19 -> 18.83 | E17: =+'App.2-K_Employee Costs'!D19 -> 20.47 | F17: =+'App.2-K_Employee Costs'!E19 -> 19.42 | G17: =+'App.2-K_Employee Costs'!F19 -> 20.1106 | H17: =+'App.2-K_Employee Costs'!G19 -> 19.8148
A18: Customers/FTEEs | C18: =IF(C17=0,"",C14/C17) -> 396.4222874 | D18: 360.5947955 | E18: 334.3429409 | F18: 354.6343975 | G18: 343.1026424 | H18: 350.2432525
A19: OM&A Cost per FTEE | C19: =IF(C17=0,"",C15/C17) -> 109222.1701 | D19: 99474.07169 | E19: 105561.2623 | F19: 113165.3641 | G19: 125723.2753 | H19: 137022.9324
A21: Notes:
A23: 1 | B23: If it has been more than three years since the applicant last filed a cost of service application, additional years of historical actuals should be incorporated into the table, as necessary, to go back to the last cost of service application. If the applicant last filed a cost of service application less than three years ago, a minimum of three years of actual information is required.
A27: 2 | B27: The method of calculating the number of customers must be identified.
A28: 3 | B28: The method of calculating the number of FTEEs must be identified. See also Appendix 2-K
A29: 4 | B29: The number of customers and the number of FTEEs should correspond to mid-year or average of January 1 and December 31 figures.

Sheet App.2-M_Regulatory_Costs
J1: File Number: | K1: ='LDC Info'!$E$18 -> EB-2012-0168
J2: Exhibit: | K2: 4
J3: Tab: | K3: 2
J4: Schedule: | K4: 1
J5: Attachment: | K5: 4
J7: Date: | K7: 2012-09-28
A9: Appendix 2-M
A10: Regulatory Cost Schedule
A13: Regulatory Cost Category | C13: USoA Account | D13: USoA Account Balance (2009 Board Approved) | E13: Ongoing or One-time Cost? 2 | F13: ="Last Rebasing Year (" & 'LDC Info'!E30 & " Board Approved)" -> Last Rebasing Year (2009 Board Approved) | G13: Most Current Actuals Year 2011 | H13: ='LDC Info'!E26 & " Bridge Year" -> 2012 Bridge Year | I13: Annual % Change | J13: ='LDC Info'!E28 & " Test Year" -> 2013 Test Year | K13: Annual % Change
A14: (A) | C14: (B) | D14: (C ) | E14: (D) | F14: (E) | G14: (F) | H14: (G) | I14: (H) = [(G)-(F)]/(F) | J14: (I) | K14: (J) = [(I)-(G)]/(G)
A15: 1 | B15: OEB Annual Assessment | C15: 5655 | D15: 43544 | E15: On-Going | F15: 16244 | G15: 18091 | H15: =5468*3+4569 -> 20973 | I15: =IF(G15=0,"",(H15-G15)/G15) -> 0.1593057321 | J15: 22000 | K15: =IF(H15=0,"",(J15-H15)/H15) -> 0.0489677204
A16: 2 | B16: OEB Section 30 Costs (Applicant-originated) | I16: =IF(G16=0,"",(H16-G16)/G16) ->  | K16: =IF(H16=0,"",(J16-H16)/H16) -> 
A17: 3 | B17: OEB Section 30 Costs (OEB-initiated) | C17: 5655 | E17: On-Time | G17: 672.65 | H17: 1000 | I17: 0.4866572512 | J17: 1000 | K17: 0
A18: 4 | B18: Expert Witness costs for regulatory matters
A19: 5 | B19: Legal costs for regulatory matters
A20: 6 | B20: Consultants' costs for regulatory matters | C20: 5655 | D20: 43544 | E20: On-Time | F20: 18750 | G20: =5850+26496-7750 -> 24596 | H20: =26496-7750 -> 18746 | I20: -0.2378435518 | J20: =135000/4 -> 33750 | K20: 0.8003840819
A21: 7 | B21: Operating expenses associated with staff resources allocated to regulatory matters | C21: 5655 | E21: On-Time | J21: =10000/4 -> 2500
A22: 8 | B22: Operating expenses associated with other resources allocated to regulatory matters 1
A23: 9 | B23: Other regulatory agency fees or assessments | C23: 5680 | D23: 3602 | E23: On-Going | F23: =4402-800 -> 3602 | G23: 2458 | H23: 6200 | I23: 1.522375915 | J23: 6200 | K23: 0
A24: 10 | B24: Any other costs for regulatory matters (Distribution Licence) | C24: 5655 | D24: 43544 | E24: On-Going | F24: 800 | G24: 800 | H24: 800 | I24: =IF(G24=0,"",(H24-G24)/G24) -> 0 | J24: 800 | K24: =IF(H24=0,"",(J24-H24)/H24) -> 0
A25: 11 | B25: Intervenor costs | C25: 5655 | D25: 43544 | E25: On-Time | F25: 7750 | G25: =660+7750 -> 8410 | H25: =607.5+7750 -> 8357.5 | I25: -0.006242568371 | J25: =35000/4 -> 8750 | K25: 0.04696380497
A26: 12 | B26: Sub-total - Ongoing Costs 3 | D26: =SUMIF($E15:$E25,$E11,D15:D25) -> 0 | F26: =SUMIF($E15:$E25,$E11,F15:F25) -> 0 | G26: =SUMIF($E15:$E25,$E11,G15:G25) -> 0 | H26: =SUMIF($E15:$E25,$E11,H15:H25) -> 0 | J26: =SUMIF($E15:$E25,$E11,J15:J25) -> 0
A27: 13 | B27: Sub-total - One-time Costs 4 | D27: =SUMIF($E15:$E25,$E12,D15:D25) -> 0 | F27: =SUMIF($E15:$E25,$E12,F15:F25) -> 0 | G27: =SUMIF($E15:$E25,$E12,G15:G25) -> 0 | H27: =SUMIF($E15:$E25,$E12,H15:H25) -> 0 | J27: =SUMIF($E15:$E25,$E12,J15:J25) -> 0
A28: 14 | B28: Total | D28: =D26+D27 -> 0 | F28: =F26+F27 -> 0 | G28: =G26+G27 -> 0 | H28: =H26+H27 -> 0 | J28: =J26+J27 -> 0
A31: 1 | B31: Please identify the resources involved.
A32: 2 | B32: Where a category's costs include both one-time and ongoing costs, the applicant should prove a separate breakdown between one-time and ongoing costs.
A33: 3 | B33: Sum of all ongoing costs identified in rows 1 to 11 inclusive.
A34: 4 | B34: Sum of all one-time costs identified in rows 1 to 11 inclusive.
A37: Please fill out the following table for all one-time costs related to this cost of service application
C39: Historical Year(s) | D39: =H13 -> 2012 Bridge Year | E39: =J13 -> 2013 Test Year
A40: 4 | B40: Expert Witness costs for regulatory matters | D40: =H18 -> 0 | E40: =J18 -> 0
A41: 6 | B41: Consultants' costs for regulatory matters | D41: =H20 -> 18746 | E41: =J20 -> 33750
A42: 7 | B42: Operating expenses associated with staff resources allocated to regulatory matters | D42: =H21 -> 0 | E42: =J21 -> 2500
A43: 8 | B43: Operating expenses associated with other resources allocated to regulatory matters 1 | D43: =H22 -> 0 | E43: =J22 -> 0
A44: 11 | B44: Intervenor costs | D44: =H25 -> 8357.5 | E44: =J25 -> 8750

Sheet App.2-N_Corp_Cost_Allocation
F1: File Number: | G1: ='LDC Info'!$E$18 -> EB-2012-0168
F2: Exhibit: | G2: 4
F3: Tab: | G3: 5
F4: Schedule: | G4: 1
F5: Attachment: | G5: 1
F7: Date: | G7: 2012-09-28
A9: Appendix 2-N
A10: Shared Services and Corporate Cost Allocation
B12: Year: | C12: 2009
A14: Shared Services
A16: Name of Company | C16: Service Offered | D16: Pricing Methdology | E16: Price for the Service | F16: Cost for the Service
A17: From | B17: To
E18: $ | F18: $
A28: Corporate Cost Allocation
A30: Name of Company | C30: Service Offered | D30: Pricing Methdology | E30: % of Corporate Costs Allocated | F30: Amount Allocated
A31: From | B31: To
E32: % | F32: $
A33: the Town of Tillsonburg | B33: Tillsonburg Hydro Inc. | C33: Capital | D33: Actual + 5% | E33: 1 | F33: 1320585
C34: Operations | D34: Fixed Anually | E34: 1 | F34: 1798406
A42: Note:
A43: 1 | B43: This appendix must be completed in relation to each service provided or received for the Historical (actuals), Bridge and Test years.
B46: Year: | C46: 2010
A48: Shared Services
A50: Name of Company | C50: Service Offered | D50: Pricing Methdology | E50: Price for the Service | F50: Cost for the Service
A51: From | B51: To
E52: $ | F52: $
A62: Corporate Cost Allocation
A64: Name of Company | C64: Service Offered | D64: Pricing Methdology | E64: % of Corporate Costs Allocated | F64: Amount Allocated
A65: From | B65: To
E66: % | F66: $
A67: the Town of Tillsonburg | B67: Tillsonburg Hydro Inc. | C67: Management Fee | D67: Fixed | E67: 1 | F67: 140004
C68: Capital & Operations | D68: Actual | E68: 1 | F68: 3948796
A76: Note:
A77: 1 | B77: This appendix must be completed in relation to each service provided or received for the Historical (actuals), Bridge and Test years.
B80: Year: | C80: 2011
A82: Shared Services
A84: Name of Company | C84: Service Offered | D84: Pricing Methdology | E84: Price for the Service | F84: Cost for the Service
A85: From | B85: To
E86: $ | F86: $
A96: Corporate Cost Allocation
A98: Name of Company | C98: Service Offered | D98: Pricing Methdology | E98: % of Corporate Costs Allocated | F98: Amount Allocated
A99: From | B99: To
E100: % | F100: $
A101: the Town of Tillsonburg | B101: Tillsonburg Hydro Inc. | C101: Management Fee | D101: Fixed | E101: 1 | F101: 140004
C102: Capital & Operations | D102: Actual | E102: 1 | F102: 3221220.77
A110: Note:
A111: 1 | B111: This appendix must be completed in relation to each service provided or received for the Historical (actuals), Bridge and Test years.
B114: Year: | C114: 2012
A116: Shared Services
A118: Name of Company | C118: Service Offered | D118: Pricing Methdology | E118: Price for the Service | F118: Cost for the Service
A119: From | B119: To
E120: $ | F120: $
A130: Corporate Cost Allocation
A132: Name of Company | C132: Service Offered | D132: Pricing Methdology | E132: % of Corporate Costs Allocated | F132: Amount Allocated
A133: From | B133: To
E134: % | F134: $
A135: the Town of Tillsonburg | B135: Tillsonburg Hydro Inc. | C135: Management Fee | D135: Fixed | E135: 1 | F135: 140004
C136: Capital & Operations | D136: Actual | E136: 1 | F136: 3081981
A144: Note:
A145: 1 | B145: This appendix must be completed in relation to each service provided or received for the Historical (actuals), Bridge and Test years.
B148: Year: | C148: 2013
A150: Shared Services
A152: Name of Company | C152: Service Offered | D152: Pricing Methdology | E152: Price for the Service | F152: Cost for the Service
A153: From | B153: To
E154: $ | F154: $
A164: Corporate Cost Allocation
A166: Name of Company | C166: Service Offered | D166: Pricing Methdology | E166: % of Corporate Costs Allocated | F166: Amount Allocated
A167: From | B167: To
E168: % | F168: $
A169: the Town of Tillsonburg | B169: Tillsonburg Hydro Inc. | C169: Management Fee | D169: Fixed | E169: 1 | F169: 140004
C170: Capital & Operations | D170: Actual | E170: 1 | F170: 3276482
A178: Note:
A179: 1 | B179: This appendix must be completed in relation to each service provided or received for the Historical (actuals), Bridge and Test years.

Sheet App.2-OA Capital Structure
K1: File Number: | O1: ='LDC Info'!$E$18 -> EB-2012-0168
K2: Exhibit: | O2: 5
K3: Tab: | O3: 1
K4: Schedule: | O4: 1
K5: Attachment: | O5: 2
K7: Date: | O7: 2012-09-28
C10: Appendix 2-OA
C11: Capital Structure and Cost of Capital
A13: This table must be completed for the required years of all historical years, the bridge year and the test year.
A15: Line No.
C16: Particulars | E16: Capitalization Ratio | K16: Cost Rate | O16: Return
C19: Application
E20: (%) | I20: ($) | K20: (%) | O20: ($)
C21: Debt
A22: 1 | C22: Long-term Debt | E22: 0.5267 | I22: =$I$31*E22 -> 4399673.629 | K22: 0.0762 | O22: =K22*I22 -> 335255.1306
A23: 2 | C23: Short-term Debt | E23: 0.04 | G23: (1) | I23: =$I$31*E23 -> 334131.28 | K23: 0.0133 | O23: =K23*I23 -> 4443.946024
A24: 3 | C24: Total Debt | E24: =SUM(E22:E23) -> 0.5667 | I24: =SUM(I22:I23) -> 4733804.909 | K24: =IF(E24=0,0,SUMPRODUCT(E22:E23,K22:K23)/E24) -> 0.07176026116 | O24: =SUM(O22:O23) -> 339699.0766
C26: Equity
A27: 4 | C27: Common Equity | E27: 0.4333 | I27: =$I$31*E27 -> 3619477.091 | K27: 0.0801 | O27: =K27*I27 -> 289920.115
A28: 5 | C28: Preferred Shares | I28: =$I$31*E28 -> 0 | O28: =K28*I28 -> 0
A29: 6 | C29: Total Equity | E29: =SUM(E27:E28) -> 0.4333 | I29: =SUM(I27:I28) -> 3619477.091 | K29: =IF(E29=0,0,SUMPRODUCT(E27:E28,K27:K28)/E29) -> 0.0801 | O29: =SUM(O27:O28) -> 289920.115
A31: 7 | C31: Total | E31: 1 | I31: 8353282 | K31: =(K24*E24)+(K29*E29) -> 0.07537387 | O31: =O24+O29 -> 629619.1915
A34: Notes
A35: (1) | C35: 4.0% unless an applicant has proposed or been approved for a different amount.
C36: 2009
C44: Appendix 2-OA
C45: Capital Structure and Cost of Capital
A47: This table must be completed for the required years of all historical years, the bridge year and the test year.
A49: Line No.
C50: Particulars | E50: Capitalization Ratio | K50: Cost Rate | O50: Return
C53: Application
E54: (%) | I54: ($) | K54: (%) | O54: ($)
C55: Debt
A56: 1 | C56: Long-term Debt | E56: 0.56 | I56: =$I$65*E56 -> 4814765.2 | K56: 0.0762 | O56: =K56*I56 -> 366885.1082
A57: 2 | C57: Short-term Debt | E57: 0.04 | G57: (1) | I57: =$I$65*E57 -> 343911.8 | K57: 0.0133 | O57: =K57*I57 -> 4574.02694
A58: 3 | C58: Total Debt | E58: =SUM(E56:E57) -> 0.6 | I58: =SUM(I56:I57) -> 5158677 | K58: =IF(E58=0,0,SUMPRODUCT(E56:E57,K56:K57)/E58) -> 0.07200666667 | O58: =SUM(O56:O57) -> 371459.1352
C60: Equity
A61: 4 | C61: Common Equity | E61: 0.4 | I61: =$I$65*E61 -> 3439118 | K61: 0.0801 | O61: =K61*I61 -> 275473.3518
A62: 5 | C62: Preferred Shares | I62: =$I$31*E62 -> 0 | O62: =K62*I62 -> 0
A63: 6 | C63: Total Equity | E63: =SUM(E61:E62) -> 0.4 | I63: =SUM(I61:I62) -> 3439118 | K63: =IF(E63=0,0,SUMPRODUCT(E61:E62,K61:K62)/E63) -> 0.0801 | O63: =SUM(O61:O62) -> 275473.3518
A65: 7 | C65: Total | E65: 1 | I65: 8597795 | K65: =(K58*E58)+(K63*E63) -> 0.075244 | O65: =O58+O63 -> 646932.487
A68: Notes
A69: (1) | C69: 4.0% unless an applicant has proposed or been approved for a different amount.
C70: 2010
C77: Appendix 2-OA
C78: Capital Structure and Cost of Capital
A80: This table must be completed for the required years of all historical years, the bridge year and the test year.
A82: Line No.
C83: Particulars | E83: Capitalization Ratio | K83: Cost Rate | O83: Return
C86: Application
E87: (%) | I87: ($) | K87: (%) | O87: ($)
C88: Debt
A89: 1 | C89: Long-term Debt | E89: 0.56 | I89: =$I$98*E89 -> 4928884.8 | K89: 0.0762 | O89: =K89*I89 -> 375581.0218
A90: 2 | C90: Short-term Debt | E90: 0.04 | G90: (1) | I90: =$I$98*E90 -> 352063.2 | K90: 0.0133 | O90: =K90*I90 -> 4682.44056
A91: 3 | C91: Total Debt | E91: =SUM(E89:E90) -> 0.6 | I91: =SUM(I89:I90) -> 5280948 | K91: =IF(E91=0,0,SUMPRODUCT(E89:E90,K89:K90)/E91) -> 0.07200666667 | O91: =SUM(O89:O90) -> 380263.4623
C93: Equity
A94: 4 | C94: Common Equity | E94: 0.4 | I94: =$I$98*E94 -> 3520632 | K94: 0.0801 | O94: =K94*I94 -> 282002.6232
A95: 5 | C95: Preferred Shares | I95: =$I$31*E95 -> 0 | O95: =K95*I95 -> 0
A96: 6 | C96: Total Equity | E96: =SUM(E94:E95) -> 0.4 | I96: =SUM(I94:I95) -> 3520632 | K96: =IF(E96=0,0,SUMPRODUCT(E94:E95,K94:K95)/E96) -> 0.0801 | O96: =SUM(O94:O95) -> 282002.6232
A98: 7 | C98: Total | E98: 1 | I98: 8801580 | K98: =(K91*E91)+(K96*E96) -> 0.075244 | O98: =O91+O96 -> 662266.0855
A101: Notes
A102: (1) | C102: 4.0% unless an applicant has proposed or been approved for a different amount.
C103: 2011
C110: Appendix 2-OA
C111: Capital Structure and Cost of Capital
A113: This table must be completed for the required years of all historical years, the bridge year and the test year.
A115: Line No.
C116: Particulars | E116: Capitalization Ratio | K116: Cost Rate | O116: Return
C119: Application
E120: (%) | I120: ($) | K120: (%) | O120: ($)
C121: Debt
A122: 1 | C122: Long-term Debt | E122: 0.56 | I122: =$I$131*E122 -> 4984028.56 | K122: 0.0762 | O122: =K122*I122 -> 379782.9763
A123: 2 | C123: Short-term Debt | E123: 0.04 | G123: (1) | I123: =$I$131*E123 -> 356002.04 | K123: 0.0133 | O123: =K123*I123 -> 4734.827132
A124: 3 | C124: Total Debt | E124: =SUM(E122:E123) -> 0.6 | I124: =SUM(I122:I123) -> 5340030.6 | K124: =IF(E124=0,0,SUMPRODUCT(E122:E123,K122:K123)/E124) -> 0.07200666667 | O124: =SUM(O122:O123) -> 384517.8034
C126: Equity
A127: 4 | C127: Common Equity | E127: 0.4 | I127: =$I$131*E127 -> 3560020.4 | K127: 0.0801 | O127: =K127*I127 -> 285157.634
A128: 5 | C128: Preferred Shares | I128: =$I$31*E128 -> 0 | O128: =K128*I128 -> 0
A129: 6 | C129: Total Equity | E129: =SUM(E127:E128) -> 0.4 | I129: =SUM(I127:I128) -> 3560020.4 | K129: =IF(E129=0,0,SUMPRODUCT(E127:E128,K127:K128)/E129) -> 0.0801 | O129: =SUM(O127:O128) -> 285157.634
A131: 7 | C131: Total | E131: 1 | I131: 8900051 | K131: =(K124*E124)+(K129*E129) -> 0.075244 | O131: =O124+O129 -> 669675.4374
A134: Notes
A135: (1) | C135: 4.0% unless an applicant has proposed or been approved for a different amount.
C136: 2012
C143: Appendix 2-OA
C144: Capital Structure and Cost of Capital
A146: This table must be completed for the required years of all historical years, the bridge year and the test year.
A148: Line No.
C149: Particulars | E149: Capitalization Ratio | K149: Cost Rate | O149: Return
C152: Application
E153: (%) | I153: ($) | K153: (%) | O153: ($)
C154: Debt
A155: 1 | C155: Long-term Debt | E155: 0.56 | I155: =$I$164*E155 -> 5332410.16 | K155: 0.0441 | O155: =K155*I155 -> 235159.2881
A156: 2 | C156: Short-term Debt | E156: 0.04 | G156: (1) | I156: =$I$164*E156 -> 380886.44 | K156: 0.0208 | O156: =K156*I156 -> 7922.437952
A157: 3 | C157: Total Debt | E157: =SUM(E155:E156) -> 0.6 | I157: =SUM(I155:I156) -> 5713296.6 | K157: =IF(E157=0,0,SUMPRODUCT(E155:E156,K155:K156)/E157) -> 0.04254666667 | O157: =SUM(O155:O156) -> 243081.726
C159: Equity
A160: 4 | C160: Common Equity | E160: 0.4 | I160: =$I$164*E160 -> 3808864.4 | K160: 0.0912 | O160: =K160*I160 -> 347368.4333
A161: 5 | C161: Preferred Shares | I161: =$I$31*E161 -> 0 | O161: =K161*I161 -> 0
A162: 6 | C162: Total Equity | E162: =SUM(E160:E161) -> 0.4 | I162: =SUM(I160:I161) -> 3808864.4 | K162: =IF(E162=0,0,SUMPRODUCT(E160:E161,K160:K161)/E162) -> 0.0912 | O162: =SUM(O160:O161) -> 347368.4333
A164: 7 | C164: Total | E164: 1 | I164: 9522161 | K164: =(K157*E157)+(K162*E162) -> 0.062008 | O164: =O157+O162 -> 590450.1593
A167: Notes
A168: (1) | C168: 4.0% unless an applicant has proposed or been approved for a different amount.
C169: 2013

Sheet App.2-OB_Debt Instruments
J1: File Number: | K1: ='LDC Info'!$E$18 -> EB-2012-0168
J2: Exhibit: | K2: 5
J3: Tab: | K3: 1
J4: Schedule: | K4: 1
J5: Attachment: | K5: 3
J7: Date: | K7: 2012-09-28
A10: Appendix 2-OB
A11: Debt Instruments
A13: This table must be completed for the required years of all historical years, the bridge year and the test year.
D14: Year
A16: Row | B16: Description | C16: Lender | D16: Affiliated or Third-Party Debt? | E16: Fixed or Variable-Rate? | F16: Start Date | G16: Term (years) | H16: Principal ($) | I16: Rate (%) (Note 2) | J16: Interest ($) (Note 1)
A17: 1 | B17: 2010 - Loan for Smart Meter Deployment | C17: TD Canada Trust | E17: Fixed Rate | F17: 2010-11-30 | G17: 10 | H17: 1270000 | I17: 0.0453 | J17: 4728.58 | K17: term loan debt compounded monthly
A18: 2 | J18: =H18*I18 -> 0
A19: 3 | J19: 0
A20: 4 | J20: 0
A21: 5 | J21: 0
A22: 6 | J22: 0
A23: 7 | J23: 0
A24: 8 | J24: 0
A25: 9 | J25: 0
A26: 10 | J26: 0
A27: 11 | J27: 0
A28: 12 | J28: 0
A30: Total | H30: =SUM(H17:H28) -> 1270000 | I30: =IF(H30=0,"",J30/H30) -> 0.003723291339 | J30: =SUM(J17:J28) -> 4728.58
A32: Notes
A34: 1 | B34: If financing is in place only part of the year, calculate the pro-rated interest and input in the cell.
A35: 2 | B35: Input actual or deemed long-term debt rate in accordance with the guidelines in The Report of the Board on the Cost of Capital for Ontario's Regulated Utilities, issued December 11, 2009
A36: 3 | B36: Add more lines above row 12 if necessary.
D38: Year
A40: Row | B40: Description | C40: Lender | D40: Affiliated or Third-Party Debt? | E40: Fixed or Variable-Rate? | F40: Start Date | G40: Term (years) | H40: Principal ($) | I40: Rate (%) (Note 2) | J40: Interest ($) (Note 1)
A41: 1 | B41: 2011 - Loan for Smart Meter Deployment | C41: TD Canada Trust | E41: Fixed Rate | F41: 2010-11-30 | G41: 10 | H41: 1261548.8 | I41: 0.0453 | J41: 50750.02 | K41: term loan debt compounded monthly
A42: 2 | J42: =H42*I42 -> 0
A43: 3 | J43: 0
A44: 4 | J44: 0
A45: 5 | J45: 0
A46: 6 | J46: 0
A47: 7 | J47: 0
A48: 8 | J48: 0
A49: 9 | J49: 0
A50: 10 | J50: 0
A51: 11 | J51: 0
A52: 12 | J52: 0
A54: Total | H54: =SUM(H41:H52) -> 1261548.8 | I54: =IF(H54=0,"",J54/H54) -> 0.04022834471 | J54: =SUM(J41:J52) -> 50750.02
A56: Notes
A58: 1 | B58: If financing is in place only part of the year, calculate the pro-rated interest and input in the cell.
A59: 2 | B59: Input actual or deemed long-term debt rate in accordance with the guidelines in The Report of the Board on the Cost of Capital for Ontario's Regulated Utilities, issued December 11, 2009
A60: 3 | B60: Add more lines above row 12 if necessary.
D62: Year | E62: 2012
A64: Row | B64: Description | C64: Lender | D64: Affiliated or Third-Party Debt? | E64: Fixed or Variable-Rate? | F64: Start Date | G64: Term (years) | H64: Principal ($) | I64: Rate (%) (Note 2) | J64: Interest ($) (Note 1)
A65: 1 | B65: 2012 - loan for smart meter deployment | C65: TD Canada Trust | E65: Fixed Rate | F65: 2010-11-30 | G65: 10 | H65: 1027141.46 | I65: 0.0453 | J65: 44182.4
A66: 2 | J66: =H66*I66 -> 0
A67: 3 | J67: 0
A68: 4 | J68: 0
A69: 5 | J69: 0
A70: 6 | J70: 0
A71: 7 | J71: 0
A72: 8 | J72: 0
A73: 9 | J73: 0
A74: 10 | J74: 0
A75: 11 | J75: 0
A76: 12 | J76: 0
A78: Total | H78: =SUM(H65:H76) -> 1027141.46 | I78: =IF(H78=0,"",J78/H78) -> 0.04301491247 | J78: =SUM(J65:J76) -> 44182.4
A80: Notes
A82: 1 | B82: If financing is in place only part of the year, calculate the pro-rated interest and input in the cell.
A83: 2 | B83: Input actual or deemed long-term debt rate in accordance with the guidelines in The Report of the Board on the Cost of Capital for Ontario's Regulated Utilities, issued December 11, 2009
A84: 3 | B84: Add more lines above row 12 if necessary.
D86: Year | E86: 2013
A88: Row | B88: Description | C88: Lender | D88: Affiliated or Third-Party Debt? | E88: Fixed or Variable-Rate? | F88: Start Date | G88: Term (years) | H88: Principal ($) | I88: Rate (%) (Note 2) | J88: Interest ($) (Note 1)
A89: 1 | B89: 2013 - loan for smart meter deployment | C89: TD Canada Trust | E89: Fixed Rate | F89: 2010-11-30 | G89: 10 | H89: 913166.5 | I89: 0.0453 | J89: 38903.21
A90: 2 | J90: =H90*I90 -> 0
A91: 3 | J91: 0
A92: 4 | J92: 0
A93: 5 | J93: 0
A94: 6 | J94: 0
A95: 7 | J95: 0
A96: 8 | J96: 0
A97: 9 | J97: 0
A98: 10 | J98: 0
A99: 11 | J99: 0
A100: 12 | J100: 0
A102: Total | H102: =SUM(H89:H100) -> 913166.5 | I102: =IF(H102=0,"",J102/H102) -> 0.04260253743 | J102: =SUM(J89:J100) -> 38903.21
A104: Notes
A106: 1 | B106: If financing is in place only part of the year, calculate the pro-rated interest and input in the cell.
A107: 2 | B107: Input actual or deemed long-term debt rate in accordance with the guidelines in The Report of the Board on the Cost of Capital for Ontario's Regulated Utilities, issued December 11, 2009
A108: 3 | B108: Add more lines above row 12 if necessary.

Sheet App.2-P_Cost_Allocation
E1: File Number: | F1: ='LDC Info'!$E$18 -> EB-2012-0168
E2: Exhibit: | F2: 7
E3: Tab: | F3: 1
E4: Schedule: | F4: 1
E5: Attachment: | F5: 2
E7: Date: | F7: 2012-09-28
A9: Appendix 2-P
A10: Cost Allocation
A12: Please complete the following four tables.
A14: A) Allocated Costs
A16: Classes | B16: Costs Allocated from Previous Study | C16: % | D16: Costs Allocated from Previous Study - Corrected | E16: % | F16: Costs Allocated in Test Year Study (Column 7A) | G16: %
A17: Residential | B17: 1181259 | C17: =IF(B$28=0,"",B17/B$28) -> 0.4908414361 | D17: 1347060.352 | E17: =D17/D$28 -> 0.5597358726 | F17: 2210132 | G17: =IF(F$28=0,"",F17/F$28) -> 0.6182611116
A18: GS < 50 kW | B18: 373931 | C18: =IF(B$28=0,"",B18/B$28) -> 0.1553772958 | D18: 462749.5 | E18: =D18/D$28 -> 0.1922835118 | F18: 618921 | G18: 0.1731366206
A19: GS 50 - 499 | B19: =275279 -> 275279 | C19: 0.1143850245 | D19: 231723.3154 | E19: 0.0962865932 | F19: 365063 | G19: 0.1021225231
A20: GS > 1500 kW, if applicable | B20: 339313 | C20: 0.1409926868 | D20: 181644.0372 | E20: 0.07547745242 | F20: 137258 | G20: 0.03839647752
A21: Large User, if applicable | C21: 0 | E21: 0 | G21: 0
A22: Street Lighting | B22: 73438 | C22: 0.03051524973 | D22: 73419.21925 | E22: 0.03050744585 | F22: 47170 | G22: 0.01319530989
A23: Sentinel Lighting | B23: 2082 | C23: 0.0008651209175 | D23: 2363.659297 | E23: 0.0009821571073 | F23: 16045 | G23: 0.004488419486
A24: Unmetered Scattered Load (USL) | B24: 18947 | C24: 0.007872932768 | D24: 19458.04668 | E24: 0.008085284909 | F24: 9524 | G24: 0.002664238528
A25: GS 500 - 1499 | B25: 142351 | C25: 0.05915025347 | D25: 88181.8723 | E25: 0.03664168213 | F25: 170642 | G25: 0.04773529934
C26: 0 | E26: 0 | G26: 0
A27: Embedded distributor class | C27: 0 | E27: 0 | G27: 0
A28: Total | B28: =SUM(B17:B27) -> 2406600 | C28: =SUM(C17:C27) -> 1 | D28: =SUM(D17:D27) -> 2406600.002 | E28: 1 | F28: =SUM(F17:F27) -> 3574755 | G28: =SUM(G17:G27) -> 1
A30: Notes
A32: 1 Customer Classification - If proposed rate classes differ from those in place in the previous Cost Allocation study, modify the rate classes to match the current application as closely as possible.
A35: 2 Host Distributors - Provide information on embedded distributor(s) as a separate class, if applicable. If embedded distributor(s) are billed as customers in a General Service class, include the allocated cost and revenue of the embedded distributor(s) in the applicable class. Also complete Appendix 2-Q.
A39: 3 Class Revenue Requirements - If using the Board-issued model, in column 7A enter the results from Worksheet O-1, Revenue Requirement (row 40 in the 2013 model). This excludes costs in deferral and variance accounts. Note to Embedded Distributor(s), it also does not include Account 4750 - Low Voltage (LV) Costs.
A43: B) Calculated Class Revenues
C45: Column 7B | D45: Column 7C | E45: Column 7D | F45: Column 7E
A46: Classes (same as previous table) | C46: Load Forecast (LF) X current approved rates | D46: L.F. X current approved rates X (1 + d) | E46: LF X proposed rates | F46: Miscellaneous Revenue
A48: =A17 -> Residential | C48: 1558754 | D48: 1824003 | E48: 2024779 | F48: 93537
A49: GS < 50 kW | C49: 540458 | D49: 632427 | E49: 633892 | F49: 14507
A50: GS 50 - 499 | C50: 300941 | D50: 352152 | E50: 351736 | F50: 9163
A51: GS > 1500 kW, if applicable | C51: 271726 | D51: 317965 | E51: 160017 | F51: 4656
A52: Large User, if applicable
A53: Street Lighting | C53: 65862 | D53: 77069 | E53: 54805 | F53: 1787
A54: Sentinel Lighting | C54: 4756 | D54: 5566 | E54: 8879 | F54: 764
A55: Unmetered Scattered Load (USL) | C55: 23352 | D55: 27326 | E55: 11038 | F55: 392
A56: GS 500 - 1499 | C56: 177671 | D56: 207905 | E56: 199261 | F56: 5538
A58: =A27 -> Embedded distributor class
A59: =A28 -> Total | C59: =SUM(C48:C58) -> 2943520 | D59: =SUM(D48:D58) -> 3444413 | E59: =SUM(E48:E58) -> 3444407 | F59: =SUM(F48:F58) -> 130344
A61: Notes:
A63: 1 Columns 7B to 7D - LF means Load Forecast of Annual Billing Quantities (i.e. customers or connections X 12, (kWh or kW, as applicable). Revenue Quantities should be net of Transfomrer Ownership Allowance. Exclude revenue from rate adders and rate riders.
A66: 2 Columns 7C and 7D - Column total in each column should equal the Base Revenue Requirement
A68: 3 Columns 7C - The Board cost allocation model calculates "1+d" in worksheet O-1, cell C21. "d" is defined as Revenue Deficiency/ Revenue at Current Rates.
A71: 4 Columns 7E - If using the Board-issued Cost Allocation model, enter Miscellaneous Revenue as it appears in Worksheet O-1, row 19.
A74: C) Rebalancing Revenue-to-Cost (R/C) Ratios
A76: Class | C76: Previously Approved Ratios | D76: Status Quo Ratios | E76: Proposed Ratios | F76: Policy Range
C77: Most Recent Year: | D77: (7C + 7E) / (7A) | E77: (7D + 7E) / (7A)
C78: 2009
C79: % | D79: % | E79: % | F79: %
A80: Residential | C80: 138.79 | D80: 86.76133371 | E80: 95.845678 | F80: 85 - 115
A81: GS < 50 kW | C81: 121.47 | D81: 104.5261027 | E81: 104.7628049 | F81: 80 - 120
A82: GS 50 - 499 | C82: 60.63 | D82: 98.97332789 | E82: 98.85937496 | F82: 80 - 120
A83: GS > 1500 kW, if applicable | C83: 9.97 | D83: 235.0471375 | E83: 119.9733349 | F83: 80 - 120
A84: Large User, if applicable | F84: 85 - 115
A85: Street Lighting | C85: 4581 | D85: 167.1740513 | E85: 119.9745601 | F85: 70 - 120
A86: Sentinel Lighting | C86: 156.94 | D86: 39.45154254 | E86: 60.09971954 | F86: 80 - 120
A87: Unmetered Scattered Load (USL) | C87: 80.34 | D87: 291.0331793 | E87: 120.0125997 | F87: 80 - 120
A88: GS 500 - 1499 | C88: 42.23 | D88: 125.0823361 | E88: 120.0167602 | F88: 81 - 120
D89: =IF(F4=0,"",(D35+F35)/F4*100) -> 0 | E89: =IF(F4=0,"",(E35+F35)/F4*100) -> 0
A90: =A36 -> 0 | D90: =IF(F5=0,"",(D36+F36)/F5*100) -> 0 | E90: =IF(F5=0,"",(E36+F36)/F5*100) -> 0
A96: C) Rebalancing Revenue-to-Cost (R/C) Ratios
A98: Class | C98: Previously Approved Ratios - corrected | D98: Status Quo Ratios | E98: Proposed Ratios | F98: Policy Range
C99: Most Recent Year: | D99: (7C + 7E) / (7A) | E99: (7D + 7E) / (7A)
C100: 2009
C101: % | D101: % | E101: % | F101: %
A102: =A48 -> Residential | C102: 121.96 | D102: =IF(F17=0,"",(D48+F48)/F17*100) -> 86.76133371 | E102: =IF(F17=0,"",(E48+F48)/F17*100) -> 95.845678 | F102: 85 - 115
A103: GS < 50 kW | C103: 98.55 | D103: 104.5261027 | E103: 104.7628049 | F103: 80 - 120
A104: GS 50 - 499 | C104: 71.66 | D104: 98.97332789 | E104: 98.85937496 | F104: 80 - 120
A105: GS > 1500 kW, if applicable | C105: 16.79 | D105: 235.0471375 | E105: 119.9733349 | F105: 80 - 120
A106: Large User, if applicable | F106: 85 - 115
A107: Street Lighting | C107: 45.82 | D107: 167.1740513 | E107: 119.9745601 | F107: 70 - 120
A108: Sentinel Lighting | C108: 138.48 | D108: 39.45154254 | E108: 60.09971954 | F108: 80 - 120
A109: Unmetered Scattered Load (USL) | C109: 78.29 | D109: 291.0331793 | E109: 120.0125997 | F109: 80 - 120
A110: GS 500 - 1499 | C110: 66.9 | D110: 125.0823361 | E110: 120.0167602
A112: =A58 -> Embedded distributor class
A114: Notes
A116: 1 Previously Approved Revenue-to-Cost Ratios - For most applicants, Most Recent Year would be the third year of the IRM 3 period, e.g. if the applicant rebased in 2009 with further adjustments over 2 years, the Most recent year is 2011. For applicants that have had rates adjusted only under IRM 2, the Most Recent Year is 2006, and the applicant should enter the ratios from their Informational Filing.
A119: 2 Status Quo Ratios - The Board's updated Cost Allocation Model yields the Status Quo Ratios in Worksheet O-1. Status Quo means "Before Rebalancing".
A121: D) Proposed Revenue-to-Cost Ratios
A123: Class | C123: Proposed Revenue-to-Cost Ratios | F123: Policy Range
C124: 2013 | D124: 2014 | E124: 2015
C125: % | D125: % | E125: % | F125: %
A126: =A102 -> Residential | C126: =E102 -> 95.845678 | D126: 95.91 | E126: 95.91 | F126: =F102 -> 85 - 115
A127: =A103 -> GS < 50 kW | C127: =E103 -> 104.7628049 | D127: 104.87 | E127: 104.87 | F127: =F103 -> 80 - 120
A128: GS 50 - 499 | C128: 98.85937496 | D128: 95.41 | E128: 95.41 | F128: 80 - 120
A129: GS > 1500 kW, if applicable | C129: 119.9733349 | D129: 89.75 | E129: 89.75 | F129: 80 - 120
A130: Large User, if applicable | F130: 85 - 115
A131: Street Lighting | C131: 119.9745601 | D131: 120 | E131: 120 | F131: 70 - 120
A132: Sentinel Lighting | C132: 60.09971954 | D132: 70 | E132: 80 | F132: 80 - 120
A133: Unmetered Scattered Load (USL) | C133: 120.0125997 | D133: 119.95 | E133: 119.95 | F133: 80 - 120
A134: GS 500 - 1499 | C134: 120.0167602 | D134: 91.58 | E134: 91.58 | F134: =F110 -> 0
F135: =F111 -> 0
A136: Embedded distributor class
A138: Note
A139: 1 The applicant should complete Table D if it is applying for approval of a revenue to cost ratio in 2012 that is outside the Board’s policy range for any customer class. Table (d) will show the information that the distributor would likely enter in the IRM model) in 2013. In 2013 Table (d), enter the planned ratios for the classes that will be ‘Change’ and ‘No Change’ in 2013 (in the current Revenue Cost Ratio Adjustment Workform, Worksheet C1.1 ‘Decision – Cost Revenue Adjustment’, column d), and enter TBD for class(es) that will be entered as ‘Rebalance’.

Sheet App.2-Q_Cost of Serv. Emb. Dx
F1: File Number: | G1: ='LDC Info'!$E$18 -> EB-2012-0168
F2: Exhibit: | G2: N/A
F3: Tab:
F4: Schedule:
F5: Attachment:
F7: Date: | G7: 2012-09-28
A9: Appendix 2-Q
A10: Cost of Serving Embedded Distributor(s)
A12: To be completed by Host Distributors*
A13: (Not required if Host Distributor has an Embedded Distributor rate class, i.e. a separate row in Appendix 2-P.)
A17: Proposed Rate Class for Billing Embedded Distributor(s)
A19: Host's Distribution Facilities used by Embedded Distributor(s)
A21: (1) | B21: (2) | C21: (3) | D21: (4) | E21: (5) | F21: (6) = '(3) + (4)
A22: Asset Class | B22: Total OM&A costs asociated with asset class | C22: Original cost of asset class | D22: Accumulated amortization of asset class | E22: Annual amortization of asset class | F22: Net Book Value of asset class
A23: Totals for Host Distributor: | B23: ($) | C23: ($) | D23: ($) | E23: ($)
A24: Distribution Stations | F24: =C24+D24 -> 0
A25: Low Voltage Line | F25: 0
A26: LV Line category # 2 (if applcable) | F26: 0
A27: TS (owned by host) | F27: 0
A28: add rows if necessary... | F28: 0
F29: 0
F30: 0
A32: (1) | B32: (7) | C32: (8) | D32: (9) | E32: (10) | F32: (11)
A33: =A22 -> Asset Class | B33: Total line length or station capacity in asset class | C33: Line length or capacity required to provide LV service to Embedded Distributor(s) | D33: Annual total demand on station/line providing LV services (sum of 12 monthly peaks) | E33: Annual billed Embedded Distributor demand on station/line providing LV services | F33: Embedded Distributor(s)' Responsibility Share
A34: Embedded Distributor's share: | B34: kW or kVa; km | C34: kW or kVA; km | D34: kW or kVA | E34: kW or kVA | F34: percent
A35: Distribution Stations | F35: =IF(D35=0,0,(C35/B35)*(E35/D35)) -> 0
A36: Low Voltage Line | F36: =IF(D36=0,0,(C36/B36)*(E36/D36)) -> 0
A37: LV Line # 2 (if applicable) | F37: =IF(D37=0,0,(C37/B37)*(E37/D37)) -> 0
A38: TS (owned by host) | F38: =IF(D38=0,0,(C38/B38)*(E38/D38)) -> 0
A39: add rows if necessary | F39: =IF(D39=0,0,(C39/B39)*(E39/D39)) -> 0
A41: (1) | B41: (12) | C41: (12a) | D41: (13) | E41: (14) | F41: (15) | G41: (16)
A42: =A33 -> Asset Class | B42: Return on Assets used to Provide LV services | C42: Taxes/PILs | D42: Annual amortization on assets used to provide LV services | E42: OM&A costs with burden associated with assets used to provide LV services | F42: Total annual cost associated with assets used to provide LV services | G42: Monthly cost associated with the delivery of LV services
B43: ($) | C43: ($) | D43: ($) | E43: ($) | F43: ($) | G43: $/kW or $/kVA
A44: Distribution Stations | B44: =E$55*(F24+B24*E$60)*F35 -> 0 | C44: =(B44-(B$55*C$55*F35*(F24+B24*E58)+B$56*C$56*F35*(F24+B24*E$58)))*E$58/(1-E$58) -> 0 | D44: =E24*F35 -> 0 | E44: =B24*F35 -> 0 | F44: =SUM(B44:E44) -> 0 | G44: =IF(E35=0,0,(D44/E35)) -> 0
A45: Low Voltage Line | B45: =E$55*(F25+B25*E$60)*F36 -> 0 | C45: =(B45-(B$55*C$55*F36*(F25+B25*E59)+B$56*C$56*F36*(F25+B25*E59)))*E$58/(1-E$58) -> 0 | D45: =E25*F36 -> 0 | E45: =B25*F36 -> 0 | F45: =SUM(B45:E45) -> 0 | G45: =IF(E36=0,0,(D45/E36)) -> 0
A46: LV Line # 2 (if applicable) | B46: =E$55*(F26+B26*E$60)*F37 -> 0 | C46: =(B46-(B$55*C$55*F37*(F26+B26*E60)+B$56*C$56*F37*(F26+B26*E$60)))*E$58/(1-E$58) -> 0 | D46: =E26*F37 -> 0 | E46: =B26*F37 -> 0 | F46: =SUM(B46:E46) -> 0 | G46: =IF(E37=0,0,(D46/E37)) -> 0
A47: TS (owned by host) | B47: =E$55*(F27+B27*E$60)*F38 -> 0 | C47: =(B47-(B$55*C$55*F38*(F27+B27*E61)+B$56*C$56*F38*(F27+B27*E61)))*E$58/(1-E$58) -> 0 | D47: =E27*F38 -> 0 | E47: =B27*F38 -> 0 | F47: =SUM(B47:E47) -> 0 | G47: =IF(E38=0,0,(D47/E38)) -> 0
A48: add rows if necessary | B48: =E$55*(F28+B28*E$60)*F39 -> 0 | C48: =(B48-(B$55*C$55*F39*(F28+B28*I62)+B$56*C$56*F39*(F28+B28*I62)))*E$58/(1-E$58) -> 0 | D48: =E28*F39 -> 0 | E48: =B28*F39 -> 0 | F48: =SUM(B48:E48) -> 0 | G48: =IF(E39=0,0,(D48/E39)) -> 0
A50: Total | F50: =SUM(F44:F48) -> 0 | G50: =SUM(G44:G48) -> 0
A52: (17) | B52: (18) | C52: (19) | D52: (20) | E52: (21)
B53: Capital Structure | C53: Cost Rate
B54: (%) | C54: (%) | E54: (%)
A55: Long-Term Debt | D55: Weighted Average Cost of Capital | E55: =IF(B61=0%,0,SUMPRODUCT(B55:B59,C55:C59)/B61) -> 0
A56: Short-term Debt
A58: Common Equity | D58: Tax/PILs Rate
A59: Preferred Shares
D60: Working Capital Allowance Factor
A61: Total | B61: =SUM(B55:B59) -> 0

Sheet App.2-R_Loss Factors
G1: File Number: | H1: ='LDC Info'!$E$18 -> EB-2012-0168
G2: Exhibit: | H2: 8
G3: Tab: | H3: 3
G4: Schedule: | H4: 6
G5: Attachment: | H5: 2
G7: Date: | H7: 2012-09-28
A9: Appendix 2-R
A10: Loss Factors
C14: Historical Years | H14: 5-Year Average
C15: =IF(ISBLANK('LDC Info'!E26-5), "Year 5", 'LDC Info'!E26-5) -> 2007 | D15: =IF(ISBLANK('LDC Info'!E26-4), "Year 5", 'LDC Info'!E26-4) -> 2008 | E15: =IF(ISBLANK('LDC Info'!E26-3), "Year 5", 'LDC Info'!E26-3) -> 2009 | F15: =IF(ISBLANK('LDC Info'!E26-2), "Year 5", 'LDC Info'!E26-2) -> 2010 | G15: =IF(ISBLANK('LDC Info'!E26-1), "Year 5", 'LDC Info'!E26-1) -> 2011
B16: Losses Within Distributor's System
A17: A(1) | B17: "Wholesale" kWh delivered to distributor (higher value) | C17: 238097129 | D17: 219083011 | E17: 184765131 | F17: 191138127 | G17: 190475908 | H17: =IF(SUM(C17:G17)=0,0,AVERAGE(C17:G17)) -> 204711861.2
A18: A(2) | B18: "Wholesale" kWh delivered to distributor (lower value) | C18: 237436718 | D18: 218505606 | E18: 184310690 | F18: 190665941 | G18: 190016158 | H18: =IF(SUM(C18:G18)=0,0,AVERAGE(C18:G18)) -> 204187022.6
A19: B | B19: Portion of "Wholesale" kWh delivered to distributor for its Large Use Customer(s) | H19: =IF(SUM(C19:G19)=0,0,AVERAGE(C19:G19)) -> 0
A20: C | B20: Net "Wholesale" kWh delivered to distributor = A(2) - B | C20: =C18-C19 -> 237436718 | D20: 218505606 | E20: 184310690 | F20: 190665941 | G20: 190016158 | H20: 204187022.6
A21: D | B21: "Retail" kWh delivered by distributor | C21: 231853302 | D21: 214010357 | E21: 177544397 | F21: 184785344 | G21: 184310824 | H21: =IF(SUM(C21:G21)=0,0,AVERAGE(C21:G21)) -> 198500844.8
A22: E | B22: Portion of "Retail" kWh delivered by distributor to its Large Use Customer(s) | H22: =IF(SUM(C22:G22)=0,0,AVERAGE(C22:G22)) -> 0
A23: F | B23: Net "Retail" kWh delivered by distributor = D - E | C23: =C21-C22 -> 231853302 | D23: 214010357 | E23: 177544397 | F23: 184785344 | G23: 184310824 | H23: 198500844.8
A24: G | B24: Loss Factor in Distributor's system = C / F | C24: =IF(C23=0,"",C20/C23) -> 1.024081676 | D24: 1.02100482 | E24: 1.038110428 | F24: 1.031823936 | G24: 1.030954959 | H24: 1.02864561
B25: Losses Upstream of Distributor's System
A26: H | B26: Supply Facilities Loss Factor | C26: 1.0045 | D26: 1.0045 | E26: 1.0045 | F26: 1.0045 | G26: 1.0045 | H26: =IF(SUM(C26:G26)=0,0,AVERAGE(C26:G26)) -> 1.0045
B27: Total Losses
A28: I | B28: Total Loss Factor = G x H | C28: =IF(C24="","",C24*C26) -> 1.028690043 | D28: 1.025599342 | E28: 1.042781925 | F28: 1.036467144 | G28: 1.035594256 | H28: 1.033274515
A30: Notes
A33: A(1) | B33: If directly connected to the IESO-controlled grid, kWh pertains to the virtual meter on the primary or high voltage side of the transformer at the interface with the transmission grid. This corresponds to the "With Losses" kWh value provided by the IESO's MV-WEB. It is the higher of the two values provided by MV-WEB.
B37: If fully embedded within a host distributor, kWh pertains to the virtual meter on the primary or high voltage side of the transformer, at the interface between the host distributor and the transmission grid. For example, if the host distributor is Hydro One Networks Inc., kWh from the Hydro One Networks' invoice corresponding to "Total kWh w Losses" should be reported. This corresponds to the higher of the two kWh values provided in Hydro One Networks' invoice.
B42: If partially embedded, kWh pertains to the sum of the above.
A44: A(2) | B44: If directly connected to the IESO-controlled grid, kWh pertains to a metering installation on the secondary or low voltage side of the transformer at the interface with the transmission grid. This corresponds to the "Without Losses" kWh value provided by the IESO's MV-WEB. It is the lower of the two kWh values provided by MV-WEB.
B48: If fully embedded with the host distributor, kWh pertains to an actual or virtual meter at the interface between the embedded distributor and the host distributor. For example, if the host distributor is Hydro One Networks Inc., kWh from the Hydro One Networks' invoice corresponding to "Total kWh" should be reported. This corresponds to the lower of the two kWh values provided in Hydro One Networks' invoice.
B53: If partially embedded, kWh pertains to the sum of the above.
B55: Additionally, kWh pertaining to distributed generation directly connected to the distributor's own distribution network should be included in A(2).
A58: B | B58: If a Large Use Customer is metered on the secondary or low voltage side of the transformer, the default loss is 1% (i.e., B = 1.01 X E).
A61: D | B61: kWh corresponding to D should equal metered or estimated kWh at the customer’s delivery point.
A64: G and I | B64: These loss factors pertain to secondary-metered customers with demand less than 5,000 kW.
A66: H | B66: If directly connected to the IESO-controlled grid, SFLF = 1.0045.
B68: If fully embedded within a host distributor, SFLF = loss factor re losses in transformer at grid interface X loss factor re losses in host distributor's system. If the host distributor is Hydro One Networks Inc., SFLF = 1.0060 X 1.0278 = 1.0340. If partially embedded, SFLF should be calculated as the weighted average of above.
B72: Distributors that wish to propose a different SFLF should provide appropriate justification for any such proposal including supporting
B73: calculations and any other relevant material.

Sheet App.2-S_Stranded Meters
G1: File Number: | H1: ='LDC Info'!$E$18 -> EB-2012-0168
G2: Exhibit: | H2: 9
G3: Tab: | H3: 4
G4: Schedule: | H4: 1
G5: Attachment: | H5: 2
G7: Date: | H7: 2012-09-28
A9: Appendix 2-S
A10: Stranded Meter Treatment
A12: Year | B12: Notes | C12: Gross Asset Value | D12: Accumulated Amortization | E12: Contributed Capital (Net of Amortization) | F12: Net Asset | G12: Proceeds on Disposition | H12: Residual Net Book Value
C13: (A) | D13: (B) | E13: (C) | F13: (D ) = (A) - (B) - (C) | G13: (E) | H13: (F) = (D) - (E)
A14: 2006 | C14: 708070.6927 | D14: 492163.4227 | F14: =C14-D14-E14 -> 215907.27 | H14: =F14-G14 -> 215907.27
A15: 2007 | C15: 712373.9538 | D15: 515966.0876 | F15: 196407.8662 | H15: 196407.8662
A16: 2008 | C16: 712451.8837 | D16: 538924.568 | F16: 173527.3157 | H16: 173527.3157
A17: 2009 | C17: 712820.8024 | D17: 561264.179 | F17: 151556.6233 | H17: 151556.6233
A18: 2010 | C18: 712820.8024 | D18: 582525.8633 | F18: 130294.9391 | H18: 130294.9391
A19: 2011 | C19: 712820.8024 | D19: 603136.6022 | F19: 109684.2002 | H19: 109684.2002
A20: 2012 | B20: (1) | C20: 712820.8024 | D20: 623476.0663 | F20: 89344.73606 | H20: 89344.73606
A22: Notes:
A24: (1) | B24: For 2012, please indicate whether the amounts provided are on a forecast or actual basis.
A26: Some distributors have transferred the cost of stranded meters from Account 1860 - Meters to "Sub-account Stranded Meter Costs of Account 1555", while in some cases distributors have left these costs in Account 1860. Depending on which treatment the applicant has chosen. please provide the information under either of the two scenarios (A and B below), as applicable.
A31: Scenario A: If the stranded meter costs were transferred to "Sub-account Stranded Meter Costs" of Account 1555, the above table should be completed and the following information should be provided.
A34: 1 | B34: A description of the accounting treatment followed by the applicant on stranded meter costs for financial accounting and reporting purposes.
A37: 2 | B37: The amount of the pooled residual net book value of the removed from service stranded meters, less any contributed capital (net of accumulated amortization), and less any net proceeds from sales, which were transferred to this sub-account as of December 31, 2010.
A41: 3 | B41: A statement as to whether or not, since transferring the removed stranded meter costs to the sub-account, the recording of depreciation expenses was continued in order to reduce the net book value through accumulated depreciation. If so, the total depreciation expense amount for the period from the time the costs for the stranded meters were transferred to the sub-account to December 31, 2010 should be provided.
B46: If no depreciation expenses were recorded to reduce the net book value of stranded meter costs through accumulated depreciation, the total depreciation expense amount that would have been applicable from the time that the stranded meter costs were transferred to the sub-account of Account 1555 to December 31, 2010 should be provided. In addition, the following information should be provided:
B51: a) | C51: Whether or not carrying charges were recorded for the stranded meter cost balances in the sub-account, and if so, the total carrying charges recorded to December 31, 2010.
B54: b) | C54: The estimated amount of the pooled residual net book value of the removed from service meters, less any net proceeds from sales and contributed capital, at the time when the smart meters will have been fully deployed (e.g., as of December 31, 2010). If the smart meters have been fully deployed, the actual amount should be provided.
B59: c) | C59: A description as to how the applicant intends to recover in rates the remaining costs for stranded meters, including the proposed accounting treatment, the proposed disposition period, and the associated bill impacts.
A63: Scenario B: If the stranded meter costs remained recorded in Account 1860, the above table should be completed and the following information should be provided:
A66: 1 | B66: A description of the accounting treatment followed by the applicant on stranded meter costs for financial accounting and reporting purposes.
A69: 2 | B69: The amount of the pooled residual net book value of the removed from service stranded meters, less any contributed capital (net of accumulated amortization), and less any net proceeds from sales, as of December 31, 2010.
A73: 3 | B73: A statement as to whether or not the recording of depreciation expenses continued in order to reduce the net book value through accumulated depreciation. If so, provision of the total (cumulative) depreciation expense for the period from the time that the meters became stranded to December 31, 2010.
A77: 4 | B77: If no depreciation expenses were recorded to reduce the net book value of stranded meters through accumulated depreciation, the total (cumulative) depreciation expense amount that would have been applicable for the period from the time that the meters became stranded to December 31, 2010.
A81: 5 | B81: The estimated amount of the pooled residual net book value of the removed from service meters, less any net proceeds from sales and contributed capital, at the time when smart meters will have been fully deployed. If the smart meters have been fully deployed, please provide the actual amount.
A85: 6 | B85: A description as to how the applicant intends to recover in rates the costs for stranded meters, including the proposed accounting treatment, the proposed disposition period and the associated bill impacts.
A88: Distributors should also provide the Net Book Value per class of meter as of December 31, 2010 as well as the number of meters that were removed / stranded. In preparing this information, distributors should review the Board's letter of January 16, 2007 Stranded Meter Costs Related to the Installation of Smart Meters which stated that records were to be kept of the type and number of each meter to support the stranded meter costs.

Sheet App.2-T_1592_Tax_Variance
C1: File Number: | E1: ='LDC Info'!$E$18 -> EB-2012-0168
C2: Exhibit: | E2: 9
C3: Tab: | E3: 2
C4: Schedule: | E4: 4
C5: Attachment: | E5: 1
C7: Date: | E7: 2012-09-28
A9: Appendix 2-T
A10: Deferred PILs Account 1592 Balances
A12: The following table should be completed based on the information requested below, in accordance with the notes following the table. An explanation should be provided for any blank entries.
A14: Tax Item | E14: Principal as of
E15: December 31,
E16: 2011
A17: Large Corporation Tax grossed-up proxy from 2006 EDR application PILs model for the period from May 1, 2006 to April 30, 2007 | E17: 0
A18: Large Corporation Tax grossed-up proxy from 2006 EDR application PILs model for the period from January 1, 2006 to April 30, 2006 (4/12ths of the approved grossed-up proxy), if not recorded in PILs account 1562 | E18: 0
A19: Ontario Capital Tax rate decrease and increase in capital deduction for 2007 | E19: 0
A20: Ontario Capital Tax rate decrease and increase in capital deduction for 2008 | E20: 0
A21: Ontario Capital Tax rate decrease and increase in capital deduction for 2009 | E21: 0
A22: Ontario Capital Tax rate decrease and increase in capital deduction for 2010 | E22: 0
A23: Capital Cost Allowance class changes from 2006 EDR application for 2006 | E23: 0
A24: Capital Cost Allowance class changes from 2006 EDR application for 2007 | E24: 0
A25: Capital Cost Allowance class changes from 2006 EDR application for 2008 | E25: 0
A26: Capital Cost Allowance class changes from 2006 EDR application for 2009 | E26: 0
A27: Capital Cost Allowance class changes from 2006 EDR application for 2010 | E27: 0
A28: Capital Cost Allowance class changes from 2006 EDR application for 2011 | E28: 0
A29: Capital Cost Allowance class changes from any prior application not recorded above. Please provide details and explanation separately. | E29: 0
A30: Insert description of additional item(s) and new rows if needed. | E30: 0
A31: Total | E31: =SUM(E17:E30) -> 0
A33: Notes:
A35: 1 | B35: Revise the deferral and variance account continuity schedule to include account 1592 as a group 2 account and enter all relevant information for transactions, adjustments, etc., for all relevant years.
A38: 2 | B38: Describe each type of tax item that has been recorded in account 1592.
A40: 3 | B40: Provide the calculations that show how each item was determined and provide any pertinent supporting evidence and documentation.
A43: 4 | B43: Please state whether or not the applicant followed the guidance provided in the FAQ of July 2007. If not, please provide an explanation.
A46: 5 | B46: Identify the account balance as of December 31, 2011 as per the 2011 Audited Financial Statements. Identify the account balance as of December 31, 2011 as per the April 2012 2.1.7 RRR filing to the Board. Provide a reconciliation if the balances provided are not identical to each other and to the total shown on the continuity schedule.
A51: 6 | B51: Complete the above table based on the answers to the previous. Add rows as required to complete the analysis in an informative manner. Please provide the completed table as a working Excel spreadsheet.

Sheet App.2-U_IFRS Transition Costs
J1: File Number: | K1: ='LDC Info'!$E$18 -> EB-2012-0168
J2: Exhibit: | K2: 9
J3: Tab: | K3: 3
J4: Schedule: | K4: 1
J5: Attachment: | K5: 1
J7: Date: | K7: 2012-09-28
A9: Appendix 2-U
A10: One-Time Incremental IFRS Transition Costs
A12: The following table should be completed based on the information requested below. An explanation should be provided for any blank entries. The entries should include one-time incremental IFRS transition costs that are currently included in Account 1508, Other Regulatory Assets, sub-account Deferred IFRS Transition Costs Account, or Account 1508, Other Regulatory Assets, sub-account IFRS Transition Costs Variance Account.
A14: Nature of One-Time Incremental IFRS Transition Costs 1 | E14: Audited Actual | F14: Audited Actual | G14: Audited Actual | H14: Audited Carrying | I14: Total Audited | J14: RRR 2.1.7 | K14: Variance 2 | L14: Reasons why the costs recorded meet the criteria of one-time IFRS administrative incremental costs
E15: Costs Incurred | F15: Costs Incurred | G15: Costs Incurred | H15: Charges | I15: Actual Costs | J15: Balance
E16: 2009 | F16: 2010 | G16: 2011 | H16: to Dec 31, 2011 | I16: to Dec 31, 2011 | J16: 2011-12-31
A17: professional accounting fees | G17: 287.5 | I17: =SUM(E17:H17) -> 287.5 | L17: As THI will be implementing IFRS as at January 1, 2013, the costs currently presented do not represent the full cost of the transition.
A18: professional legal fees | I18: =SUM(E18:H18) -> 0 | L18: Disposition of One-time incremental IFRS Transition Costs will be the subject of a future application.
A19: salaries, wages and benefits of staff added to support the transition to IFRS | E19: =1100.41*1.05 -> 1155.4305 | F19: 651.25 | G19: 1006.28 | I19: 2812.9605 | L19: At that time, the appropriateness of the expenditures will be discussed.
A20: associated staff training and development costs | G20: =299+17.7 -> 316.7 | I20: 316.7
A21: costs related to system upgrades, or replacements or changes where IFRS was the major reason for conversion | I21: 0
A22: Meeting Expenses | E22: =336.76*1.05 -> 353.598 | F22: 173.33 | I22: 526.928
I23: 0
I24: 0
I25: 0
I26: 0
I27: 0
I28: 0
A29: Carrying Charges | H29: 42.09 | I29: 42.09
A30: Total | E30: =SUM(E17:E29) -> 1509.0285 | F30: =SUM(F17:F29) -> 824.58 | G30: =SUM(G17:G29) -> 1610.48 | H30: =SUM(H17:H29) -> 42.09 | I30: =SUM(I17:I29) -> 3986.1785 | K30: =+I30-J30 -> 3986.1785
A33: Note:
A34: 1 | B34: The Deferred IFRS Transition Costs Account and the IFRS Transition Costs Variance Account are exclusively for necessary, incremental transition costs and shall not include ongoing IFRS compliance costs or impacts arising from adopting accounting policy changes that reflect changes in the timing of the recognition of income. The incremental costs in these accounts shall not include costs related to system upgrades, or replacements or changes where IFRS was not the major reason for conversion. In addition, incremental IFRS costs shall not include capital assets or expenditures.
A36: 2 | B36: Applicants are to provide an explanation of material variances in evidence

Sheet App.2-V_Rev_Reconciliation
O1: File Number: | P1: ='LDC Info'!$E$18 -> EB-2012-0168
O2: Exhibit: | P2: 8
O3: Tab: | P3: 4
O4: Schedule: | P4: 1
O5: Attachment: | P5: 1
O7: Date: | P7: 2012-09-28
A9: Appendix 2-V
A10: Revenue Reconciliation
A12: Rate Class | B12: Customers/ Connections | C12: Number of Customers/Connections | F12: Test Year Consumption | H12: Proposed Rates | K12: Revenues at Proposed Rates | M12: Class Specific Revenue Requirement | N12: Transformer Allowance Credit | O12: Total | P12: Difference
C13: Start of Test Year | D13: End of Test Year | E13: Average | F13: kWh | G13: kW | H13: Monthly Service Charge | I13: Volumetric
I14: kWh | J14: kW
A16: Residential | B16: Customers | C16: =72504/12 -> 6042 | D16: 6042 | E16: =IF(SUM(C16:D16)=0,0,AVERAGE(C16:D16)) -> 6042 | F16: 49718289 | H16: 10 | I16: 0.0261 | K16: =H16*E16*12+I16*F16+J16*G16 -> 2022687.343 | M16: 2024778 | O16: =SUM(M16:N16) -> 2024778 | P16: =O16-K16 -> 2090.6571
A17: GS < 50 kW | B17: Customers | C17: 666 | D17: 666 | E17: 666 | F17: 22374916 | H17: 25 | I17: 0.0194 | K17: 633873.3704 | M17: 633892 | O17: 633892 | P17: 18.6296
A18: GS > 50 to 499 kW | B18: Customers | C18: 76 | D18: 76 | E18: 76 | G18: 115448 | H18: 130 | J18: 2.1365 | K18: 365214.652 | M18: 351736 | N18: 13476 | O18: 365212 | P18: -2.652
A19: GS > 500 to 1499 kW | B19: Customers | C19: 9 | D19: 9 | E19: 9 | G19: 87241 | H19: 1352 | J19: 1.1666 | K19: 247791.3506 | M19: 199261 | N19: 48530 | O19: 247791 | P19: -0.3506
A20: Streetlighting | B20: Customers | C20: 1 | D20: 1 | E20: 1 | G20: 3767 | H20: 1700 | J20: 9.1331 | K20: 54804.3877 | M20: 54805 | O20: 54805 | P20: 0.6123
A21: Sentinel Lighting | B21: Connections | C21: 127 | D21: 127 | E21: 127 | G21: 301 | H21: 2 | J21: 19.3715 | K21: 8878.8215 | M21: 8879 | O21: 8879 | P21: 0.1785
A22: Unmetered Scattered Load | B22: Connections | C22: 62 | D22: 62 | E22: 62 | F22: 426840 | H22: 7 | I22: 0.0137 | K22: 11055.708 | M22: 11038 | O22: 11038 | P22: -17.708
A23: GS > 1500 kW | B23: Customers | C23: 2 | D23: 2 | E23: 2 | G23: 70544 | H23: 1915 | J23: 2.2156 | K23: 202257.2864 | M23: 160017 | N23: 42242 | O23: 202259 | P23: 1.7136
A24: Embedded Distributor Class | E24: 0 | K24: 0 | O24: 0 | P24: 0
A25: etc. | E25: =IF(SUM(C25:D25)=0,0,AVERAGE(C25:D25)) -> 0 | K25: =H25*E25*12+I25*F25+J25*G25 -> 0 | O25: =SUM(M25:N25) -> 0 | P25: =O25-K25 -> 0
E26: 0 | K26: 0 | O26: 0 | P26: 0
E27: 0 | K27: 0 | O27: 0 | P27: 0
E28: 0 | K28: 0 | O28: 0 | P28: 0
A30: Total | K30: =SUM(K16:K28) -> 3546562.919 | M30: =SUM(M16:M28) -> 3444406 | N30: =SUM(N16:N28) -> 104248 | O30: =M30+N30 -> 3548654 | P30: =O30-K30 -> 2091.0805
A32: Note
A34: 1 The class specific revenue requirements in column N must be the amounts used in the final rate design process. The total of column N should equate to the proposed base revenue requirement

Sheet App.2-W_Bill Impacts
N1: File Number: | O1: ='LDC Info'!$E$18 -> EB-2012-0168 | T1: 1
N2: Exhibit: | O2: 8
N3: Tab: | O3: 4
N4: Schedule: | O4: 3
N5: Attachment | O5: 2
N7: Date: | O7: 2012-09-28
N8: Corrected: | O8: 2012-10-22
B10: Appendix 2-W
B11: Bill Impacts
B14: Customer Class: | D14: Residential
D16: Consumption | F16: 800 | G16: kWh
G17: kW
F18: Current Board-Approved | J18: Proposed | N18: Impact
D19: Charge Unit | F19: Rate | G19: Volume | H19: Charge | J19: Rate | K19: Volume | L19: Charge | N19: $ Change | O19: % Change
F20: ($) | H20: ($) | J20: ($) | L20: ($)
B21: Monthly Service Charge | D21: Monthly | F21: 9.91 | G21: 1 | H21: =G21*F21 -> 9.91 | J21: 10 | K21: 1 | L21: =K21*J21 -> 10 | N21: =L21-H21 -> 0.09 | O21: =IF((H21)=0,"",(N21/H21)) -> 0.009081735621
B22: Smart Meter Rate Adder | G22: 1 | H22: =G22*F22 -> 0 | K22: 1 | L22: =K22*J22 -> 0 | N22: =L22-H22 -> 0 | O22: =IF((H22)=0,"",(N22/H22)) -> 
B23: Distribution Volumetric Rate | D23: per kWh | F23: 0.0169 | G23: =F16 -> 800 | H23: 13.52 | J23: 0.0261 | K23: =$F$16 -> 800 | L23: =K23*J23 -> 20.88 | N23: =L23-H23 -> 7.36 | O23: =IF((H23)=0,"",(N23/H23)) -> 0.5443786982
B24: Smart Meter Disposition Rider | D24: Monthly | G24: =$F$16 -> 800 | H24: 0 | J24: 1.25 | K24: 1 | L24: 1.25 | N24: 1.25
B25: LRAM & SSM Rate Rider | D25: per kWh | F25: 0.0004 | G25: =$F$16 -> 800 | H25: 0.32 | J25: 0.0001 | K25: =$F$16 -> 800 | L25: 0.08 | N25: -0.24 | O25: -0.75
B26: Stranded Meter Rate Rider | D26: Monthly | G26: =$F$16 -> 800 | H26: 0 | J26: 3.3298 | K26: 1 | L26: 3.3298 | N26: 3.3298
G27: 800 | H27: 0 | K27: 800 | L27: 0 | N27: 0
G28: 800 | H28: 0 | K28: 800 | L28: 0 | N28: 0
G29: 800 | H29: 0 | K29: 800 | L29: 0 | N29: 0
G30: 800 | H30: 0 | K30: 800 | L30: 0 | N30: 0
G31: 800 | H31: 0 | K31: 800 | L31: 0 | N31: 0
G32: 800 | H32: 0 | K32: 800 | L32: 0 | N32: 0
B33: Sub-Total A | H33: =SUM(H21:H32) -> 23.75 | L33: =SUM(L21:L32) -> 35.5398 | N33: 11.7898 | O33: 0.4964126316
B34: Deferral/Variance Account Disposition Rate Rider | D34: per kWh | F34: -0.002 | G34: =$F$16 -> 800 | H34: =G34*F34 -> -1.6 | K34: =$F$16 -> 800 | L34: =K34*J34 -> 0 | N34: =L34-H34 -> 1.6 | O34: =IF((H34)=0,"",(N34/H34)) -> -1
B35: Deferral/Variance Account Disposition Rate Rider | J35: -0.0041 | K35: =$F$16 -> 800 | L35: =K35*J35 -> -3.28 | N35: =L35-H35 -> -3.28 | O35: =IF((H35)=0,"",(N35/H35)) -> 
G36: =$F$16 -> 800 | H36: =G36*F36 -> 0 | K36: =$F$16 -> 800 | L36: =K36*J36 -> 0 | N36: =L36-H36 -> 0 | O36: =IF((H36)=0,"",(N36/H36)) -> 
G37: 800 | H37: 0 | K37: 800 | L37: 0 | N37: 0
B38: Low Voltage Service Charge | G38: 800 | H38: =G38*F38 -> 0 | K38: 800 | L38: =K38*J38 -> 0 | N38: =L38-H38 -> 0 | O38: =IF((H38)=0,"",(N38/H38)) -> 
B39: Smart Meter Entity Charge | K39: 800 | L39: =K39*J39 -> 0 | N39: =L39-H39 -> 0
B40: Sub-Total B - Distribution (includes Sub-Total A) | H40: =SUM(H34:H38)+H33 -> 22.15 | L40: =SUM(L34:L38)+L33 -> 32.2598 | N40: =L40-H40 -> 10.1098 | O40: =IF((H40)=0,"",(N40/H40)) -> 0.4564243792
B41: RTSR - Network | D41: per kWh | F41: 0.0068 | G41: =F16*(1+F67) -> 833.6 | H41: =G41*F41 -> 5.66848 | J41: 0.0068 | K41: =F16*(1+J67) -> 826.64 | L41: =K41*J41 -> 5.621152 | N41: -0.047328 | O41: -0.008349328215
B42: RTSR - Line and Transformation Connection | D42: per kWh | F42: 0.0051 | G42: =G41 -> 833.6 | H42: =G42*F42 -> 4.25136 | J42: 0.0051 | K42: =K41 -> 826.64 | L42: =K42*J42 -> 4.215864 | N42: -0.035496 | O42: -0.008349328215
B43: Sub-Total C - Delivery (including Sub-Total B) | H43: =SUM(H40:H42) -> 32.06984 | L43: =SUM(L40:L42) -> 42.096816 | N43: 10.026976 | O43: 0.3126606182
B44: Wholesale Market Service Charge (WMSC) | D44: per kWh | F44: 0.0052 | G44: =$F$16*(1+$F$67) -> 833.6 | H44: =G44*F44 -> 4.33472 | J44: 0.0052 | K44: =$F$16*(1+$J$67) -> 826.64 | L44: =K44*J44 -> 4.298528 | N44: -0.036192 | O44: -0.008349328215
B45: Rural and Remote Rate Protection (RRRP) | D45: per kWh | F45: 0.0013 | G45: =+G$44 -> 833.6 | H45: 1.08368 | J45: 0.0013 | K45: =+K$44 -> 826.64 | L45: 1.074632 | N45: -0.009048 | O45: -0.008349328215
B46: Standard Supply Service Charge | D46: per kWh | G46: =+G$44 -> 833.6 | H46: 0 | K46: =+K$44 -> 826.64 | L46: 0 | N46: 0
B47: Debt Retirement Charge (DRC) | D47: per kWh | F47: 0.007 | G47: =+G$44 -> 833.6 | H47: 5.8352 | J47: 0.007 | K47: =+K$44 -> 826.64 | L47: 5.78648 | N47: -0.04872 | O47: -0.008349328215
B48: Energy - RPP - Tier 1 | D48: per kWh | F48: 0.075 | G48: =IF($T$1=1,IF($F$16>=600,600,IF($F$16<600,$F$16*(1+$F$67),$F$16-600)),IF($T$1=2,IF($F$16>=1000,1000,IF($F$16<1000,$F$16*(1+$F$67),$F$16-1000)))) -> 600 | H48: =G48*F48 -> 45 | J48: 0.075 | K48: =IF($T$1=1,IF($F$16>=600,600,IF($F$16<600,$F$16*(1+$J$67),$F$16-600)),IF($T$1=2,IF($F$16>=1000,1000,IF($F$16<1000,$F$16*(1+$J$67),$F$16-1000)))) -> 600 | L48: =K48*J48 -> 45 | N48: 0 | O48: 0
B49: Energy - RPP - Tier 2 | D49: per kWh | F49: 0.088 | G49: =IF($T$1=1,IF($F$16>=600,$F$16*(1+$F$67)-600,IF($F$16<600,0,)), IF($T$1=2,IF($F$16>=1000,$F$16*(1+$F$67)-1000,IF($F$16<1000,0)))) -> 233.6 | H49: =G49*F49 -> 20.5568 | J49: 0.088 | K49: =IF($T$1=1,IF($F$16>=600,$F$16*(1+$J$67)-600,IF($F$16<600,0,)), IF($T$1=2,IF($F$16>=1000,$F$16*(1+$J$67)-1000,IF($F$16<1000,0)))) -> 226.64 | L49: =K49*J49 -> 19.94432 | N49: -0.61248 | O49: -0.02979452055
B50: TOU - Off Peak | D50: per kWh | F50: 0.065 | G50: =0.64*$F$16*(1+$F$67) -> 533.504 | H50: 34.67776 | J50: 0.065 | K50: =0.64*$F$16*(1+$J$67) -> 529.0496 | L50: 34.388224 | N50: -0.289536 | O50: -0.008349328215
B51: TOU - Mid Peak | D51: per kWh | F51: 0.1 | G51: =0.18*$F$16*(1+$F$67) -> 150.048 | H51: 15.0048 | J51: 0.1 | K51: =0.18*$F$16*(1+$J$67) -> 148.7952 | L51: 14.87952 | N51: -0.12528 | O51: -0.008349328215
B52: TOU - On Peak | D52: per kWh | F52: 0.117 | G52: =0.18*$F$16*(1+$F$67) -> 150.048 | H52: 17.555616 | J52: 0.117 | K52: =0.18*$F$16*(1+$J$67) -> 148.7952 | L52: 17.4090384 | N52: -0.1465776 | O52: -0.008349328215
B54: Total Bill on RPP (before Taxes) | H54: =SUM(H43:H49) -> 108.88024 | L54: =SUM(L43:L49) -> 118.200776 | N54: 9.320536 | O54: 0.08560355855
B55: HST | F55: 0.13 | H55: =H54*F55 -> 14.1544312 | J55: 0.13 | L55: =L54*J55 -> 15.36610088 | N55: 1.21166968 | O55: 0.08560355855
B56: Total Bill (including HST) | H56: =H54+H55 -> 123.0346712 | L56: =L54+L55 -> 133.5668769 | N56: 10.53220568 | O56: 0.08560355855
B57: Ontario Clean Energy Benefit 1 | H57: =ROUND(-H56*10%,2) -> -12.3 | L57: =ROUND(-L56*10%,2) -> -13.36 | N57: -1.06 | O57: 0.08617886179
B58: Total Bill on RPP (including OCEB) | H58: =SUM(H56:H57) -> 110.7346712 | L58: =SUM(L56:L57) -> 120.2068769 | N58: 9.47220568 | O58: 0.08553965598
B60: Total Bill on TOU (before Taxes) | H60: =SUM(H43:H47,H50:H52) -> 110.561616 | L60: =SUM(L43:L47,L50:L52) -> 119.9332384 | N60: =L60-H60 -> 9.3716224 | O60: =IF((H60)=0,"",(N60/H60)) -> 0.08476379723
B61: HST | F61: 0.13 | H61: =H60*F61 -> 14.37301008 | J61: 0.13 | L61: =L60*J61 -> 15.59132099 | N61: 1.218310912 | O61: 0.08476379723
B62: Total Bill (including HST) | H62: =H60+H61 -> 124.9346261 | L62: =L60+L61 -> 135.5245594 | N62: 10.58993331 | O62: 0.08476379723
B63: Ontario Clean Energy Benefit 1 | H63: =ROUND(-H62*10%,2) -> -12.49 | L63: =ROUND(-L62*10%,2) -> -13.55 | N63: -1.06 | O63: 0.08486789432
B64: Total Bill on TOU (including OCEB) | H64: =H62+H63 -> 112.4446261 | L64: =L62+L63 -> 121.9745594 | N64: 9.529933312 | O64: 0.08475223445
B67: Loss Factor (%) | F67: 0.042 | J67: 0.0333
A69: 1 Applicable to eligible customers only. Refer to the Ontario Clean Energy Benefit Act, 2010.
A71: Note that the "Charge $" columns provide breakdowns of the amounts that each bill component contributes to the total monthly bill at the referenced
A72: consumption level at existing and proposed rates.
A74: Applicants must provide bill impacts for residential at 800 kWh and GS<50kW at 2000 kWh. In addition, their filing should cover the range that is relevant
A75: to their service territory, class by class. A general guideline of consumption levels follows:
A77: Residential (kWh) - 100, 250, 500, 800, 1000, 1500, 2000
A78: GS<50kW (kWh) - 1000, 2000, 5000, 10000, 15000
A79: GS>50kW (kW) - 60, 100, 500, 1000
A80: Large User - range appropriate for utility
A81: Lighting Classes and USL - 150 kWh and 1 kW, range appropriate for utility.
B88: Customer Class: | D88: General Service < 50 kW
D90: Consumption | F90: 2000 | G90: kWh
G91: kW
F92: Current Board-Approved | J92: Proposed | N92: Impact
D93: Charge Unit | F93: Rate | G93: Volume | H93: Charge | J93: Rate | K93: Volume | L93: Charge | N93: $ Change | O93: % Change
F94: ($) | H94: ($) | J94: ($) | L94: ($)
B95: Monthly Service Charge | D95: Monthly | F95: 25.07 | G95: 1 | H95: =G95*F95 -> 25.07 | J95: 25 | K95: 1 | L95: =K95*J95 -> 25 | N95: =L95-H95 -> -0.07 | O95: =IF((H95)=0,"",(N95/H95)) -> -0.002792181891
B96: Smart Meter Rate Adder | G96: 1 | H96: 0 | K96: 1 | L96: 0 | N96: 0
B97: Distribution Volumetric Rate | D97: per kWh | F97: 0.0152 | G97: =F90 -> 2000 | H97: 30.4 | J97: 0.0194 | K97: =$F$90 -> 2000 | L97: 38.8 | N97: 8.4 | O97: 0.2763157895
B98: Smart Meter Disposition Rider | D98: Monthly | F98: 0 | G98: =$F$90 -> 2000 | H98: 0 | J98: 5.72 | K98: 1 | L98: 5.72 | N98: 5.72
B99: LRAM & SSM Rate Rider | D99: per kWh | F99: 0.0002 | G99: 2000 | H99: 0.4 | J99: 0.0002 | K99: =$F$90 -> 2000 | L99: 0.4 | N99: 0 | O99: 0
B100: Stranded Meter Rate Rider | D100: Monthly | G100: 2000 | H100: 0 | J100: 3.3298 | K100: 1 | L100: 3.3298 | N100: 3.3298
G101: 2000 | H101: 0 | K101: 2000 | L101: 0 | N101: 0
G102: 2000 | H102: 0 | K102: 2000 | L102: 0 | N102: 0
G103: 2000 | H103: 0 | K103: 2000 | L103: 0 | N103: 0
G104: 2000 | H104: 0 | K104: 2000 | L104: 0 | N104: 0
G105: 2000 | H105: 0 | K105: 2000 | L105: 0 | N105: 0
G106: 2000 | H106: 0 | K106: 2000 | L106: 0 | N106: 0
B107: Sub-Total A | H107: =SUM(H95:H106) -> 55.87 | L107: =SUM(L95:L106) -> 73.2498 | N107: 17.3798 | O107: 0.3110757115
B108: Deferral/Variance Account Disposition Rate Rider | D108: per kWh | F108: -0.0015 | G108: =$F$90 -> 2000 | H108: =G108*F108 -> -3 | J108: 0 | K108: =$F$90 -> 2000 | L108: =K108*J108 -> 0 | N108: 3 | O108: -1
B109: Deferral/Variance Account Disposition Rate Rider | J109: -0.0041 | K109: 2000 | L109: -8.2 | N109: -8.2
G110: =$F$90 -> 2000 | H110: =G110*F110 -> 0 | J110: 0 | K110: 2000 | L110: 0 | N110: 0
G111: =$F$90 -> 2000 | H111: =G111*F111 -> 0 | K111: 2000 | L111: 0 | N111: 0
B112: Low Voltage Service Charge | G112: =$F$90 -> 2000 | H112: =G112*F112 -> 0 | K112: 2000 | L112: 0 | N112: 0
B113: Smart Meter Entity Charge | K113: 2000 | L113: 0 | N113: 0
B114: Sub-Total B - Distribution (includes Sub-Total A) | H114: =SUM(H108:H112)+H107 -> 52.87 | L114: =SUM(L108:L112)+L107 -> 65.0498 | N114: 12.1798 | O114: =IF((H114)=0,"",(N114/H114)) -> 0.2303726121
B115: RTSR - Network | D115: per kWh | F115: 0.0054 | G115: =$F$90*(1+$F$141) -> 2084 | H115: =G115*F115 -> 11.2536 | J115: 0.0061 | K115: =F90*(1+J141) -> 2066.6 | L115: =K115*J115 -> 12.60626 | N115: 1.35266 | O115: 0.1201979811
B116: RTSR - Line and Transformation Connection | D116: per kWh | F116: 0.0061 | G116: =G115 -> 2084 | H116: =G116*F116 -> 12.7124 | J116: 0.0046 | K116: =K115 -> 2066.6 | L116: =K116*J116 -> 9.50636 | N116: -3.20604 | O116: -0.2521978541
B117: Sub-Total C - Delivery (including Sub-Total B) | H117: =SUM(H114:H116) -> 76.836 | L117: =SUM(L114:L116) -> 87.16242 | N117: 10.32642 | O117: 0.1343955958
B118: Wholesale Market Service Charge (WMSC) | D118: per kWh | F118: 0.0052 | G118: =$F$90*(1+$F$141) -> 2084 | H118: =G118*F118 -> 10.8368 | J118: 0.0052 | K118: =$F$90*(1+$J$141) -> 2066.6 | L118: =K118*J118 -> 10.74632 | N118: -0.09048 | O118: -0.008349328215
B119: Rural and Remote Rate Protection (RRRP) | D119: per kWh | F119: 0.0013 | G119: =+G$118 -> 2084 | H119: 2.7092 | J119: 0.0013 | K119: =+K$118 -> 2066.6 | L119: 2.68658 | N119: -0.02262 | O119: -0.008349328215
B120: Standard Supply Service Charge | D120: per kWh | G120: =+G$118 -> 2084 | H120: 0 | K120: =+K$118 -> 2066.6 | L120: 0 | N120: 0
B121: Debt Retirement Charge (DRC) | D121: per kWh | F121: 0.007 | G121: =+G$118 -> 2084 | H121: 14.588 | J121: 0.007 | K121: =+K$118 -> 2066.6 | L121: 14.4662 | N121: -0.1218 | O121: -0.008349328215
B122: Energy - RPP - Tier 1 | D122: per kWh | F122: 0.075 | G122: =IF('App.2-W_Bill Impacts (2)'!$T$1=1,IF($F$90>=750,750,IF($F$90<750,$F$90*(1+$F$141),$F$90-750)),IF('App.2-W_Bill Impacts (2)'!$T$1=2,IF($F$90>=750,750,IF($F$90<750,$F$90*(1+$F$141),$F$90-750)))) -> 750 | H122: 56.25 | J122: 0.075 | K122: =IF('App.2-W_Bill Impacts (2)'!$T$1=1,IF($F$90>=750,750,IF($F$90<750,$F$90*(1+$J$141),$F$90-750)),IF('App.2-W_Bill Impacts (2)'!$T$1=2,IF($F$90>=750,750,IF($F$90<750,$F$90*(1+$F$141),$F$90-750)))) -> 750 | L122: 56.25 | N122: 0 | O122: 0
B123: Energy - RPP - Tier 2 | D123: per kWh | F123: 0.088 | G123: =IF('App.2-W_Bill Impacts (2)'!$T$1=1,IF($F$90>=750,$F$90*(1+$F$141)-750,IF($F$90<750,0,)), IF('App.2-W_Bill Impacts (2)'!$T$1=2,IF($F$90>=750,$F$90*(1+$F$141)-750,IF($F$90<750,0)))) -> 1334 | H123: 117.392 | J123: 0.088 | K123: =IF('App.2-W_Bill Impacts (2)'!$T$1=1,IF($F$90>=750,$F$90*(1+$J$141)-750,IF($F$90<750,0,)), IF('App.2-W_Bill Impacts (2)'!$T$1=2,IF($F$90>=750,$F$90*(1+$F$141)-750,IF($F$90<750,0)))) -> 1316.6 | L123: 115.8608 | N123: -1.5312 | O123: -0.01304347826
B124: TOU - Off Peak | D124: per kWh | F124: 0.065 | G124: =0.64*$F$90*(1+$F$141) -> 1333.76 | H124: 86.6944 | J124: 0.065 | K124: =0.64*$F$90*(1+$J$141) -> 1322.624 | L124: 85.97056 | N124: -0.72384 | O124: -0.008349328215
B125: TOU - Mid Peak | D125: per kWh | F125: 0.1 | G125: =0.18*$F$90*(1+$F$141) -> 375.12 | H125: 37.512 | J125: 0.1 | K125: =0.18*$F$90*(1+$J$141) -> 371.988 | L125: 37.1988 | N125: -0.3132 | O125: -0.008349328215
B126: TOU - On Peak | D126: per kWh | F126: 0.117 | G126: =0.18*$F$90*(1+$F$141) -> 375.12 | H126: 43.88904 | J126: 0.117 | K126: =0.18*$F$90*(1+$J$141) -> 371.988 | L126: 43.522596 | N126: -0.366444 | O126: -0.008349328215
B128: Total Bill on RPP (before Taxes) | H128: =SUM(H117:H123) -> 278.612 | L128: =SUM(L117:L123) -> 287.17232 | N128: =L128-H128 -> 8.56032 | O128: =IF((H128)=0,"",(N128/H128)) -> 0.03072487904
B129: HST | F129: 0.13 | H129: =H128*F129 -> 36.21956 | J129: 0.13 | L129: =L128*J129 -> 37.3324016 | N129: =L129-H129 -> 1.1128416 | O129: =IF((H129)=0,"",(N129/H129)) -> 0.03072487904
B130: Total Bill (including HST) | H130: =H128+H129 -> 314.83156 | L130: =L128+L129 -> 324.5047216 | N130: =L130-H130 -> 9.6731616 | O130: =IF((H130)=0,"",(N130/H130)) -> 0.03072487904
B131: Ontario Clean Energy Benefit 1 | H131: =ROUND(-H130*10%,2) -> -31.48 | L131: =ROUND(-L130*10%,2) -> -32.45 | N131: =L131-H131 -> -0.97 | O131: =IF((H131)=0,"",(N131/H131)) -> 0.03081321474
B132: Total Bill on RPP (including OCEB) | H132: =SUM(H130:H131) -> 283.35156 | L132: =SUM(L130:L131) -> 292.0547216 | N132: =L132-H132 -> 8.7031616 | O132: =IF((H132)=0,"",(N132/H132)) -> 0.03071506506
B134: Total Bill on TOU (before Taxes) | H134: =SUM(H117:H121,H124:H126) -> 273.06544 | L134: =SUM(L117:L121,L124:L126) -> 281.753476 | N134: =L134-H134 -> 8.688036 | O134: =IF((H134)=0,"",(N134/H134)) -> 0.03181668101
B135: HST | F135: 0.13 | H135: =H134*F135 -> 35.4985072 | J135: 0.13 | L135: =L134*J135 -> 36.62795188 | N135: =L135-H135 -> 1.12944468 | O135: =IF((H135)=0,"",(N135/H135)) -> 0.03181668101
B136: Total Bill (including HST) | H136: =H134+H135 -> 308.5639472 | L136: =L134+L135 -> 318.3814279 | N136: =L136-H136 -> 9.81748068 | O136: =IF((H136)=0,"",(N136/H136)) -> 0.03181668101
B137: Ontario Clean Energy Benefit 1 | H137: =ROUND(-H136*10%,2) -> -30.86 | L137: =ROUND(-L136*10%,2) -> -31.84 | N137: =L137-H137 -> -0.98 | O137: =IF((H137)=0,"",(N137/H137)) -> 0.03175631886
B138: Total Bill on TOU (including OCEB) | H138: =H136+H137 -> 277.7039472 | L138: =L136+L137 -> 286.5414279 | N138: =L138-H138 -> 8.83748068 | O138: =IF((H138)=0,"",(N138/H138)) -> 0.03182338879
B141: Loss Factor (%) | F141: 0.042 | J141: 0.0333
A143: 1 Applicable to eligible customers only. Refer to the Ontario Clean Energy Benefit Act, 2010.
A145: Note that the "Charge $" columns provide breakdowns of the amounts that each bill component contributes to the total monthly bill at the referenced
A146: consumption level at existing and proposed rates.
A148: Applicants must provide bill impacts for residential at 800 kWh and GS<50kW at 2000 kWh. In addition, their filing should cover the range that is relevant
A149: to their service territory, class by class. A general guideline of consumption levels follows:
A151: Residential (kWh) - 100, 250, 500, 800, 1000, 1500, 2000
A152: GS<50kW (kWh) - 1000, 2000, 5000, 10000, 15000
A153: GS>50kW (kW) - 60, 100, 500, 1000
A154: Large User - range appropriate for utility
A155: Lighting Classes and USL - 150 kWh and 1 kW, range appropriate for utility.
B158: Customer Class: | D158: General Service > 50 to 499 kW
D160: Consumption | F160: 42000 | G160: kWh
F161: 125 | G161: kW
F162: Current Board-Approved | J162: Proposed | N162: Impact
D163: Charge Unit | F163: Rate | G163: Volume | H163: Charge | J163: Rate | K163: Volume | L163: Charge | N163: $ Change | O163: % Change
F164: ($) | H164: ($) | J164: ($) | L164: ($)
B165: Monthly Service Charge | D165: Monthly | F165: 129.43 | G165: 1 | H165: =G165*F165 -> 129.43 | J165: 130 | K165: 1 | L165: =K165*J165 -> 130 | N165: =L165-H165 -> 0.57 | O165: =IF((H165)=0,"",(N165/H165)) -> 0.004403924901
B166: Smart Meter Rate Adder | G166: 1 | H166: 0 | K166: 1 | L166: 0 | N166: 0
B167: Distribution Volumetric Rate | D167: per kW | F167: 1.701 | G167: =$F$161 -> 125 | H167: 212.625 | J167: 2.1365 | K167: =$F$161 -> 125 | L167: 267.0625 | N167: 54.4375 | O167: 0.2560258671
B168: Smart Meter Disposition Rider | D168: Monthly | F168: 0 | G168: 1 | H168: 0 | J168: 0 | K168: 1 | L168: 0 | N168: 0
B169: LRAM & SSM Rate Rider | D169: per kW | F169: 0.0341 | G169: =$F$161 -> 125 | H169: 4.2625 | J169: 0.1112 | K169: =$F$161 -> 125 | L169: 13.9 | N169: 9.6375 | O169: 2.260997067
B170: Stranded Meter Rate Rider | D170: per kW | G170: 125 | H170: 0 | K170: 125 | L170: 0 | N170: 0
G171: 125 | H171: 0 | K171: 125 | L171: 0 | N171: 0
G172: 125 | H172: 0 | K172: 125 | L172: 0 | N172: 0
G173: 125 | H173: 0 | K173: 125 | L173: 0 | N173: 0
G174: 125 | H174: 0 | K174: 125 | L174: 0 | N174: 0
G175: 125 | H175: 0 | K175: 125 | L175: 0 | N175: 0
G176: 125 | H176: 0 | K176: 125 | L176: 0 | N176: 0
B177: Sub-Total A | H177: =SUM(H165:H176) -> 346.3175 | L177: =SUM(L165:L176) -> 410.9625 | N177: 64.645 | O177: 0.1866639716
B178: Deferral/Variance Account Disposition Rate Rider | D178: per kW | F178: -0.2069 | G178: =$F$161 -> 125 | H178: =G178*F178 -> -25.8625 | J178: 0 | K178: =$F$161 -> 125 | L178: =K178*J178 -> 0 | N178: 25.8625 | O178: -1
B179: Deferral/Variance Account Disposition Rate Rider | G179: =$F$161 -> 125 | J179: -1.3554 | K179: 125 | L179: -169.425 | N179: -169.425
G180: =$F$161 -> 125 | H180: =G180*F180 -> 0 | J180: 0 | K180: 125 | L180: 0 | N180: 0
G181: =$F$161 -> 125 | H181: =G181*F181 -> 0 | K181: 125 | L181: 0 | N181: 0
B182: Low Voltage Service Charge | G182: =$F$161 -> 125 | H182: =G182*F182 -> 0 | K182: 125 | L182: 0 | N182: 0
B183: Smart Meter Entity Charge | K183: 125 | L183: 0 | N183: 0
B184: Sub-Total B - Distribution (includes Sub-Total A) | H184: =SUM(H178:H182)+H177 -> 320.455 | L184: =SUM(L178:L182)+L177 -> 241.5375 | N184: -78.9175 | O184: =IF((H184)=0,"",(N184/H184)) -> -0.2462670266
B185: RTSR - Network | D185: per kW | F185: 2.3557 | G185: =$F$161*(1+$F$211)-1 -> 129.25 | H185: =G185*F185-0.2 -> 304.274225 | J185: 2.3723 | K185: =$F$161*(1+$J$211) -> 129.1625 | L185: =K185*J185 -> 306.4121988 | N185: 2.13797375 | O185: 0.007026470119
B186: RTSR - Line and Transformation Connection | D186: per kW | F186: 1.7945 | G186: =+G185 -> 129.25 | H186: =G186*F186-0.16 -> 231.779125 | J186: 1.7842 | K186: =+K185 -> 129.1625 | L186: =K186*J186 -> 230.4517325 | N186: -1.3273925 | O186: -0.005726971745
B187: Sub-Total C - Delivery (including Sub-Total B) | H187: =SUM(H184:H186) -> 856.50835 | L187: =SUM(L184:L186) -> 778.4014313 | N187: =L187-H187-0.01 -> -78.11691875 | O187: -0.09120391967
B188: Wholesale Market Service Charge (WMSC) | D188: per kWh | F188: 0.0052 | G188: =$F$160*(1+$F$211) -> 43764 | H188: =G188*F188 -> 227.5728 | J188: 0.0052 | K188: =$F$160*(1+$J$211) -> 43398.6 | L188: =K188*J188 -> 225.67272 | N188: =L188-H188 -> -1.90008 | O188: -0.008349328215
B189: Rural and Remote Rate Protection (RRRP) | D189: per kWh | F189: 0.0013 | G189: =+G$188 -> 43764 | H189: 56.8932 | J189: 0.0013 | K189: =+K$188 -> 43398.6 | L189: 56.41818 | N189: -0.47502 | O189: -0.008349328215
B190: Standard Supply Service Charge | D190: per kWh | G190: =+G$188 -> 43764 | H190: 0 | K190: =+K$188 -> 43398.6 | L190: 0 | N190: 0
B191: Debt Retirement Charge (DRC) | D191: per kWh | F191: 0.007 | G191: =+G$188 -> 43764 | H191: 306.348 | J191: 0.007 | K191: =+K$188 -> 43398.6 | L191: 303.7902 | N191: -2.5578 | O191: -0.008349328215
B192: Energy - RPP - Tier 1 | D192: per kWh | F192: 0.075 | G192: =IF('App.2-W_Bill Impacts (3)'!$T$1=1,IF($F$160>=750,750,IF($F$160<750,$F$160*(1+$F$211),$F$160-750)),IF('App.2-W_Bill Impacts (3)'!$T$1=2,IF($F$160>=750,750,IF($F$160<750,$F$160*(1+$F$211),$F$160-750)))) -> 750 | H192: 56.25 | J192: 0.075 | K192: =IF('App.2-W_Bill Impacts (3)'!$T$1=1,IF($F$160>=750,750,IF($F$160<750,$F$160*(1+$J$211),$F$160-750)),IF('App.2-W_Bill Impacts (3)'!$T$1=2,IF($F$160>=750,750,IF($F$160<750,$F$160*(1+$F$211),$F$160-750)))) -> 750 | L192: 56.25 | N192: 0 | O192: 0
B193: Energy - RPP - Tier 2 | D193: per kWh | F193: 0.088 | G193: =IF('App.2-W_Bill Impacts (3)'!$T$1=1,IF($F$160>=750,$F$160*(1+$F$211)-750,IF($F$160<750,0,)), IF('App.2-W_Bill Impacts (3)'!$T$1=2,IF($F$160>=750,$F$160*(1+$F$211)-750,IF($F$160<750,0)))) -> 43014 | H193: 3785.232 | J193: 0.088 | K193: =IF('App.2-W_Bill Impacts (3)'!$T$1=1,IF($F$160>=750,$F$160*(1+$J$211)-750,IF($F$160<750,0,)), IF('App.2-W_Bill Impacts (3)'!$T$1=2,IF($F$160>=750,$F$160*(1+$F$211)-750,IF($F$160<750,0)))) -> 42648.6 | L193: 3753.0768 | N193: -32.1552 | O193: -0.008494908634
B194: TOU - Off Peak | D194: per kWh | F194: 0.065 | G194: =0.64*$F$160*(1+$F$211) -> 28008.96 | H194: 1820.5824 | J194: 0.065 | K194: =0.64*$F$160*(1+$J$211) -> 27775.104 | L194: 1805.38176 | N194: -15.20064 | O194: -0.008349328215
B195: TOU - Mid Peak | D195: per kWh | F195: 0.1 | G195: =0.18*$F$160*(1+$F$211) -> 7877.52 | H195: 787.752 | J195: 0.1 | K195: =0.18*$F$160*(1+$J$211) -> 7811.748 | L195: 781.1748 | N195: -6.5772 | O195: -0.008349328215
B196: TOU - On Peak | D196: per kWh | F196: 0.117 | G196: =0.18*$F$160*(1+$F$211) -> 7877.52 | H196: 921.66984 | J196: 0.117 | K196: =0.18*$F$160*(1+$J$211) -> 7811.748 | L196: 913.974516 | N196: -7.695324 | O196: -0.008349328215
B198: Total Bill on RPP (before Taxes) | H198: =SUM(H187:H193) -> 5288.80435 | L198: =SUM(L187:L193) -> 5173.609331 | N198: =L198-H198+0.01 -> -115.1850188 | O198: =IF((H198)=0,"",(N198/H198)) -> -0.02177902814
B199: HST | F199: 0.13 | H199: =H198*F199 -> 687.5445655 | J199: 0.13 | L199: =L198*J199 -> 672.5692131 | N199: =L199-H199+0.01 -> -14.96535244 | O199: =IF((H199)=0,"",(N199/H199)) -> -0.02176637441
B200: Total Bill (including HST) | H200: =H198+H199 -> 5976.348916 | L200: =L198+L199 -> 5846.178544 | N200: =L200-H200 -> -130.1703712 | O200: =IF((H200)=0,"",(N200/H200)) -> -0.02178091892
B201: Ontario Clean Energy Benefit 1 | H201: =ROUND(-H200*10%,2) -> -597.63 | L201: =ROUND(-L200*10%,2) -> -584.62 | N201: =L201-H201 -> 13.01 | O201: =IF((H201)=0,"",(N201/H201)) -> -0.02176932216
B202: Total Bill on RPP (including OCEB) | H202: =SUM(H200:H201) -> 5378.718916 | L202: =SUM(L200:L201) -> 5261.558544 | N202: =L202-H202 -> -117.1603712 | O202: =IF((H202)=0,"",(N202/H202)) -> -0.02178220744
B204: Total Bill on TOU (before Taxes) | H204: =SUM(H187:H191,H194:H196) -> 4977.32659 | L204: =SUM(L187:L191,L194:L196) -> 4864.813607 | N204: =L204-H204 -> -112.5129828 | O204: =IF((H204)=0,"",(N204/H204)) -> -0.02260510351
B205: HST | F205: 0.13 | H205: =H204*F205 -> 647.0524567 | J205: 0.13 | L205: =L204*J205 -> 632.4257689 | N205: =L205-H205 -> -14.62668776 | O205: =IF((H205)=0,"",(N205/H205)) -> -0.02260510351
B206: Total Bill (including HST) | H206: =H204+H205 -> 5624.379047 | L206: =L204+L205 -> 5497.239376 | N206: =L206-H206 -> -127.1396705 | O206: =IF((H206)=0,"",(N206/H206)) -> -0.02260510351
B207: Ontario Clean Energy Benefit 1 | H207: =ROUND(-H206*10%,2) -> -562.44 | L207: =ROUND(-L206*10%,2) -> -549.72 | N207: =L207-H207 -> 12.72 | O207: =IF((H207)=0,"",(N207/H207)) -> -0.02261574568
B208: Total Bill on TOU (including OCEB) | H208: =H206+H207 -> 5061.939047 | L208: =L206+L207 -> 4947.519376 | N208: =L208-H208 -> -114.4196705 | O208: =IF((H208)=0,"",(N208/H208)) -> -0.02260392104
B211: Loss Factor (%) | F211: 0.042 | J211: 0.0333
A213: 1 Applicable to eligible customers only. Refer to the Ontario Clean Energy Benefit Act, 2010.
A215: Note that the "Charge $" columns provide breakdowns of the amounts that each bill component contributes to the total monthly bill at the referenced
A216: consumption level at existing and proposed rates.
A218: Applicants must provide bill impacts for residential at 800 kWh and GS<50kW at 2000 kWh. In addition, their filing should cover the range that is relevant
A219: to their service territory, class by class. A general guideline of consumption levels follows:
A221: Residential (kWh) - 100, 250, 500, 800, 1000, 1500, 2000
A222: GS<50kW (kWh) - 1000, 2000, 5000, 10000, 15000
A223: GS>50kW (kW) - 60, 100, 500, 1000
A224: Large User - range appropriate for utility
A225: Lighting Classes and USL - 150 kWh and 1 kW, range appropriate for utility.
B228: Customer Class: | D228: General Service > 500 to 1499 kW
D230: Consumption | F230: 320000 | G230: kWh
F231: 800 | G231: kW
F232: Current Board-Approved | J232: Proposed | N232: Impact
D233: Charge Unit | F233: Rate | G233: Volume | H233: Charge | J233: Rate | K233: Volume | L233: Charge | N233: $ Change | O233: % Change
F234: ($) | H234: ($) | J234: ($) | L234: ($)
B235: Monthly Service Charge | D235: Monthly | F235: 1352.34 | G235: 1 | H235: =G235*F235 -> 1352.34 | J235: 1352 | K235: 1 | L235: =K235*J235 -> 1352 | N235: =L235-H235 -> -0.34 | O235: =IF((H235)=0,"",(N235/H235)) -> -0.000251416064
B236: Smart Meter Rate Adder | G236: 1 | H236: 0 | K236: 1 | L236: 0 | N236: 0
B237: Distribution Volumetric Rate | D237: per kW | F237: 0.9187 | G237: =$F$231 -> 800 | H237: 734.96 | J237: 1.1666 | K237: =$F$231 -> 800 | L237: 933.28 | N237: 198.32 | O237: 0.2698378143
B238: Smart Meter Disposition Rider | D238: Monthly | F238: 0 | G238: 1 | H238: 0 | J238: 0 | K238: 1 | L238: 0 | N238: 0
B239: LRAM & SSM Rate Rider | D239: per kW | F239: 0.0229 | G239: =$F$231 -> 800 | H239: 18.32 | J239: 0 | K239: =$F$231 -> 800 | L239: 0 | N239: -18.32 | O239: -1
B240: Stranded Meter Rate Rider | D240: per kW | G240: 800 | H240: 0 | J240: 0 | K240: 800 | L240: 0 | N240: 0
G241: 800 | H241: 0 | K241: 800 | L241: 0 | N241: 0
G242: 800 | H242: 0 | K242: 800 | L242: 0 | N242: 0
... 281 more rows

Sheet App.2-W_Bill Impacts (2) (hidden)
N1: File Number: | O1: ='LDC Info'!$E$18 -> EB-2012-0168 | T1: 1
G2: *** NEEDS TO BE COMPLETED *** (COPY IN DATA FROM RATE MAKER) | N2: Exhibit: | O2: 8
N3: Tab: | O3: 4
N4: Schedule: | O4: 3
N5: Attachment | O5: 2
N7: Date: | O7: 2012-09-28
B10: Appendix 2-W
B11: Bill Impacts

Sheet App.2-W_Bill Impacts (3) (hidden)
N1: File Number: | O1: ='LDC Info'!$E$18 -> EB-2012-0168 | T1: 1
G2: *** NEEDS TO BE COMPLETED *** (COPY IN DATA FROM RATE MAKER) | N2: Exhibit: | O2: 8
N3: Tab: | O3: 4
N4: Schedule: | O4: 3
N5: Attachment | O5: 2
N7: Date: | O7: 2012-09-28
B10: Appendix 2-W
B11: Bill Impacts

Sheet App.2-W_Bill Impacts (4) (hidden)
N1: File Number: | O1: ='LDC Info'!$E$18 -> EB-2012-0168 | T1: 1
G2: *** NEEDS TO BE COMPLETED *** (COPY IN DATA FROM RATE MAKER) | N2: Exhibit: | O2: 8
N3: Tab: | O3: 4
N4: Schedule: | O4: 3
N5: Attachment | O5: 2
N7: Date: | O7: 2012-09-28
B10: Appendix 2-W
B11: Bill Impacts

Sheet App.2-W_Bill Impacts (5) (hidden)
N1: File Number: | O1: ='LDC Info'!$E$18 -> EB-2012-0168 | T1: 1
G2: *** NEEDS TO BE COMPLETED *** (COPY IN DATA FROM RATE MAKER) | N2: Exhibit: | O2: 8
N3: Tab: | O3: 4
N4: Schedule: | O4: 3
N5: Attachment | O5: 2
N7: Date: | O7: 2012-09-28
B10: Appendix 2-W
B11: Bill Impacts

Sheet App.2-W_Bill Impacts (6) (hidden)
N1: File Number: | O1: ='LDC Info'!$E$18 -> EB-2012-0168 | T1: 1
G2: *** NEEDS TO BE COMPLETED *** (COPY IN DATA FROM RATE MAKER) | N2: Exhibit: | O2: 8
N3: Tab: | O3: 4
N4: Schedule: | O4: 3
N5: Attachment | O5: 2
N7: Date: | O7: 2012-09-28
B10: Appendix 2-W
B11: Bill Impacts

Sheet App.2-W_Bill Impacts (7) (hidden)
N1: File Number: | O1: ='LDC Info'!$E$18 -> EB-2012-0168 | T1: 1
G2: *** NEEDS TO BE COMPLETED *** (COPY IN DATA FROM RATE MAKER) | N2: Exhibit: | O2: 8
N3: Tab: | O3: 4
N4: Schedule: | O4: 3
N5: Attachment | O5: 2
N7: Date: | O7: 2012-09-28
B10: Appendix 2-W
B11: Bill Impacts

Sheet App.2-W_Bill Impacts (8) (hidden)
N1: File Number: | O1: ='LDC Info'!$E$18 -> EB-2012-0168 | T1: 1
G2: *** NEEDS TO BE COMPLETED *** (COPY IN DATA FROM RATE MAKER) | N2: Exhibit: | O2: 8
N3: Tab: | O3: 4
N4: Schedule: | O4: 3
N5: Attachment | O5: 2
N7: Date: | O7: 2012-09-28
B10: Appendix 2-W
B11: Bill Impacts

Sheet App.2-X_CoS_Flowchart
F1: File Number: | G1: ='LDC Info'!$E$18 -> EB-2012-0168
F2: Exhibit: | G2: N/A
F3: Tab:
F4: Schedule:
F5: Attachment:
F7: Date: | G7: 2012-09-28
B13: Appendix 2-X
B14: Cost of Service Rate Application Schematic
B16: The Cost of Service Rate Application Schematic is a flowchart appended to Chapter 2 of the Filing Requirements as a guide for the components of an application and how demand and costs interrelate to derive the revenue requirement and then how the revenue requirement is allocated between classes and through fixed/variable splits to derive rates that will be compensatory for the annual revenue requirement, based on the the forecasted demand. There is no form to be filled out; therefore, this Schedule is not required to be filed.
